,Directorate,Supplier Name,Supplier Invoice No,Payment Date,Gross Invoice Value,Vat Amount,Vendor Id,Purpose of Expenditure,Description,Redact flag,Year,Period
1,Community and Housing,SOUTHPARK RESIDENTIAL HOME,985094,06-Jul-23,3220.32,0,19,Older People Placements - East,321017              Nursing & Residential Care Homes,A,2023,4
2,Community and Housing,SOUTHPARK RESIDENTIAL HOME,985162,06-Jul-23,3220.2,0,19,Older People Placements - East,321017              Nursing & Residential Care Homes,A,2023,4
3,Community and Housing,SOUTHPARK RESIDENTIAL HOME,985439,06-Jul-23,2965.2,0,19,Older People Placements - East,321017              Nursing & Residential Care Homes,A,2023,4
4,Community and Housing,SOUTHPARK RESIDENTIAL HOME,997790,27-Jul-23,718.72,0,19,Older People Placements - East,321017              Nursing & Residential Care Homes,A,2023,4
5,Community and Housing,SOUTHPARK RESIDENTIAL HOME,997792,27-Jul-23,1739.2,0,19,Older People Placements - East,321017              Nursing & Residential Care Homes,A,2023,4
6,Community and Housing,THE WHITE HOUSE NURSING HOME,985418,06-Jul-23,3396,0,611,Older People Placements - East,321000              Social Community Care Supplies & Services - Adult,A,2023,4
7,"Children, Schools and Family",BLOSSOM HOUSE SCHOOL,9374,10-Jul-23,24416.66,0,777,Non-Delegated Statements,170000              Education,A,2023,4
8,Corporate Services,Quadient,807646140,25-Jul-23,1539.37,0,793,Legal Shared Service,300000              Mail Services,A,2023,4
9,Corporate Services,Quadient,807646141,31-Jul-23,1716.85,0,793,Legal Shared Service,300000              Mail Services,A,2023,4
10,Unassigned,PERSEID SCHOOL,SCHOOLS 2324/4 A,07-Jul-23,727021.55,0,983,Schools,170000              Education,A,2023,4
11,Community and Housing,MOUNT CARMEL HOSTEL,24060,19-Jul-23,1650,0,1053,ASC - Substance Misuse - Drugs,321017              Nursing & Residential Care Homes,A,2023,4
12,Community and Housing,SUTTON NURSING HOMES LTD,985043,06-Jul-23,3056.44,0,1208,Older People Placements - East,321017              Nursing & Residential Care Homes,A,2023,4
13,Community and Housing,SUTTON NURSING HOMES LTD,985135,06-Jul-23,3087.16,0,1208,Older People Placements - East,321017              Nursing & Residential Care Homes,A,2023,4
14,Environment and Regeneration,LONDON BOROUGH OF CROYDON,3022308,26-Jul-23,69581.47,11596.91,1258,PARK OPERATIONS,OLA,A,2023,4
15,Environment and Regeneration,LONDON BOROUGH OF CROYDON,3022911,24-Jul-23,8964.49,0,1258,Greenspaces Team (General),OLA,A,2023,4
16,Environment and Regeneration,LONDON BOROUGH OF CROYDON,3022912,26-Jul-23,148797.86,23109.08,1258,PARK OPERATIONS,OLA,A,2023,4
17,Environment and Regeneration,LONDON BOROUGH OF CROYDON,3021960,26-Jul-23,282382.2,47063.7,1258,PARK OPERATIONS,OLA,A,2023,4
18,Environment and Regeneration,LONDON BOROUGH OF CROYDON,3022708,03-Aug-23,69581.47,11596.91,1258,PARK OPERATIONS,OLA,A,2023,4
19,Environment and Regeneration,LONDON BOROUGH OF CROYDON,3023006,03-Aug-23,98570.88,16428.48,1258,PARK OPERATIONS,OLA,A,2023,4
20,Corporate Services,L.B OF RICHMOND UPON THAMES,WRC376792128M03E,25-Jul-23,9480,0,1353,SLLP Client Income,OLA,A,2023,4
21,Unassigned,MELROSE SPECIAL SCHOOL,SCHOOLS 2324/4 A,07-Jul-23,345262.59,0,1393,Schools,170000              Education,A,2023,4
22,"Children, Schools and Family",MELROSE SPECIAL SCHOOL,HAFSUM-UPFRONT,20-Jul-23,4800,0,1393,Holiday Act Food Prog grntfnd,170000              Education,A,2023,4
23,Unassigned,WILLIAM MORRIS PRIMARY SCHOOL,SCHOOLS 2324/4 A,07-Jul-23,211147.4,0,1416,Schools,170000              Education,A,2023,4
24,Unassigned,ST THOMAS OF CANTERBURY PRIMARY,SCHOOLS 2324/4 A,07-Jul-23,288611.05,0,1418,Schools,170000              Education,A,2023,4
25,Unassigned,PRIORY C OF E MIDDLE SCHOOL,SCHOOLS 2324/4 A,07-Jul-23,133895.17,0,1420,Schools,170000              Education,A,2023,4
26,Unassigned,LIBERTY PRIMARY SCHOOL,SCHOOLS 2324/4 A,07-Jul-23,245535.89,0,1424,Schools,170000              Education,A,2023,4
27,Unassigned,HILLCROSS PRIMARY SCHOOL,SCHOOLS 2324/4 A,07-Jul-23,236485.41,0,1425,Schools,170000              Education,A,2023,4
28,"Children, Schools and Family",HILLCROSS PRIMARY SCHOOL,HPS0046,14-Jul-23,1050,0,1425,School Improvement Dedelegated,170000              Education,A,2023,4
29,Unassigned,CRANMER PRIMARY SCHOOL,SCHOOLS 2324/4 A,07-Jul-23,327622.58,0,1426,Schools,170000              Education,A,2023,4
30,"Children, Schools and Family",CRANMER PRIMARY SCHOOL,CINV000581,25-Jul-23,4381,0,1426,Quality Improvement,170000              Education,A,2023,4
31,Unassigned,WIMBLEDON COLLEGE SCHOOL,SCHOOLS 2324/4 A,07-Jul-23,680596.98,0,1428,Schools,170000              Education,A,2023,4
32,Unassigned,URSULINE HIGH SCHOOL,SCHOOLS 2324/4 A,07-Jul-23,736044.51,0,1429,Schools,170000              Education,A,2023,4
33,"Children, Schools and Family",URSULINE HIGH SCHOOL,HAFSUM-UPFRONT,20-Jul-23,3800,0,1429,Holiday Act Food Prog grntfnd,170000              Education,A,2023,4
34,Unassigned,RUTLISH SCHOOL,SCHOOLS 2324/4 A,07-Jul-23,803394.52,0,1431,Schools,170000              Education,A,2023,4
35,Unassigned,RICARDS LODGE SECONDARY SCHOOL,SCHOOLS 2324/4 A,07-Jul-23,722999.2,0,1433,Schools,170000              Education,A,2023,4
36,"Children, Schools and Family",RICARDS LODGE SECONDARY SCHOOL,HAFSUM-UPFRONT,20-Jul-23,8000,0,1433,Holiday Act Food Prog grntfnd,170000              Education,A,2023,4
37,Unassigned,WIMBLEDON PARK PRIMARY SCHOOL,SCHOOLS 2324/4 A,07-Jul-23,345487.01,0,1436,Schools,170000              Education,A,2023,4
38,"Children, Schools and Family",WIMBLEDON PARK PRIMARY SCHOOL,LBM2302,13-Jul-23,2250,0,1436,School Improvement GeneralFund,170000              Education,A,2023,4
39,Unassigned,ST TERESA'S R C PRIMARY SCHOOL,SCHOOLS 2324/4 A,07-Jul-23,269406,0,1438,Schools,170000              Education,A,2023,4
40,Unassigned,ST MARYS CATHOLIC PRIMARY SCHOOL,SCHOOLS 2324/4 A,07-Jul-23,223512.11,0,1439,Schools,170000              Education,A,2023,4
41,Unassigned,ST MARKS PRIMARY SCHOOL,SCHOOLS 2324/4 A,07-Jul-23,154454,0,1440,Schools,170000              Education,A,2023,4
42,Unassigned,ST JOHN FISHER RC PRIMARY SCH.,SCHOOLS 2324/4 A,07-Jul-23,216116.37,0,1441,Schools,170000              Education,A,2023,4
43,"Children, Schools and Family",ST JOHN FISHER RC PRIMARY SCH.,2198,13-Jul-23,1200,0,1441,School Improvement GeneralFund,170000              Education,A,2023,4
44,"Children, Schools and Family",ST JOHN FISHER RC PRIMARY SCH.,2200,03-Aug-23,2900,0,1441,Holiday Act Food Prog grntfnd,170000              Education,A,2023,4
45,Unassigned,SINGLEGATE PRIMARY SCHOOL,SCHOOLS 2324/4 A,07-Jul-23,377096.03,0,1442,Schools,170000              Education,A,2023,4
46,Unassigned,SHERWOOD PRIMARY SCHOOL,SCHOOLS 2324/4 A,07-Jul-23,203672.47,0,1443,Schools,170000              Education,A,2023,4
47,Unassigned,POPLAR PRIMARY SCHOOL,SCHOOLS 2324/4 A,07-Jul-23,340672.51,0,1444,Schools,170000              Education,A,2023,4
48,"Children, Schools and Family",POPLAR PRIMARY SCHOOL,PO12..07.232,14-Jul-23,1800,0,1444,School Improvement Dedelegated,170000              Education,A,2023,4
49,"Children, Schools and Family",POPLAR PRIMARY SCHOOL,PO12.07.23,25-Jul-23,17224.32,0,1444,School Improvement GeneralFund,170000              Education,A,2023,4
50,"Children, Schools and Family",PELHAM PRIMARY SCHOOL,RPERRY-WARD23022,05-Jul-23,631,0,1445,PupilPremium- Virtual School,170000              Education,A,2023,4
51,Unassigned,PELHAM PRIMARY SCHOOL,SCHOOLS 2324/4 A,07-Jul-23,256300.04,0,1445,Schools,170000              Education,A,2023,4
52,"Children, Schools and Family",PELHAM PRIMARY SCHOOL,1155,14-Jul-23,1050,0,1445,School Improvement Dedelegated,170000              Education,A,2023,4
53,"Children, Schools and Family",PELHAM PRIMARY SCHOOL,1152,19-Jul-23,1110,0,1445,Family Supp SafeGuard - Place,170000              Education,A,2023,4
54,Unassigned,MORDEN PRIMARY SCHOOL,SCHOOLS 2324/4 A,07-Jul-23,161651.41,0,1446,Schools,170000              Education,A,2023,4
55,Unassigned,MERTON PARK PRIMARY SCHOOL,SCHOOLS 2324/4 A,07-Jul-23,125557.94,0,1447,Schools,170000              Education,A,2023,4
56,Unassigned,MERTON ABBEY PRIMARY SCHOOL,SCHOOLS 2324/4 A,07-Jul-23,143523.84,0,1448,Schools,170000              Education,A,2023,4
57,Unassigned,LONESOME PRIMARY SCHOOL,SCHOOLS 2324/4 A,07-Jul-23,240398.95,0,1450,Schools,170000              Education,A,2023,4
58,Unassigned,LINKS PRIMARY SCHOOL,SCHOOLS 2324/4 A,07-Jul-23,226982.01,0,1451,Schools,170000              Education,A,2023,4
59,"Children, Schools and Family",LINKS PRIMARY SCHOOL,HAFSUM-UPFRONT,20-Jul-23,5000,0,1451,Holiday Act Food Prog grntfnd,170000              Education,A,2023,4
60,Unassigned,JOSEPH HOOD PRIMARY SCHOOL,SCHOOLS 2324/4 A,07-Jul-23,233511.8,0,1452,Schools,170000              Education,A,2023,4
61,Unassigned,HOLY TRINITY C OF E PRIMARY SCHOOL,SCHOOLS 2324/4 A,07-Jul-23,233732.25,0,1453,Schools,170000              Education,A,2023,4
62,Unassigned,HOLLYMOUNT PRIMARY SCHOOL,SCHOOLS 2324/4 A,07-Jul-23,238142.73,0,1454,Schools,170000              Education,A,2023,4
63,Unassigned,HATFEILD PRIMARY SCHOOL,SCHOOLS 2324/4 A,07-Jul-23,265650.72,0,1455,Schools,170000              Education,A,2023,4
64,Unassigned,HASLEMERE PRIMARY SCHOOL,SCHOOLS 2324/4 A,07-Jul-23,234411.43,0,1456,Schools,170000              Education,A,2023,4
65,Unassigned,GARFIELD PRIMARY SCHOOL,SCHOOLS 2324/4 A,07-Jul-23,195343.47,0,1460,Schools,170000              Education,A,2023,4
66,Unassigned,BOND PRIMARY SCHOOL,SCHOOLS 2324/4 A,07-Jul-23,244503.68,0,1462,Schools,170000              Education,A,2023,4
67,Unassigned,BISHOP GILPIN C OF E PRIMARY,SCHOOLS 2324/4 A,07-Jul-23,236029.5,0,1463,Schools,170000              Education,A,2023,4
68,Unassigned,ABBOTSBURY PRIMARY SCHOOL,SCHOOLS 2324/4 A,07-Jul-23,242285.75,0,1467,Schools,170000              Education,A,2023,4
69,"Children, Schools and Family",ABBOTSBURY PRIMARY SCHOOL,ABBO6SF,01-Aug-23,1260,0,1467,PupilPremium- Virtual School,170000              Education,A,2023,4
70,Unassigned,WIMBLEDON CHASE PRIMARY SCHOOL,SCHOOLS 2324/4 A,07-Jul-23,374593.43,0,1469,Schools,170000              Education,A,2023,4
71,"Children, Schools and Family",WIMBLEDON CHASE PRIMARY SCHOOL,BY1859,13-Jul-23,1800,0,1469,School Improvement GeneralFund,170000              Education,A,2023,4
72,Unassigned,GORRINGE PARK PRIMARY SCHOOL,SCHOOLS 2324/4 A,07-Jul-23,228929.92,0,1470,Schools,170000              Education,A,2023,4
73,Unassigned,RAYNES PARK SECONDARY SCHOOL,SCHOOLS 2324/4 A,07-Jul-23,755574.51,0,1471,Schools,170000              Education,A,2023,4
74,"Children, Schools and Family",RAYNES PARK SECONDARY SCHOOL,3301,28-Jul-23,1000,0,1471,School Improvement CPD,170000              Education,A,2023,4
75,Unassigned,SS PETER AND PAUL RC PRIMARY SCH,SCHOOLS 2324/4 A,07-Jul-23,168166,0,1472,Schools,170000              Education,A,2023,4
76,"Children, Schools and Family",SS PETER AND PAUL RC PRIMARY SCH,SU0004,21-Jul-23,600,0,1472,School Improvement GeneralFund,170000              Education,A,2023,4
77,Unassigned,DUNDONALD PRIMARY SCHOOL,SCHOOLS 2324/4 A,07-Jul-23,240514.91,0,1473,Schools,170000              Education,A,2023,4
78,Unassigned,ALL SAINTS C OF E PRIMARY SCH,SCHOOLS 2324/4 A,07-Jul-23,245407.27,0,1680,Schools,170000              Education,A,2023,4
79,"Children, Schools and Family",REDACTED PERSONAL DATA,987797,07-Jul-23,548.09,0,1801,Placements Under 18,321100              Social Community Care Supplies & Services - Children,R,2023,4
80,"Children, Schools and Family",REDACTED PERSONAL DATA,989766,14-Jul-23,548.09,0,1801,Placements Under 18,321100              Social Community Care Supplies & Services - Children,R,2023,4
81,"Children, Schools and Family",REDACTED PERSONAL DATA,994510,21-Jul-23,548.09,0,1801,Placements Under 18,321100              Social Community Care Supplies & Services - Children,R,2023,4
82,"Children, Schools and Family",REDACTED PERSONAL DATA,998627,31-Jul-23,697.12,0,1801,Placements Under 18,321100              Social Community Care Supplies & Services - Children,R,2023,4
83,"Children, Schools and Family",REDACTED PERSONAL DATA,998643,31-Jul-23,748.09,0,1801,Placements Under 18,321100              Social Community Care Supplies & Services - Children,R,2023,4
84,Corporate Services,CIVICA UK LIMITED,M/RB116867,20-Jul-23,27994.96,4665.83,1873,Local Taxation Services,270000              Information Communication Technology,A,2023,4
85,Community and Housing,CIVICA UK LIMITED,C/BN277570,26-Jul-23,3158.4,526.4,1873,Financial Assessment Team (FA),270000              Information Communication Technology,A,2023,4
86,Corporate Services,CIVICA UK LIMITED,C/BN278031,27-Jul-23,10107.62,1684.61,1873,Benefits Administration,270000              Information Communication Technology,A,2023,4
87,Corporate Services,CIVICA UK LIMITED,M/RB116868,26-Jul-23,213735.45,35622.56,1873,Business Systems,270000              Information Communication Technology,A,2023,4
88,"Children, Schools and Family",THE CHILDRENS TRUST,6521,24-Jul-23,9570.32,0,1980,Non-Delegated Statements,170000              Education,A,2023,4
89,"Children, Schools and Family",THE CHILDRENS TRUST,6230,13-Jul-23,11943,0,1980,Child Disabilities - Placement,170000              Education,A,2023,4
90,Community and Housing,THE FRANCES TAYLOR FOUNDATION,985119,06-Jul-23,3812.04,0,2011,Learning Disabilities Placemnt,321017              Nursing & Residential Care Homes,A,2023,4
91,Unassigned,SACRED HEART R C PRIMARY SCH.,SCHOOLS 2324/4 A,07-Jul-23,211699.27,0,2076,Schools,170000              Education,A,2023,4
92,Community and Housing,GENEVA ROAD LIMITED,300623JW,21-Jul-23,781.09,130.18,2198,Older People Placements - East,321000              Social Community Care Supplies & Services - Adult,A,2023,4
93,Corporate Services,LONDON BOROUGH OF SUTTON,20148622,07-Jul-23,750,0,2313,SLLP Client Income,OLA,A,2023,4
94,"Children, Schools and Family",THE LINK SECONDARY SCHOOL,DI118105469,25-Jul-23,2089.22,0,2324,Non-Delegated Statements,170000              Education,A,2023,4
95,"Children, Schools and Family",THE LINK SECONDARY SCHOOL,DI118105195,25-Jul-23,83447.72,0,2324,Non-Delegated Statements,170000              Education,A,2023,4
96,"Children, Schools and Family",The Link Primary School,D1118105450,11-Jul-23,6978.67,0,2329,Non-Delegated Statements,200000              Financial Services,A,2023,4
97,"Children, Schools and Family",The Link Primary School,D1118105449,11-Jul-23,6978.67,0,2329,Non-Delegated Statements,200000              Financial Services,A,2023,4
98,"Children, Schools and Family",The Link Primary School,D1118105179,12-Jul-23,81093.04,0,2329,Non-Delegated Statements,200000              Financial Services,A,2023,4
99,"Children, Schools and Family",The Link Primary School,DI118105448,25-Jul-23,2117.75,0,2329,Non-Delegated Statements,200000              Financial Services,A,2023,4
100,"Children, Schools and Family",The Link Primary School,DI118105451,25-Jul-23,6893.34,0,2329,Non-Delegated Statements,200000              Financial Services,A,2023,4
101,Community and Housing,FREEWAYS TRUST LTD,985021,06-Jul-23,3186.04,0,2474,Learning Disabilities Placemnt,321017              Nursing & Residential Care Homes,A,2023,4
102,Community and Housing,CLOYDA LTD,985299,06-Jul-23,3294.48,0,10762,Older People Placements - East,321017              Nursing & Residential Care Homes,A,2023,4
103,Community and Housing,CLOYDA LTD,997950,27-Jul-23,902.08,0,10762,Older People Placements - East,321017              Nursing & Residential Care Homes,A,2023,4
104,Community and Housing,CHEGWORTH N.H. (BAYSWIFT LTD),985260,06-Jul-23,3056.4,0,11057,Learning Disabilities Placemnt,321000              Social Community Care Supplies & Services - Adult,A,2023,4
105,"Children, Schools and Family",REDACTED PERSONAL DATA,987753,07-Jul-23,692.46,0,11130,Placements Under 18,321100              Social Community Care Supplies & Services - Children,R,2023,4
106,"Children, Schools and Family",REDACTED PERSONAL DATA,989725,14-Jul-23,692.46,0,11130,Placements Under 18,321100              Social Community Care Supplies & Services - Children,R,2023,4
107,"Children, Schools and Family",REDACTED PERSONAL DATA,994469,21-Jul-23,692.46,0,11130,Placements Under 18,321100              Social Community Care Supplies & Services - Children,R,2023,4
108,"Children, Schools and Family",REDACTED PERSONAL DATA,998601,31-Jul-23,892.46,0,11130,Placements Under 18,321100              Social Community Care Supplies & Services - Children,R,2023,4
109,Community and Housing,Queens Court,985055,06-Jul-23,3220.32,0,12747,Older People Placements - East,321017              Nursing & Residential Care Homes,A,2023,4
110,Community and Housing,ASHCROFT CARE SERVICES,985259,06-Jul-23,6116.88,0,13287,Learning Disabilities Placemnt,321017              Nursing & Residential Care Homes,A,2023,4
111,Community and Housing,SHARE COMMUNITY LTD,240258,07-Jul-23,600,0,13487,Learning Disabilities Placemnt,321017              Nursing & Residential Care Homes,A,2023,4
112,Community and Housing,SHARE COMMUNITY LTD,240483,07-Jul-23,900,0,13487,Learning Disabilities Placemnt,321017              Nursing & Residential Care Homes,A,2023,4
113,Community and Housing,SHARE COMMUNITY LTD,240474,07-Jul-23,840,0,13487,Learning Disabilities Placemnt,321017              Nursing & Residential Care Homes,A,2023,4
114,Community and Housing,SHARE COMMUNITY LTD,240472,07-Jul-23,1120,0,13487,Learning Disabilities Placemnt,321017              Nursing & Residential Care Homes,A,2023,4
115,Community and Housing,SHARE COMMUNITY LTD,240469,07-Jul-23,560,0,13487,Learning Disabilities Placemnt,321017              Nursing & Residential Care Homes,A,2023,4
116,Community and Housing,SHARE COMMUNITY LTD,240464,07-Jul-23,840,0,13487,Learning Disabilities Placemnt,321017              Nursing & Residential Care Homes,A,2023,4
117,Community and Housing,SHARE COMMUNITY LTD,240462,17-Jul-23,600,0,13487,Learning Disabilities Placemnt,321017              Nursing & Residential Care Homes,A,2023,4
118,Community and Housing,SHARE COMMUNITY LTD,240632,24-Jul-23,900,0,13487,Learning Disabilities Placemnt,321017              Nursing & Residential Care Homes,A,2023,4
119,Community and Housing,SHARE COMMUNITY LTD,240623,24-Jul-23,840,0,13487,Learning Disabilities Placemnt,321017              Nursing & Residential Care Homes,A,2023,4
120,Community and Housing,SHARE COMMUNITY LTD,240621,24-Jul-23,1120,0,13487,Learning Disabilities Placemnt,321017              Nursing & Residential Care Homes,A,2023,4
121,Community and Housing,SHARE COMMUNITY LTD,240618,24-Jul-23,560,0,13487,Learning Disabilities Placemnt,321017              Nursing & Residential Care Homes,A,2023,4
122,Community and Housing,SHARE COMMUNITY LTD,240613,24-Jul-23,840,0,13487,Learning Disabilities Placemnt,321017              Nursing & Residential Care Homes,A,2023,4
123,Community and Housing,SHARE COMMUNITY LTD,240611,24-Jul-23,600,0,13487,Learning Disabilities Placemnt,321017              Nursing & Residential Care Homes,A,2023,4
124,Community and Housing,FITZROY SUPPORT,985367,06-Jul-23,8304.28,0,13535,Learning Disabilities Placemnt,321017              Nursing & Residential Care Homes,A,2023,4
125,Community and Housing,CANTERBURY OAST TRUST LTD,985036,06-Jul-23,2496.88,0,13566,Learning Disabilities Placemnt,321017              Nursing & Residential Care Homes,A,2023,4
126,Community and Housing,MACINTYRE,985048,06-Jul-23,5731.64,0,13585,Learning Disabilities Placemnt,321017              Nursing & Residential Care Homes,A,2023,4
127,Community and Housing,MACINTYRE,985231,06-Jul-23,5641.36,0,13585,Learning Disabilities Placemnt,321017              Nursing & Residential Care Homes,A,2023,4
128,Community and Housing,MACINTYRE,985331,06-Jul-23,5641.36,0,13585,Older People Placements - East,321017              Nursing & Residential Care Homes,A,2023,4
129,Community and Housing,MACINTYRE,985366,06-Jul-23,4825.24,0,13585,Learning Disabilities Placemnt,321017              Nursing & Residential Care Homes,A,2023,4
130,Community and Housing,KENT AUTISTIC TRUST,985341,06-Jul-23,7494.72,0,13670,Learning Disabilities Placemnt,321017              Nursing & Residential Care Homes,A,2023,4
131,Community and Housing,UNITED RESPONSE,VSMR 838733RH,04-Jul-23,4134.62,689.1,14616,Learning Disabilities Placemnt,321000              Social Community Care Supplies & Services - Adult,A,2023,4
132,Community and Housing,UNITED RESPONSE,VSMR 838733DH,04-Jul-23,3842.88,640.48,14616,Learning Disabilities Placemnt,321000              Social Community Care Supplies & Services - Adult,A,2023,4
133,Community and Housing,UNITED RESPONSE,VSMR 838733HM,04-Jul-23,4572.24,762.04,14616,Learning Disabilities Placemnt,321000              Social Community Care Supplies & Services - Adult,A,2023,4
134,Community and Housing,UNITED RESPONSE,VSMR 838733BS,04-Jul-23,4086.05,681.01,14616,Learning Disabilities Placemnt,321000              Social Community Care Supplies & Services - Adult,A,2023,4
135,Community and Housing,UNITED RESPONSE,VSMR 838733CW,04-Jul-23,4766.4,794.4,14616,Learning Disabilities Placemnt,321000              Social Community Care Supplies & Services - Adult,A,2023,4
136,Community and Housing,UNITED RESPONSE,987384,07-Jul-23,6715.59,1119.27,14616,Learning Disabilities Placemnt,321000              Social Community Care Supplies & Services - Adult,A,2023,4
137,Community and Housing,UNITED RESPONSE,987386,07-Jul-23,8387.7,1397.94,14616,Learning Disabilities Placemnt,321000              Social Community Care Supplies & Services - Adult,A,2023,4
138,"Children, Schools and Family",CROYDON COLLEGE,IJ/001144,17-Jul-23,3658.98,0,15734,Non-Maintained Post 16 SEN,200000              Financial Services,A,2023,4
139,"Children, Schools and Family",CROYDON COLLEGE,IJ/001145,17-Jul-23,1041.29,0,15734,Non-Maintained Post 16 SEN,200000              Financial Services,A,2023,4
140,"Children, Schools and Family",CROYDON COLLEGE,IJ/001146,17-Jul-23,3380.88,0,15734,Non-Maintained Post 16 SEN,200000              Financial Services,A,2023,4
141,"Children, Schools and Family",CROYDON COLLEGE,IJ/001147,24-Jul-23,1268.89,0,15734,Non-Maintained Post 16 SEN,200000              Financial Services,A,2023,4
142,Environment and Regeneration,KINGSTON CORPORATION,37550782,04-Jul-23,45543.5,0,21573,Garden Waste Service,180000              Environmental Services,A,2023,4
143,Environment and Regeneration,KINGSTON CORPORATION,37550774,04-Jul-23,7562.19,0,21573,Food Waste Service,180000              Environmental Services,A,2023,4
144,Corporate Services,KINGSTON CORPORATION,20148624,07-Jul-23,17475,0,21573,SLLP Client Income,180000              Environmental Services,A,2023,4
145,Corporate Services,KINGSTON CORPORATION,37553854,14-Jul-23,4647.7,315.95,21573,HR TRANSACTIONS,180000              Environmental Services,A,2023,4
146,Environment and Regeneration,KINGSTON CORPORATION,37555229,20-Jul-23,18200.06,0,21573,Recycling Activities,180000              Environmental Services,A,2023,4
147,Corporate Services,I J BEIM AND ASSOCIATES LTD,13705,28-Jul-23,653.28,108.88,24949,SLLP - Disbursements,280000              Legal Services,A,2023,4
148,Community and Housing,TRINITY COURT NURSING HOME,984976,04-Jul-23,1709.11,0,30306,Older People Placements - East,321017              Nursing & Residential Care Homes,A,2023,4
149,Community and Housing,TRINITY COURT NURSING HOME,985089,06-Jul-23,2861.6,0,30306,Older People Placements - East,321017              Nursing & Residential Care Homes,A,2023,4
150,Community and Housing,TRINITY COURT NURSING HOME,985232,06-Jul-23,2985.6,0,30306,Older People Placements - East,321017              Nursing & Residential Care Homes,A,2023,4
151,Community and Housing,TRINITY COURT NURSING HOME,985265,06-Jul-23,3063.24,0,30306,Older People Placements - East,321017              Nursing & Residential Care Homes,A,2023,4
152,Community and Housing,TRINITY COURT NURSING HOME,985278,06-Jul-23,3355.92,0,30306,Phys/Sens Placements - East,321017              Nursing & Residential Care Homes,A,2023,4
153,Community and Housing,TRINITY COURT NURSING HOME,985340,06-Jul-23,2985.6,0,30306,Older People Placements - East,321017              Nursing & Residential Care Homes,A,2023,4
154,Community and Housing,TRINITY COURT NURSING HOME,985348,06-Jul-23,2861.6,0,30306,Older People Placements - East,321017              Nursing & Residential Care Homes,A,2023,4
155,Community and Housing,TRINITY COURT NURSING HOME,985357,06-Jul-23,3063.24,0,30306,Older People Placements - East,321017              Nursing & Residential Care Homes,A,2023,4
156,Community and Housing,TRINITY COURT NURSING HOME,985395,06-Jul-23,1314.7,0,30306,Older People Placements - East,321017              Nursing & Residential Care Homes,A,2023,4
157,Community and Housing,TRINITY COURT NURSING HOME,985412,06-Jul-23,2985.6,0,30306,Older People Placements - East,321017              Nursing & Residential Care Homes,A,2023,4
158,Community and Housing,TRINITY COURT NURSING HOME,985445,06-Jul-23,2876.32,0,30306,Older People Placements - East,321017              Nursing & Residential Care Homes,A,2023,4
159,Community and Housing,TRINITY COURT NURSING HOME,985447,06-Jul-23,3149.6,0,30306,Older People Placements - East,321017              Nursing & Residential Care Homes,A,2023,4
160,Community and Housing,TRINITY COURT NURSING HOME,985449,06-Jul-23,2521.12,0,30306,Older People Placements - East,321017              Nursing & Residential Care Homes,A,2023,4
161,Community and Housing,TRINITY COURT NURSING HOME,990972,18-Jul-23,2366.46,0,30306,Older People Placements - East,321017              Nursing & Residential Care Homes,A,2023,4
162,Community and Housing,TRINITY COURT NURSING HOME,990973,18-Jul-23,5784.68,0,30306,Older People Placements - East,321017              Nursing & Residential Care Homes,A,2023,4
163,Community and Housing,HAYDON PARK LODGE,985179,06-Jul-23,3485,0,31434,Learning Disabilities Placemnt,321017              Nursing & Residential Care Homes,A,2023,4
164,Community and Housing,HAYDON PARK LODGE,985205,06-Jul-23,4591.44,0,31434,Learning Disabilities Placemnt,321017              Nursing & Residential Care Homes,A,2023,4
165,Community and Housing,HAYDON PARK LODGE,985286,06-Jul-23,5070.76,0,31434,Learning Disabilities Placemnt,321017              Nursing & Residential Care Homes,A,2023,4
166,Community and Housing,HAYDON PARK LODGE,985326,06-Jul-23,4420.08,0,31434,Learning Disabilities Placemnt,321017              Nursing & Residential Care Homes,A,2023,4
167,Community and Housing,HAYDON PARK LODGE,985370,06-Jul-23,7000,0,31434,Learning Disabilities Placemnt,321017              Nursing & Residential Care Homes,A,2023,4
168,Community and Housing,Barchester Healthcare Wimbledon Beaumont,985022,06-Jul-23,3220.32,0,33384,Older People Placements - East,321017              Nursing & Residential Care Homes,A,2023,4
169,Community and Housing,Barchester Healthcare Wimbledon Beaumont,985123,06-Jul-23,4056,0,33384,Older People Placements - East,321017              Nursing & Residential Care Homes,A,2023,4
170,Community and Housing,Barchester Healthcare Wimbledon Beaumont,985143,06-Jul-23,3000,0,33384,Older People Placements - East,321017              Nursing & Residential Care Homes,A,2023,4
171,Environment and Regeneration,GILLETT AND JOHNSTON (CROYDON) LTD,29573,11-Jul-23,3667.2,611.2,33547,TRAF & HWYS CAPITAL PROJECTS,"390000              Works - Construction, Repair & Maintenance",A,2023,4
172,Community and Housing,COMFORT CARE SERVICES (UK) LTD,SU0091/275,31-Jul-23,871.36,0,34932,Mental Health Placements,321000              Social Community Care Supplies & Services - Adult,A,2023,4
173,Community and Housing,COMFORT CARE SERVICES (UK) LTD,SU0201/1491,24-Jul-23,2380,0,34932,Mental Health Placements,321000              Social Community Care Supplies & Services - Adult,A,2023,4
174,Community and Housing,COMFORT CARE SERVICES (UK) LTD,SU0210/1146,24-Jul-23,2380,0,34932,Mental Health Placements,321000              Social Community Care Supplies & Services - Adult,A,2023,4
175,Community and Housing,COMFORT CARE SERVICES (UK) LTD,SU0208/1631,24-Jul-23,2380,0,34932,Mental Health Placements,321000              Social Community Care Supplies & Services - Adult,A,2023,4
176,Community and Housing,COMFORT CARE SERVICES (UK) LTD,SU0298/1050,24-Jul-23,2380,0,34932,Mental Health Placements,321000              Social Community Care Supplies & Services - Adult,A,2023,4
177,Community and Housing,COMFORT CARE SERVICES (UK) LTD,SU0294/1615,24-Jul-23,2380,0,34932,Mental Health Placements,321000              Social Community Care Supplies & Services - Adult,A,2023,4
178,Community and Housing,COMFORT CARE SERVICES (UK) LTD,SU0291/1147,24-Jul-23,2380,0,34932,Mental Health Placements,321000              Social Community Care Supplies & Services - Adult,A,2023,4
179,Community and Housing,COMFORT CARE SERVICES (UK) LTD,SU1102/1630,17-Jul-23,2380,0,34932,Mental Health Placements,321000              Social Community Care Supplies & Services - Adult,A,2023,4
180,Community and Housing,COMFORT CARE SERVICES (UK) LTD,SU1051/1368-69,17-Jul-23,3295,0,34932,Mental Health Placements,321000              Social Community Care Supplies & Services - Adult,A,2023,4
181,Community and Housing,COMFORT CARE SERVICES (UK) LTD,SU0184/1049,24-Jul-23,2380,0,34932,Mental Health Placements,321000              Social Community Care Supplies & Services - Adult,A,2023,4
182,Community and Housing,COMFORT CARE SERVICES (UK) LTD,SU0266/1571,17-Jul-23,2380,0,34932,Mental Health Placements,321000              Social Community Care Supplies & Services - Adult,A,2023,4
183,Community and Housing,COMFORT CARE SERVICES (UK) LTD,SU0146/1490,24-Jul-23,2380,0,34932,Mental Health Placements,321000              Social Community Care Supplies & Services - Adult,A,2023,4
184,Community and Housing,COMFORT CARE SERVICES (UK) LTD,SU0133/1145,24-Jul-23,2380,0,34932,Mental Health Placements,321000              Social Community Care Supplies & Services - Adult,A,2023,4
185,Unassigned,ST MATTHEW'S C OF E PRIMARY,SCHOOLS 2324/4 A,07-Jul-23,108915.53,0,36050,Schools,170000              Education,A,2023,4
186,"Children, Schools and Family",SURREY COUNTY COUNCIL,20057358,26-Jul-23,3708,0,46682,Adventure Playground Project,OLA,A,2023,4
187,Community and Housing,JESMUND CARE LTD,985078,06-Jul-23,4400,0,46751,Older People Placements - East,321017              Nursing & Residential Care Homes,A,2023,4
188,Community and Housing,JESMUND CARE LTD,985401,06-Jul-23,3600,0,46751,Older People Placements - East,321017              Nursing & Residential Care Homes,A,2023,4
189,Community and Housing,REDACTED PERSONAL DATA,989428,18-Jul-23,4900.28,0,50448,Older People Placements - East,DIRECT PAYMENTS,R,2023,4
190,Community and Housing,LINKAGE COMMUNITY TR.LONG-STAY,985318,06-Jul-23,3340.08,0,52552,Learning Disabilities Placemnt,321017              Nursing & Residential Care Homes,A,2023,4
191,Community and Housing,RUTLAND HOUSE CARE HOME,985190,06-Jul-23,3220.32,0,53424,Older People Placements - East,321017              Nursing & Residential Care Homes,A,2023,4
192,Community and Housing,RUTLAND HOUSE CARE HOME,985196,06-Jul-23,3156,0,53424,Older People Placements - East,321017              Nursing & Residential Care Homes,A,2023,4
193,Community and Housing,RUTLAND HOUSE CARE HOME,985310,06-Jul-23,3200,0,53424,Older People Placements - East,321017              Nursing & Residential Care Homes,A,2023,4
194,Community and Housing,PARK LODGE,985167,06-Jul-23,2895.68,0,56878,Learning Disabilities Placemnt,321017              Nursing & Residential Care Homes,A,2023,4
195,Community and Housing,PARK LODGE,985263,06-Jul-23,3026.8,0,56878,Learning Disabilities Placemnt,321017              Nursing & Residential Care Homes,A,2023,4
196,Unassigned,CRICKET GREEN SCHOOL,SCHOOLS 2324/4 A,07-Jul-23,484418.6,0,57057,Schools,170000              Education,A,2023,4
197,Corporate Services,GREENWORKS,456290,14-Jul-23,698.21,116.37,57234,Corporate Contracts - FM,"390000              Works - Construction, Repair & Maintenance",A,2023,4
198,Corporate Services,MERTON VOLUNTARY SERV COUNCIL,5230,26-Jul-23,6000,0,57560,Local Strategic Partnership,190000              Facilities & Management Services,A,2023,4
199,Corporate Services,JADE SECURITY SERVICE LTD,5750,24-Jul-23,2686.82,447.8,57563,Cash Collections,200000              Financial Services,A,2023,4
200,Community and Housing,LIFESTYLE CARE MANAGEMENT LTD,985032,19-Jul-23,4357.92,0,57589,Mental Health Placements,321000              Social Community Care Supplies & Services - Adult,A,2023,4
201,Community and Housing,WALSINGHAM,985136,06-Jul-23,5423.6,0,58466,Learning Disabilities Placemnt,321017              Nursing & Residential Care Homes,A,2023,4
202,Community and Housing,WALSINGHAM,985316,06-Jul-23,5423.08,0,58466,Learning Disabilities Placemnt,321017              Nursing & Residential Care Homes,A,2023,4
203,Community and Housing,WALSINGHAM,985375,06-Jul-23,7365.64,0,58466,Learning Disabilities Placemnt,321017              Nursing & Residential Care Homes,A,2023,4
204,Community and Housing,WALSINGHAM,997930,27-Jul-23,2078.72,0,58466,Learning Disabilities Placemnt,321017              Nursing & Residential Care Homes,A,2023,4
205,Community and Housing,WALSINGHAM,997931,27-Jul-23,2078.72,0,58466,Learning Disabilities Placemnt,321017              Nursing & Residential Care Homes,A,2023,4
206,Community and Housing,WALSINGHAM,997932,27-Jul-23,2504.32,0,58466,Learning Disabilities Placemnt,321017              Nursing & Residential Care Homes,A,2023,4
207,Community and Housing,HATS GROUP LTD,224280,07-Jul-23,2658.43,443.07,58532,Learning Disabilities Placemnt,360000              Passenger Transport,A,2023,4
208,Community and Housing,HATS GROUP LTD,224626,25-Jul-23,1993.82,332.3,58532,Learning Disabilities Placemnt,360000              Passenger Transport,A,2023,4
209,Community and Housing,CARE UK,984990,04-Jul-23,1628.57,0,58851,Older People Placements - East,321017              Nursing & Residential Care Homes,A,2023,4
210,Community and Housing,CARE UK,985017,06-Jul-23,3229.52,0,58851,Older People Placements - East,321017              Nursing & Residential Care Homes,A,2023,4
211,Community and Housing,CARE UK,985020,06-Jul-23,4321.16,0,58851,Older People Placements - East,321017              Nursing & Residential Care Homes,A,2023,4
212,Community and Housing,CARE UK,985041,06-Jul-23,3800,0,58851,Older People Placements - East,321017              Nursing & Residential Care Homes,A,2023,4
213,Community and Housing,CARE UK,985093,06-Jul-23,3723.24,0,58851,Older People Placements - East,321017              Nursing & Residential Care Homes,A,2023,4
214,Community and Housing,CARE UK,985112,06-Jul-23,3963.24,0,58851,Older People Placements - East,321017              Nursing & Residential Care Homes,A,2023,4
215,Community and Housing,CARE UK,985203,06-Jul-23,3264.32,0,58851,Older People Placements - East,321017              Nursing & Residential Care Homes,A,2023,4
216,Community and Housing,CARE UK,985257,06-Jul-23,3723.24,0,58851,Older People Placements - East,321017              Nursing & Residential Care Homes,A,2023,4
217,Community and Housing,CARE UK,985268,06-Jul-23,4560,0,58851,Older People Placements - East,321017              Nursing & Residential Care Homes,A,2023,4
218,Community and Housing,CARE UK,985311,06-Jul-23,3229.52,0,58851,Older People Placements - East,321017              Nursing & Residential Care Homes,A,2023,4
219,Community and Housing,CARE UK,985328,06-Jul-23,3723.24,0,58851,Older People Placements - East,321017              Nursing & Residential Care Homes,A,2023,4
220,Community and Housing,CARE UK,985397,06-Jul-23,4000,0,58851,Older People Placements - East,321017              Nursing & Residential Care Homes,A,2023,4
221,Community and Housing,CARE UK,985399,06-Jul-23,3229.52,0,58851,Older People Placements - East,321017              Nursing & Residential Care Homes,A,2023,4
222,Community and Housing,CARE UK,997993,27-Jul-23,617.31,0,58851,Older People Placements - East,321017              Nursing & Residential Care Homes,A,2023,4
223,"Children, Schools and Family",ST MICHAEL'S FELLOWSHIP,C3097A/2100,21-Jul-23,24420,0,59560,Placements Under 18,280000              Legal Services,A,2023,4
224,"Children, Schools and Family",ST MICHAEL'S FELLOWSHIP,C3084B/2100,25-Jul-23,1440,0,59560,Placements Under 18,280000              Legal Services,A,2023,4
225,Capital,BARCHAM TREES P.L.C.,156869,19-Jul-23,17858.4,2976.4,62024,Street Trees,240000              Horticultural,A,2023,4
226,Corporate Services,EDE'S (U.K.) LTD,INV26685,21-Jul-23,764.2,127.37,62345,Recovery Modernisation Progrm,190000              Facilities & Management Services,A,2023,4
227,Community and Housing,BARONS LODGE NURSING HOME,985084,06-Jul-23,1716,0,62371,Mental Health Placements,321017              Nursing & Residential Care Homes,A,2023,4
228,Community and Housing,BARONS LODGE NURSING HOME,985177,06-Jul-23,4360,0,62371,Older People Placements - East,321017              Nursing & Residential Care Homes,A,2023,4
229,Community and Housing,BARONS LODGE NURSING HOME,985280,06-Jul-23,3502,0,62371,Mental Health Placements,321017              Nursing & Residential Care Homes,A,2023,4
230,Community and Housing,BARONS LODGE NURSING HOME,985289,06-Jul-23,4200,0,62371,Mental Health Placements,321017              Nursing & Residential Care Homes,A,2023,4
231,Community and Housing,BARONS LODGE NURSING HOME,985351,06-Jul-23,4360,0,62371,Mental Health Placements,321017              Nursing & Residential Care Homes,A,2023,4
232,Community and Housing,BARONS LODGE NURSING HOME,985358,06-Jul-23,4360,0,62371,Older People Placements - East,321017              Nursing & Residential Care Homes,A,2023,4
233,Community and Housing,BARONS LODGE NURSING HOME,985359,06-Jul-23,3807.2,0,62371,Learning Disabilities Placemnt,321017              Nursing & Residential Care Homes,A,2023,4
234,Community and Housing,BARONS LODGE NURSING HOME,985376,06-Jul-23,4800,0,62371,Older People Placements - East,321017              Nursing & Residential Care Homes,A,2023,4
235,Community and Housing,BARONS LODGE NURSING HOME,985393,06-Jul-23,3502,0,62371,Older People Placements - East,321017              Nursing & Residential Care Homes,A,2023,4
236,Community and Housing,BARONS LODGE NURSING HOME,985440,06-Jul-23,4360,0,62371,Older People Placements - East,321017              Nursing & Residential Care Homes,A,2023,4
237,Corporate Services,MASTERS LEGAL COSTS SERV'S LLP,74964,05-Jul-23,600,100,63103,SLLP - Disbursements,280000              Legal Services                                                                            Confirmed,A,2023,4
238,Corporate Services,MASTERS LEGAL COSTS SERV'S LLP,74921,05-Jul-23,600,100,63103,SLLP - Disbursements,280000              Legal Services                                                                            Confirmed,A,2023,4
239,Community and Housing,SANCTUARY CARE LTD,985050,06-Jul-23,3117.52,0,63458,Learning Disabilities Placemnt,321017              Nursing & Residential Care Homes,A,2023,4
240,Community and Housing,THE REGARD PARTNERSHIP LTD,985035,06-Jul-23,6220.72,0,63796,Learning Disabilities Placemnt,321017              Nursing & Residential Care Homes,A,2023,4
241,Community and Housing,THE REGARD PARTNERSHIP LTD,985132,06-Jul-23,5973.28,0,63796,Learning Disabilities Placemnt,321017              Nursing & Residential Care Homes,A,2023,4
242,Community and Housing,THE REGARD PARTNERSHIP LTD,985151,06-Jul-23,9681.96,0,63796,Learning Disabilities Placemnt,321017              Nursing & Residential Care Homes,A,2023,4
243,Community and Housing,THE REGARD PARTNERSHIP LTD,985165,06-Jul-23,5765,0,63796,Learning Disabilities Placemnt,321017              Nursing & Residential Care Homes,A,2023,4
244,Community and Housing,THE REGARD PARTNERSHIP LTD,985270,06-Jul-23,6126.52,0,63796,Learning Disabilities Placemnt,321017              Nursing & Residential Care Homes,A,2023,4
245,Community and Housing,THE REGARD PARTNERSHIP LTD,985377,06-Jul-23,4901.24,0,63796,Learning Disabilities Placemnt,321017              Nursing & Residential Care Homes,A,2023,4
246,Community and Housing,NAS SERVICES LIMITED,ACR4395290,03-Jul-23,1578,0,68929,Mental Health Placements,321100              Social Community Care Supplies & Services - Children,A,2023,4
247,Unassigned,LEE VALLEY REGIONAL PARK AUTH.,2.02307E+11,18-Jul-23,16448.72,0,70554,Lee Valley Regional Park,PRECEPT,A,2023,4
248,Unassigned,LOCAL GOVERNMENT ASSOCIATION,64007473,25-Jul-23,1258.8,209.8,71578,Governance & Oversight Cost,260000              Human Resources,A,2023,4
249,"Children, Schools and Family",ETHELBERT SPECIALIST HOMES LTD,LL/0423/27,10-Jul-23,4733.97,0,72942,Placements Under 18,321100              Social Community Care Supplies & Services - Children,A,2023,4
250,Corporate Services,NEC Software Solutions UK Limited,91475264,24-Jul-23,1320,220,72946,Local Land Charges,190000              Facilities & Management Services,A,2023,4
251,Community and Housing,CARETECH UK. LIMITED,100717,28-Jul-23,1952.4,325.4,74201,JMC  Day Centre,321000              Social Community Care Supplies & Services - Adult,A,2023,4
252,Community and Housing,BRANDON TRUST,985045,06-Jul-23,4054,0,76126,Learning Disabilities Placemnt,321017              Nursing & Residential Care Homes,A,2023,4
253,Unassigned,LONDON BOROUGH OF SUTTON,BAILIFF JUN 2023,13-Jul-23,100656.9,0,76615,Corporate Services,OLA,A,2023,4
254,Community and Housing,LONDON BOROUGH OF SUTTON,3190683633,21-Jul-23,6467,0,76615,PH - Adults Resources,OLA,A,2023,4
255,Unassigned,POST OFFICE LTD,MERTON23/24 PO8,13-Jul-23,19987.22,0,77066,Adults Social Care,200000              Financial Services,A,2023,4
256,Unassigned,POST OFFICE LTD,MERTON23/24PO9,25-Jul-23,12880.12,0,77066,Adults Social Care,200000              Financial Services,A,2023,4
257,Community and Housing,ABBEY HOUSE RESIDENTIAL HOMES,985046,06-Jul-23,4400,0,78937,Older People Placements - East,321017              Nursing & Residential Care Homes,A,2023,4
258,Community and Housing,ABBEY HOUSE RESIDENTIAL HOMES,985070,06-Jul-23,4400,0,78937,Older People Placements - East,321017              Nursing & Residential Care Homes,A,2023,4
259,Community and Housing,ABBEY HOUSE RESIDENTIAL HOMES,985072,06-Jul-23,5520,0,78937,Mental Health Placements,321017              Nursing & Residential Care Homes,A,2023,4
260,Community and Housing,ABBEY HOUSE RESIDENTIAL HOMES,985302,06-Jul-23,4700,0,78937,Older People Placements - East,321017              Nursing & Residential Care Homes,A,2023,4
261,"Children, Schools and Family",SOUTHWARK COUNCIL,10011084271,27-Jul-23,59055,0,81552,Fostering Recruit/Assessment,OLA,A,2023,4
262,Community and Housing,REDACTED PERSONAL DATA,989231,18-Jul-23,5499.68,0,81639,Older People Placements - East,DIRECT PAYMENTS,R,2023,4
263,Environment and Regeneration,S.GRUNDON (WASTE) LTD.,W158523,18-Jul-23,758.88,126.48,82593,Waste Disposal,180000              Environmental Services,A,2023,4
264,Unassigned,GREATER LONDON AUTHORITY,2.02307E+11,14-Jul-23,2996351,0,83050,Collection Fund,PRECEPT,A,2023,4
265,Unassigned,GREATER LONDON AUTHORITY,2.02307E+11,26-Jul-23,237524,0,83050,Collection Fund,PRECEPT,A,2023,4
266,Corporate Services,REDACTED PERSONAL DATA,INVJD192,12-Jul-23,3000,500,83383,SLLP - Disbursements,280000              Legal Services,R,2023,4
267,Unassigned,MALMESBURY PRIMARY SCHOOL,SCHOOLS 2324/4 A,07-Jul-23,279516.12,0,83593,Schools,170000              Education,A,2023,4
268,Community and Housing,YOUNG EPILEPSY,INV11182,19-Jul-23,40683.33,0,84094,Learning Disabilities Placemnt,170000              Education,A,2023,4
269,Community and Housing,YOUNG EPILEPSY,INV11401,24-Jul-23,21660.33,0,84094,Learning Disabilities Placemnt,170000              Education,A,2023,4
270,Environment and Regeneration,NEWSQUEST MEDIA GROUP LTD,43058269,24-Jul-23,3173.26,528.88,85566,Tr Man & Accid Sch,190000              Facilities & Management Services,A,2023,4
271,"Children, Schools and Family",NEWSQUEST MEDIA GROUP LTD,42617789,19-Jul-23,1800,300,85566,Fostering Recruit/Assessment,190000              Facilities & Management Services,A,2023,4
272,Environment and Regeneration,NEWSQUEST MEDIA GROUP LTD,42725381,06-Jul-23,3926.23,654.37,85566,CPZ Implementation & Consult,190000              Facilities & Management Services,A,2023,4
273,Environment and Regeneration,NEWSQUEST MEDIA GROUP LTD,42713796,11-Jul-23,693.22,115.54,85566,Development Control,190000              Facilities & Management Services,A,2023,4
274,Environment and Regeneration,NEWSQUEST MEDIA GROUP LTD,43107636,31-Jul-23,4840.56,806.76,85566,CPZ Implementation & Consult,190000              Facilities & Management Services,A,2023,4
275,Environment and Regeneration,NEWSQUEST MEDIA GROUP LTD,43107832,31-Jul-23,4195.15,699.19,85566,Tr Man & Accid Sch,190000              Facilities & Management Services,A,2023,4
276,Environment and Regeneration,NEWSQUEST MEDIA GROUP LTD,43140086,02-Aug-23,669.31,111.55,85566,Development Control,190000              Facilities & Management Services,A,2023,4
277,"Children, Schools and Family",NEWSQUEST MEDIA GROUP LTD,43063486,27-Jul-23,1800,300,85566,Fostering Recruit/Assessment,190000              Facilities & Management Services,A,2023,4
278,Community and Housing,LONDON AND QUADRANT HOUS. TRUST,QAGYINV027777,24-Jul-23,1681.67,0,87000,Meadowsweet Res Home,250000              Housing Management,A,2023,4
279,"Children, Schools and Family",CITY OF WESTMINSTER,3660091892,31-Jul-23,5500,0,89641,Head of Corporate Parenting,OLA,A,2023,4
280,Community and Housing,SUPREME CARE SERVICES LIMITED,85518,18-Jul-23,907.12,0,91840,Older People Placements - East,321000              Social Community Care Supplies & Services - Adult,A,2023,4
281,Community and Housing,SUPREME CARE SERVICES LIMITED,85759,24-Jul-23,3286.32,0,91840,Older People Placements - East,321000              Social Community Care Supplies & Services - Adult,A,2023,4
282,Community and Housing,SUPREME CARE SERVICES LIMITED,85703,25-Jul-23,2930.18,0,91840,Older People Placements - East,321000              Social Community Care Supplies & Services - Adult,A,2023,4
283,Community and Housing,SUPREME CARE SERVICES LIMITED,85765,25-Jul-23,3057.65,0,91840,Older People Placements - East,321000              Social Community Care Supplies & Services - Adult,A,2023,4
284,Community and Housing,SUPREME CARE SERVICES LIMITED,85764,25-Jul-23,591.11,0,91840,Older People Placements - East,321000              Social Community Care Supplies & Services - Adult,A,2023,4
285,Community and Housing,SUPREME CARE SERVICES LIMITED,85762,25-Jul-23,796.42,0,91840,Older People Placements - East,321000              Social Community Care Supplies & Services - Adult,A,2023,4
286,Community and Housing,SUPREME CARE SERVICES LIMITED,40014,28-Jul-23,3014.55,0,91840,Older People Placements - East,321000              Social Community Care Supplies & Services - Adult,A,2023,4
287,Community and Housing,SUPREME CARE SERVICES LIMITED,40018,31-Jul-23,3005.57,0,91840,Older People Placements - East,321000              Social Community Care Supplies & Services - Adult,A,2023,4
288,Community and Housing,SUPREME CARE SERVICES LIMITED,40017,31-Jul-23,1297.49,0,91840,Older People Placements - East,321000              Social Community Care Supplies & Services - Adult,A,2023,4
289,Community and Housing,SUPREME CARE SERVICES LIMITED,40016,31-Jul-23,925.52,0,91840,Older People Placements - East,321000              Social Community Care Supplies & Services - Adult,A,2023,4
290,Community and Housing,Libraries Connected,2980,13-Jul-23,567.6,94.6,92250,Media Fund,200000              Financial Services,A,2023,4
291,Community and Housing,THE GARWOOD FOUNDATION,MW.DFJUNE23,10-Jul-23,1062,0,92268,Older People Placements - East,321000              Social Community Care Supplies & Services - Adult,A,2023,4
292,Community and Housing,THE GARWOOD FOUNDATION,MW.DFJULY23,28-Jul-23,1121,0,92268,Older People Placements - East,321000              Social Community Care Supplies & Services - Adult,A,2023,4
293,Community and Housing,Allied Healthcare,264/1067679A/19,13-Jul-23,752.77,0,92896,Learning Disabilities Placemnt,321000              Social Community Care Supplies & Services - Adult,A,2023,4
294,Community and Housing,Allied Healthcare,264/1067679A/34,13-Jul-23,700.78,0,92896,Older People Placements - East,321000              Social Community Care Supplies & Services - Adult,A,2023,4
295,Community and Housing,Allied Healthcare,264/1067679A/33,13-Jul-23,1146.43,0,92896,Phys/Sens Placements - East,321000              Social Community Care Supplies & Services - Adult,A,2023,4
296,Community and Housing,Allied Healthcare,264/1067679A/44,13-Jul-23,1153.7,0,92896,Older People Placements - East,321000              Social Community Care Supplies & Services - Adult,A,2023,4
297,Community and Housing,Allied Healthcare,264/1067679A/45,13-Jul-23,1201.31,0,92896,Older People Placements - East,321000              Social Community Care Supplies & Services - Adult,A,2023,4
298,Community and Housing,Allied Healthcare,264/1067679A/21,13-Jul-23,821.66,0,92896,Older People Placements - East,321000              Social Community Care Supplies & Services - Adult,A,2023,4
299,Community and Housing,Allied Healthcare,264/1067679A/27,13-Jul-23,615.51,0,92896,Learning Disabilities Placemnt,321000              Social Community Care Supplies & Services - Adult,A,2023,4
300,Community and Housing,Allied Healthcare,264/1067679A/53,13-Jul-23,1483.87,0,92896,Older People Placements - East,321000              Social Community Care Supplies & Services - Adult,A,2023,4
301,Community and Housing,Allied Healthcare,264/1067679A/8,13-Jul-23,1177.12,0,92896,Older People Placements - East,321000              Social Community Care Supplies & Services - Adult,A,2023,4
302,Community and Housing,Allied Healthcare,264/1067679A/59,13-Jul-23,878.56,0,92896,Older People Placements - East,321000              Social Community Care Supplies & Services - Adult,A,2023,4
303,Community and Housing,Allied Healthcare,264/1067679A/1,13-Jul-23,1194.46,0,92896,Phys/Sens Placements - East,321000              Social Community Care Supplies & Services - Adult,A,2023,4
304,Community and Housing,Allied Healthcare,264/1067679A/37,13-Jul-23,2762.8,0,92896,Older People Placements - East,321000              Social Community Care Supplies & Services - Adult,A,2023,4
305,Community and Housing,Allied Healthcare,264/1067679A/29,13-Jul-23,2722.88,0,92896,Older People Placements - East,321000              Social Community Care Supplies & Services - Adult,A,2023,4
306,Community and Housing,Allied Healthcare,264/1067679A/23,13-Jul-23,1847.72,0,92896,Learning Disabilities Placemnt,321000              Social Community Care Supplies & Services - Adult,A,2023,4
307,Community and Housing,Allied Healthcare,264/1067679A/39,13-Jul-23,846.28,0,92896,Older People Placements - East,321000              Social Community Care Supplies & Services - Adult,A,2023,4
308,Community and Housing,Allied Healthcare,264/1067679A/25,13-Jul-23,2344.74,0,92896,Older People Placements - East,321000              Social Community Care Supplies & Services - Adult,A,2023,4
309,Community and Housing,Allied Healthcare,264/1067679A/24,13-Jul-23,561.87,0,92896,Learning Disabilities Placemnt,321000              Social Community Care Supplies & Services - Adult,A,2023,4
310,Community and Housing,Allied Healthcare,264/1067679A/52,13-Jul-23,3020.38,0,92896,Older People Placements - East,321000              Social Community Care Supplies & Services - Adult,A,2023,4
311,Community and Housing,Allied Healthcare,264/1067679A/40,13-Jul-23,1082.09,0,92896,Older People Placements - East,321000              Social Community Care Supplies & Services - Adult,A,2023,4
312,Community and Housing,Allied Healthcare,264/1067679A/13,13-Jul-23,1364.99,0,92896,Older People Placements - East,321000              Social Community Care Supplies & Services - Adult,A,2023,4
313,Community and Housing,Allied Healthcare,264/1067679A/47,13-Jul-23,2803.54,0,92896,Older People Placements - East,321000              Social Community Care Supplies & Services - Adult,A,2023,4
314,Community and Housing,Allied Healthcare,264/1067679A/32,13-Jul-23,2583.99,0,92896,Phys/Sens Placements - East,321000              Social Community Care Supplies & Services - Adult,A,2023,4
315,Community and Housing,Allied Healthcare,264/1067679A/57,13-Jul-23,1528.47,0,92896,Older People Placements - East,321000              Social Community Care Supplies & Services - Adult,A,2023,4
316,Community and Housing,Allied Healthcare,264/1067679A/36,13-Jul-23,585.66,0,92896,Older People Placements - East,321000              Social Community Care Supplies & Services - Adult,A,2023,4
317,Community and Housing,Allied Healthcare,264/1067679A/14,13-Jul-23,537.89,0,92896,Older People Placements - East,321000              Social Community Care Supplies & Services - Adult,A,2023,4
318,Community and Housing,Allied Healthcare,264/1067679A/42,13-Jul-23,841.27,0,92896,Older People Placements - East,321000              Social Community Care Supplies & Services - Adult,A,2023,4
319,Community and Housing,Allied Healthcare,264/1067679A/18,13-Jul-23,820.25,0,92896,Older People Placements - East,321000              Social Community Care Supplies & Services - Adult,A,2023,4
320,Community and Housing,Allied Healthcare,264/1067679A/9,13-Jul-23,3332.65,0,92896,Older People Placements - East,321000              Social Community Care Supplies & Services - Adult,A,2023,4
321,Community and Housing,Allied Healthcare,264/1067679A/51,13-Jul-23,3152.19,0,92896,Older People Placements - East,321000              Social Community Care Supplies & Services - Adult,A,2023,4
322,Community and Housing,Allied Healthcare,264/1067679A/56,13-Jul-23,838.1,0,92896,Older People Placements - East,321000              Social Community Care Supplies & Services - Adult,A,2023,4
323,Community and Housing,Allied Healthcare,264/1067679A/46,13-Jul-23,671.48,0,92896,Older People Placements - East,321000              Social Community Care Supplies & Services - Adult,A,2023,4
324,Community and Housing,Allied Healthcare,264/1067679A/55,13-Jul-23,3161.79,0,92896,Older People Placements - East,321000              Social Community Care Supplies & Services - Adult,A,2023,4
325,Community and Housing,Allied Healthcare,264/1067679A/49,13-Jul-23,1141.57,0,92896,Older People Placements - East,321000              Social Community Care Supplies & Services - Adult,A,2023,4
326,Community and Housing,Allied Healthcare,264/1067679A/10,13-Jul-23,2355.03,0,92896,Older People Placements - East,321000              Social Community Care Supplies & Services - Adult,A,2023,4
327,Community and Housing,Allied Healthcare,264/1067679A/20,13-Jul-23,1111.91,0,92896,Older People Placements - East,321000              Social Community Care Supplies & Services - Adult,A,2023,4
328,Community and Housing,Allied Healthcare,264/1067679A/5,13-Jul-23,841.73,0,92896,Older People Placements - East,321000              Social Community Care Supplies & Services - Adult,A,2023,4
329,Community and Housing,Allied Healthcare,RF/264/1067681,25-Jul-23,776.71,0,92896,Learning Disabilities Placemnt,321000              Social Community Care Supplies & Services - Adult,A,2023,4
330,Community and Housing,CARE MANAGEMENT GROUP,985026,06-Jul-23,4593.88,0,93533,Mental Health Placements,321017              Nursing & Residential Care Homes,A,2023,4
331,Community and Housing,CARE MANAGEMENT GROUP,985097,06-Jul-23,6279.2,0,93533,Learning Disabilities Placemnt,321017              Nursing & Residential Care Homes,A,2023,4
332,Community and Housing,CARE MANAGEMENT GROUP,985201,06-Jul-23,5936.6,0,93533,Learning Disabilities Placemnt,321017              Nursing & Residential Care Homes,A,2023,4
333,Community and Housing,CARE MANAGEMENT GROUP,985251,06-Jul-23,8733.64,0,93533,Phys/Sens Placements - East,321017              Nursing & Residential Care Homes,A,2023,4
334,Community and Housing,CARE MANAGEMENT GROUP,985282,06-Jul-23,7712.12,0,93533,Learning Disabilities Placemnt,321017              Nursing & Residential Care Homes,A,2023,4
335,Community and Housing,CARE MANAGEMENT GROUP,985407,06-Jul-23,7974.36,0,93533,Learning Disabilities Placemnt,321017              Nursing & Residential Care Homes,A,2023,4
336,Community and Housing,CARE MANAGEMENT GROUP,397000729,07-Jul-23,4961.72,0,93533,Learning Disabilities Placemnt,321017              Nursing & Residential Care Homes,A,2023,4
337,Community and Housing,CARE MANAGEMENT GROUP,397000739,10-Jul-23,4961.72,0,93533,Learning Disabilities Placemnt,321017              Nursing & Residential Care Homes,A,2023,4
338,Community and Housing,CARE MANAGEMENT GROUP,613000669,10-Jul-23,6353.48,0,93533,Learning Disabilities Placemnt,321017              Nursing & Residential Care Homes,A,2023,4
339,Community and Housing,CARE MANAGEMENT GROUP,255001515,10-Jul-23,8725.64,0,93533,Learning Disabilities Placemnt,321017              Nursing & Residential Care Homes,A,2023,4
340,Community and Housing,A AND R CARE LTD,985088,06-Jul-23,3300,0,94357,Older People Placements - East,321017              Nursing & Residential Care Homes,A,2023,4
341,Community and Housing,A AND R CARE LTD,985211,06-Jul-23,3763.24,0,94357,Older People Placements - East,321017              Nursing & Residential Care Homes,A,2023,4
342,Community and Housing,A AND R CARE LTD,985342,06-Jul-23,3400,0,94357,Older People Placements - East,321017              Nursing & Residential Care Homes,A,2023,4
343,Community and Housing,A AND R CARE LTD,985380,06-Jul-23,4800,0,94357,Older People Placements - East,321017              Nursing & Residential Care Homes,A,2023,4
344,Community and Housing,A AND R CARE LTD,985435,06-Jul-23,3824.32,0,94357,Phys/Sens Placements - East,321017              Nursing & Residential Care Homes,A,2023,4
345,Community and Housing,A AND R CARE LTD,985438,06-Jul-23,1050,0,94357,Older People Placements - East,321017              Nursing & Residential Care Homes,A,2023,4
346,Community and Housing,JCDECAUX UNITED KINGDOM,SF/I228203,31-Jul-23,740.4,123.4,94678,Libraries Service-Civic Centre,190000              Facilities & Management Services,A,2023,4
347,"Children, Schools and Family",CARERS SUPPORT MERTON,463,21-Jul-23,18750,0,95795, Centralised Commiss Services,290000              Arts & Leisure Services,A,2023,4
348,Community and Housing,CARERS SUPPORT MERTON,CDGS,19-Jul-23,15000,0,95795,Grants to Voluntary Orgs,290000              Arts & Leisure Services,A,2023,4
349,Community and Housing,CARERS SUPPORT MERTON,CEV ADD CDGS,19-Jul-23,15000,0,95795,Covid-19 Clinical E Vulnerable,290000              Arts & Leisure Services,A,2023,4
350,"Children, Schools and Family",COMMONSIDE COMMUNITY DEV TRUST,HAFSUM-UPFRONT,20-Jul-23,2000,0,95839,Holiday Act Food Prog grntfnd,321000              Social Community Care Supplies & Services - Adult,A,2023,4
351,Community and Housing,Aspens Charities Ltd,985230,06-Jul-23,8909.92,0,96019,Learning Disabilities Placemnt,321017              Nursing & Residential Care Homes,A,2023,4
352,Community and Housing,REDACTED PERSONAL DATA,989094,18-Jul-23,4260.16,0,96859,Learning Disabilities Placemnt,DIRECT PAYMENTS,R,2023,4
353,Community and Housing,THE ABBEYFIELD SOCIETY,985361,06-Jul-23,4000,0,97539,Older People Placements - East,321000              Social Community Care Supplies & Services - Adult,A,2023,4
354,Community and Housing,EL-SHADDAI,994805,24-Jul-23,1052.08,0,97709,MH Housing Support Placements,321000              Social Community Care Supplies & Services - Adult,A,2023,4
355,Community and Housing,EL-SHADDAI,994824,24-Jul-23,780.68,0,97709,Phys/Sens Placements - East,321000              Social Community Care Supplies & Services - Adult,A,2023,4
356,Community and Housing,EL-SHADDAI,994828,24-Jul-23,1315.04,0,97709,Learning Disabilities Placemnt,321000              Social Community Care Supplies & Services - Adult,A,2023,4
357,Community and Housing,EL-SHADDAI,994835,24-Jul-23,1052.08,0,97709,Learning Disabilities Placemnt,321000              Social Community Care Supplies & Services - Adult,A,2023,4
358,Community and Housing,EL-SHADDAI,994797,26-Jul-23,2240,0,97709,Hospital To Home,321000              Social Community Care Supplies & Services - Adult,A,2023,4
359,Community and Housing,Rosenmanor Ltd,985223,06-Jul-23,2924.24,0,97808,Mental Health Placements,321017              Nursing & Residential Care Homes,A,2023,4
360,Environment and Regeneration,MERTON COMMUNITY TRANSPORT,17217,18-Jul-23,6389.55,0,98164,Passenger Transport,360000              Passenger Transport,A,2023,4
361,Community and Housing,MERTON COMMUNITY TRANSPORT,17211,19-Jul-23,1310.4,218.4,98164,Learning Disabilities Placemnt,360000              Passenger Transport,A,2023,4
362,Community and Housing,MERTON COMMUNITY TRANSPORT,17195,19-Jul-23,1731.6,288.6,98164,Learning Disabilities Placemnt,360000              Passenger Transport,A,2023,4
363,Unassigned,BEECHOLME PRIMARY ACADEMY,SCHOOLS 2324/4 A,07-Jul-23,6636,0,98168,Schools,170000              Education,A,2023,4
364,"Children, Schools and Family",Evolve Housing + Support,3327,10-Jul-23,2811.34,0,98536,UASC LAC Under 18,321000              Social Community Care Supplies & Services - Adult,A,2023,4
365,"Children, Schools and Family",Evolve Housing + Support,3328,10-Jul-23,1581,0,98536,UASC LAC Under 18,321000              Social Community Care Supplies & Services - Adult,A,2023,4
366,"Children, Schools and Family",Evolve Housing + Support,3348,10-Jul-23,1054,0,98536,UASC LAC Under 18,321000              Social Community Care Supplies & Services - Adult,A,2023,4
367,"Children, Schools and Family",Evolve Housing + Support,3350,14-Jul-23,1282.92,0,98536,UASC Care Leavers Over 18,321000              Social Community Care Supplies & Services - Adult,A,2023,4
368,Community and Housing,ROYAL MENCAP SOCIETY,3760573,14-Jul-23,2290.96,0,98713,Learning Disabilities Placemnt,321000              Social Community Care Supplies & Services - Adult,A,2023,4
369,Community and Housing,ROYAL MENCAP SOCIETY,3760574,14-Jul-23,2613.96,0,98713,Learning Disabilities Placemnt,321000              Social Community Care Supplies & Services - Adult,A,2023,4
370,Unassigned,WEST WIMBLEDON PRIMARY SCHOOL,SCHOOLS 2324/4 A,07-Jul-23,256044.69,0,101674,Schools,170000              Education,A,2023,4
371,Community and Housing,HILLDALE AND NORTHVIEW,985182,06-Jul-23,2072.52,0,103592,Older People Placements - East,321000              Social Community Care Supplies & Services - Adult,A,2023,4
372,Community and Housing,BUPA CARE HOMES,984977,04-Jul-23,18560.72,0,105027,Older People Placements - East,321017              Nursing & Residential Care Homes,A,2023,4
373,Community and Housing,BUPA CARE HOMES,985051,06-Jul-23,3154.12,0,105027,Older People Placements - East,321017              Nursing & Residential Care Homes,A,2023,4
374,Community and Housing,BUPA CARE HOMES,985060,06-Jul-23,3289.24,0,105027,Older People Placements - East,321017              Nursing & Residential Care Homes,A,2023,4
375,Community and Housing,BUPA CARE HOMES,985073,06-Jul-23,3289.24,0,105027,Older People Placements - East,321017              Nursing & Residential Care Homes,A,2023,4
376,Community and Housing,BUPA CARE HOMES,985087,06-Jul-23,3154.12,0,105027,Older People Placements - East,321017              Nursing & Residential Care Homes,A,2023,4
377,Community and Housing,BUPA CARE HOMES,985141,06-Jul-23,3289.24,0,105027,Older People Placements - East,321017              Nursing & Residential Care Homes,A,2023,4
378,Community and Housing,BUPA CARE HOMES,985155,06-Jul-23,3154.12,0,105027,Older People Placements - East,321017              Nursing & Residential Care Homes,A,2023,4
379,Community and Housing,BUPA CARE HOMES,985185,06-Jul-23,3289.24,0,105027,Older People Placements - East,321017              Nursing & Residential Care Homes,A,2023,4
380,Community and Housing,BUPA CARE HOMES,985247,06-Jul-23,3289.24,0,105027,Older People Placements - East,321017              Nursing & Residential Care Homes,A,2023,4
381,Community and Housing,BUPA CARE HOMES,985271,06-Jul-23,3289.24,0,105027,Older People Placements - East,321017              Nursing & Residential Care Homes,A,2023,4
382,Community and Housing,BUPA CARE HOMES,985274,06-Jul-23,3154.12,0,105027,Older People Placements - East,321017              Nursing & Residential Care Homes,A,2023,4
383,Community and Housing,BUPA CARE HOMES,985281,06-Jul-23,3289.24,0,105027,Older People Placements - East,321017              Nursing & Residential Care Homes,A,2023,4
384,Community and Housing,BUPA CARE HOMES,985314,06-Jul-23,3289.24,0,105027,Older People Placements - East,321017              Nursing & Residential Care Homes,A,2023,4
385,Community and Housing,BUPA CARE HOMES,985322,06-Jul-23,4363.16,0,105027,Phys/Sens Placements - East,321017              Nursing & Residential Care Homes,A,2023,4
386,Community and Housing,BUPA CARE HOMES,985330,06-Jul-23,3289.24,0,105027,Older People Placements - East,321017              Nursing & Residential Care Homes,A,2023,4
387,Community and Housing,BUPA CARE HOMES,985336,06-Jul-23,3569.4,0,105027,Older People Placements - East,321017              Nursing & Residential Care Homes,A,2023,4
388,Community and Housing,BUPA CARE HOMES,985352,06-Jul-23,3289.24,0,105027,Mental Health Placements,321017              Nursing & Residential Care Homes,A,2023,4
389,Community and Housing,BUPA CARE HOMES,985371,06-Jul-23,3154.12,0,105027,Older People Placements - East,321017              Nursing & Residential Care Homes,A,2023,4
390,Community and Housing,BUPA CARE HOMES,985392,06-Jul-23,3289.24,0,105027,Older People Placements - East,321017              Nursing & Residential Care Homes,A,2023,4
391,Community and Housing,BUPA CARE HOMES,985400,06-Jul-23,3289.24,0,105027,Older People Placements - East,321017              Nursing & Residential Care Homes,A,2023,4
392,Community and Housing,BUPA CARE HOMES,985421,06-Jul-23,3289.23,0,105027,Older People Placements - East,321017              Nursing & Residential Care Homes,A,2023,4
393,Community and Housing,BUPA CARE HOMES,985434,06-Jul-23,3289.24,0,105027,Older People Placements - East,321017              Nursing & Residential Care Homes,A,2023,4
394,Community and Housing,BUPA CARE HOMES,985458,06-Jul-23,3154.12,0,105027,Older People Placements - East,321017              Nursing & Residential Care Homes,A,2023,4
395,Community and Housing,BUPA CARE HOMES,997772,27-Jul-23,4346.5,0,105027,Older People Placements - East,321017              Nursing & Residential Care Homes,A,2023,4
396,Community and Housing,REDACTED PERSONAL DATA,989409,18-Jul-23,2689.24,0,105300,Learning Disabilities Placemnt,DIRECT PAYMENTS,R,2023,4
397,Capital,ASCENDIT LIFTS LTD,40210,13-Jul-23,2605,0,107196,Disabled Facilities Grant,"390000              Works - Construction, Repair & Maintenance",A,2023,4
398,Community and Housing,REDACTED PERSONAL DATA,994792,24-Jul-23,789.04,0,110403,MH Housing Support Placements,321000              Social Community Care Supplies & Services - Adult,R,2023,4
399,Community and Housing,REDACTED PERSONAL DATA,994794,24-Jul-23,1052.04,0,110403,Learning Disabilities Placemnt,321000              Social Community Care Supplies & Services - Adult,R,2023,4
400,Community and Housing,REDACTED PERSONAL DATA,994796,24-Jul-23,780.68,0,110403,MH Housing Support Placements,321000              Social Community Care Supplies & Services - Adult,R,2023,4
401,Community and Housing,REDACTED PERSONAL DATA,994807,24-Jul-23,780.68,0,110403,MH Housing Support Placements,321000              Social Community Care Supplies & Services - Adult,R,2023,4
402,Community and Housing,REDACTED PERSONAL DATA,994808,24-Jul-23,789.04,0,110403,MH Housing Support Placements,321000              Social Community Care Supplies & Services - Adult,R,2023,4
403,Community and Housing,REDACTED PERSONAL DATA,994812,24-Jul-23,1052.08,0,110403,Phys/Sens Placements - East,321000              Social Community Care Supplies & Services - Adult,R,2023,4
404,Community and Housing,REDACTED PERSONAL DATA,994814,24-Jul-23,1586.16,0,110403,Mental Health Placements,321000              Social Community Care Supplies & Services - Adult,R,2023,4
405,Community and Housing,REDACTED PERSONAL DATA,994818,24-Jul-23,780.68,0,110403,MH Housing Support Placements,321000              Social Community Care Supplies & Services - Adult,R,2023,4
406,Community and Housing,REDACTED PERSONAL DATA,994821,24-Jul-23,1040.92,0,110403,Mental Health Placements,321000              Social Community Care Supplies & Services - Adult,R,2023,4
407,Community and Housing,REDACTED PERSONAL DATA,994831,24-Jul-23,780.68,0,110403,MH Housing Support Placements,321000              Social Community Care Supplies & Services - Adult,R,2023,4
408,Community and Housing,REDACTED PERSONAL DATA,994832,24-Jul-23,780.68,0,110403,Mental Health Placements,321000              Social Community Care Supplies & Services - Adult,R,2023,4
409,Community and Housing,REDACTED PERSONAL DATA,994833,24-Jul-23,520.48,0,110403,MH Housing Support Placements,321000              Social Community Care Supplies & Services - Adult,R,2023,4
410,Community and Housing,REDACTED PERSONAL DATA,994801,24-Jul-23,780.68,0,110406,LD Housing Support Placements,321000              Social Community Care Supplies & Services - Adult,R,2023,4
411,"Children, Schools and Family",REDACTED PERSONAL DATA,987733,07-Jul-23,514.26,0,111277,Placements Under 18,321100              Social Community Care Supplies & Services - Children,R,2023,4
412,"Children, Schools and Family",REDACTED PERSONAL DATA,989706,14-Jul-23,514.26,0,111277,Placements Under 18,321100              Social Community Care Supplies & Services - Children,R,2023,4
413,"Children, Schools and Family",REDACTED PERSONAL DATA,994449,21-Jul-23,514.26,0,111277,Placements Under 18,321100              Social Community Care Supplies & Services - Children,R,2023,4
414,"Children, Schools and Family",REDACTED PERSONAL DATA,998580,31-Jul-23,714.26,0,111277,Placements Under 18,321100              Social Community Care Supplies & Services - Children,R,2023,4
415,"Children, Schools and Family",REDACTED PERSONAL DATA,998631,31-Jul-23,663.29,0,111277,Placements Under 18,321100              Social Community Care Supplies & Services - Children,R,2023,4
416,Environment and Regeneration,ANDREW SCOTT ROBERTSON,15460RRC,11-Jul-23,900,150,111834,Parking - Car Parks,150000              Consultancy,A,2023,4
417,Environment and Regeneration,ANDREW SCOTT ROBERTSON,15463LRC,17-Jul-23,7032,1172,111834,Property Mgt & Review,150000              Consultancy,A,2023,4
418,Community and Housing,CHARTERED INST.OF ENVIR.HEALTH,PS021224,10-Jul-23,960,160,112693,Hsg. Env. Health (Enforcement),200000              Financial Services,A,2023,4
419,Community and Housing,CHARTERED INST.OF ENVIR.HEALTH,PS021225,10-Jul-23,960,160,112693,Hsg. Env. Health (Enforcement),200000              Financial Services,A,2023,4
420,Community and Housing,MEADBANK NURSING CENTRE,985432,06-Jul-23,2995.28,0,113139,Older People Placements - East,321017              Nursing & Residential Care Homes,A,2023,4
421,Community and Housing,REDACTED PERSONAL DATA,989217,18-Jul-23,14250.44,0,113331,Learning Disabilities Placemnt,DIRECT PAYMENTS,R,2023,4
422,"Children, Schools and Family",JIGSAW4U,3119,21-Jul-23,18750,0,113501, Centralised Commiss Services,321100              Social Community Care Supplies & Services - Children,A,2023,4
423,"Children, Schools and Family",JIGSAW4U,3139,31-Jul-23,1020,0,113501,PupilPremium- Virtual School,321100              Social Community Care Supplies & Services - Children,A,2023,4
424,Community and Housing,MIHOMECARE LIMITED,LIVE1W-M70442,24-Jul-23,1368.5,0,114370,Learning Disabilities Placemnt,321000              Social Community Care Supplies & Services - Adult,A,2023,4
425,Community and Housing,MIHOMECARE LIMITED,LIVE1W-M70441,24-Jul-23,1237.6,0,114370,Learning Disabilities Placemnt,321000              Social Community Care Supplies & Services - Adult,A,2023,4
426,Community and Housing,MIHOMECARE LIMITED,LIVE1W - 270118,14-Jul-23,1368.5,0,114370,Learning Disabilities Placemnt,321000              Social Community Care Supplies & Services - Adult,A,2023,4
427,Community and Housing,MIHOMECARE LIMITED,LIVE1W-270171,25-Jul-23,1368.5,0,114370,Learning Disabilities Placemnt,321000              Social Community Care Supplies & Services - Adult,A,2023,4
428,Community and Housing,MIHOMECARE LIMITED,LIVE1W270129,14-Jul-23,1368.5,0,114370,Learning Disabilities Placemnt,321000              Social Community Care Supplies & Services - Adult,A,2023,4
429,Community and Housing,MIHOMECARE LIMITED,LIVE1W 270137,18-Jul-23,1368.5,0,114370,Learning Disabilities Placemnt,321000              Social Community Care Supplies & Services - Adult,A,2023,4
430,Community and Housing,MIHOMECARE LIMITED,LIVE1W-270214,02-Aug-23,1368.5,0,114370,Learning Disabilities Placemnt,321000              Social Community Care Supplies & Services - Adult,A,2023,4
431,Community and Housing,MIHOMECARE LIMITED,LIVE1W-270213,02-Aug-23,1368.5,0,114370,Older People Placements - East,321000              Social Community Care Supplies & Services - Adult,A,2023,4
432,Community and Housing,REDACTED PERSONAL DATA,994802,24-Jul-23,780.68,0,114970,MH Housing Support Placements,321000              Social Community Care Supplies & Services - Adult,R,2023,4
433,Community and Housing,REDACTED PERSONAL DATA,994804,24-Jul-23,1857.56,0,114970,Mental Health Placements,321000              Social Community Care Supplies & Services - Adult,R,2023,4
434,Community and Housing,REDACTED PERSONAL DATA,994826,24-Jul-23,1052.08,0,114970,MH Housing Support Placements,321000              Social Community Care Supplies & Services - Adult,R,2023,4
435,Community and Housing,REDACTED PERSONAL DATA,994838,24-Jul-23,1586.2,0,114970,Mental Health Placements,321000              Social Community Care Supplies & Services - Adult,R,2023,4
436,Community and Housing,REDACTED PERSONAL DATA,994815,26-Jul-23,631.99,0,114970,Hospital To Home,321000              Social Community Care Supplies & Services - Adult,R,2023,4
437,Community and Housing,ASTRA HOMES,EC/36/23,11-Jul-23,2071.68,0,114991,Mental Health Placements,321000              Social Community Care Supplies & Services - Adult,A,2023,4
438,Community and Housing,ASTRA HOMES,AK/35/23,11-Jul-23,2034.24,0,114991,Mental Health Placements,321000              Social Community Care Supplies & Services - Adult,A,2023,4
439,Community and Housing,ASTRA HOMES,AK/36/23,11-Jul-23,2034.24,0,114991,Mental Health Placements,321000              Social Community Care Supplies & Services - Adult,A,2023,4
440,Community and Housing,ASTRA HOMES,GB/35/23,11-Jul-23,1978.12,0,114991,Mental Health Placements,321000              Social Community Care Supplies & Services - Adult,A,2023,4
441,Community and Housing,ASTRA HOMES,GB/36/23,11-Jul-23,1978.12,0,114991,Mental Health Placements,321000              Social Community Care Supplies & Services - Adult,A,2023,4
442,Community and Housing,ASTRA HOMES,EC/35/23,24-Jul-23,2071.68,0,114991,Mental Health Placements,321000              Social Community Care Supplies & Services - Adult,A,2023,4
443,Corporate Services,AFC WIMBLEDON LIMITED,2109,20-Jul-23,4680,780,117665,Marketing & Communication,190000              Facilities & Management Services,A,2023,4
444,Community and Housing,GRANGE COTTAGE LIMITED,985096,06-Jul-23,2680,0,117931,Older People Placements - East,321017              Nursing & Residential Care Homes,A,2023,4
445,Community and Housing,GRANGE COTTAGE LIMITED,985152,06-Jul-23,2680,0,117931,Older People Placements - East,321017              Nursing & Residential Care Homes,A,2023,4
446,Community and Housing,GRANGE COTTAGE LIMITED,985157,06-Jul-23,3200,0,117931,Older People Placements - East,321017              Nursing & Residential Care Homes,A,2023,4
447,Community and Housing,GRANGE COTTAGE LIMITED,985267,06-Jul-23,3600,0,117931,Older People Placements - East,321017              Nursing & Residential Care Homes,A,2023,4
448,Community and Housing,GRANGE COTTAGE LIMITED,985356,06-Jul-23,2680,0,117931,Older People Placements - East,321017              Nursing & Residential Care Homes,A,2023,4
449,Community and Housing,REDACTED PERSONAL DATA,994799,24-Jul-23,789.04,0,117970,MH Housing Support Placements,321000              Social Community Care Supplies & Services - Adult,R,2023,4
450,Community and Housing,REDACTED PERSONAL DATA,994809,24-Jul-23,1052.08,0,117970,Mental Health Placements,321000              Social Community Care Supplies & Services - Adult,R,2023,4
451,Community and Housing,REDACTED PERSONAL DATA,994822,24-Jul-23,1352.67,0,117970,Mental Health Placements,321000              Social Community Care Supplies & Services - Adult,R,2023,4
452,Community and Housing,L'ARCHE,985384,06-Jul-23,3050.24,0,118483,Learning Disabilities Placemnt,321017              Nursing & Residential Care Homes,A,2023,4
453,Community and Housing,Alexander House c/o Keychange Charity,985113,06-Jul-23,3100,0,119109,Older People Placements - East,321017              Nursing & Residential Care Homes,A,2023,4
454,Community and Housing,Alexander House c/o Keychange Charity,985169,06-Jul-23,6600,0,119109,Older People Placements - East,321017              Nursing & Residential Care Homes,A,2023,4
455,Community and Housing,Alexander House c/o Keychange Charity,985186,06-Jul-23,3220.32,0,119109,Older People Placements - East,321017              Nursing & Residential Care Homes,A,2023,4
456,Community and Housing,Alexander House c/o Keychange Charity,985394,06-Jul-23,4000,0,119109,Older People Placements - East,321017              Nursing & Residential Care Homes,A,2023,4
457,Community and Housing,Alexander House c/o Keychange Charity,985446,06-Jul-23,3840,0,119109,Older People Placements - East,321017              Nursing & Residential Care Homes,A,2023,4
458,Environment and Regeneration,Flowbird Smart City UK Ltd,UK163725,31-Jul-23,698.4,116.4,119359,On Street Parking,350000              Street & Traffic Management,A,2023,4
459,Environment and Regeneration,KINGDOM SECURITY LTD,SER-00044961INV,24-Jul-23,14300.64,2383.42,123458,Vestry Hall,260000              Human Resources,A,2023,4
460,Environment and Regeneration,KINGDOM SECURITY LTD,SER-00044960MY,24-Jul-23,1056.57,176.11,123458,EDS2,260000              Human Resources,A,2023,4
461,Community and Housing,REDACTED PERSONAL DATA,989153,18-Jul-23,1334.84,0,124097,Older People Placements - East,DIRECT PAYMENTS,R,2023,4
462,Community and Housing,UNITED RESPONSE,985068,06-Jul-23,7605.02,1267.5,125227,Learning Disabilities Placemnt,321000              Social Community Care Supplies & Services - Adult,A,2023,4
463,Community and Housing,UNITED RESPONSE,985122,06-Jul-23,7605.02,1267.5,125227,Learning Disabilities Placemnt,321000              Social Community Care Supplies & Services - Adult,A,2023,4
464,Community and Housing,UNITED RESPONSE,985176,06-Jul-23,7605.02,1267.5,125227,Learning Disabilities Placemnt,321000              Social Community Care Supplies & Services - Adult,A,2023,4
465,Community and Housing,UNITED RESPONSE,985219,06-Jul-23,7605.02,1267.5,125227,Learning Disabilities Placemnt,321000              Social Community Care Supplies & Services - Adult,A,2023,4
466,Community and Housing,UNITED RESPONSE,985332,06-Jul-23,7605.02,1267.5,125227,Learning Disabilities Placemnt,321000              Social Community Care Supplies & Services - Adult,A,2023,4
467,Community and Housing,REDACTED PERSONAL DATA,989145,18-Jul-23,920.76,0,125642,Phys/Sens Placements - East,DIRECT PAYMENTS,R,2023,4
468,Community and Housing,REDACTED PERSONAL DATA,989326,18-Jul-23,835.52,0,126189,Older People Placements - East,DIRECT PAYMENTS,R,2023,4
469,Community and Housing,REDACTED PERSONAL DATA,989099,18-Jul-23,668.24,0,127266,Phys/Sens Placements - East,DIRECT PAYMENTS,R,2023,4
470,"Children, Schools and Family",REDACTED PERSONAL DATA,998554,31-Jul-23,663.29,0,128736,Placements Under 18,321100              Social Community Care Supplies & Services - Children,R,2023,4
471,Community and Housing,BUPA CARE HOMES,985067,06-Jul-23,6096.36,0,130491,Phys/Sens Placements - East,321017              Nursing & Residential Care Homes,A,2023,4
472,Community and Housing,BUPA CARE HOMES,985178,06-Jul-23,6050.76,0,130491,Phys/Sens Placements - East,321017              Nursing & Residential Care Homes,A,2023,4
473,Unassigned,Evans Cycles Limited,HOPSI4485453,20-Jul-23,629,104.83,133082,Corporate Accountancy,260000              Human Resources,A,2023,4
474,Community and Housing,VOYAGE CARE LTD,985145,06-Jul-23,6460.92,0,133700,Learning Disabilities Placemnt,321017              Nursing & Residential Care Homes,A,2023,4
475,Community and Housing,VOYAGE CARE LTD,985255,06-Jul-23,7721.6,0,133700,Learning Disabilities Placemnt,321017              Nursing & Residential Care Homes,A,2023,4
476,Community and Housing,VOYAGE CARE LTD,985329,06-Jul-23,7799.4,0,133700,Learning Disabilities Placemnt,321017              Nursing & Residential Care Homes,A,2023,4
477,Unassigned,RED KITE CONSERVATION SERVICES,RK1210,01-Aug-23,1032,172,134026,Mitcham Common Conservators,"390000              Works - Construction, Repair & Maintenance",A,2023,4
478,Community and Housing,HOMECARE SERVICES LTD,29095,14-Jul-23,5474,0,134594,Phys/Sens Placements - East,321100              Social Community Care Supplies & Services - Children,A,2023,4
479,Community and Housing,POSTURITE (UK),INV1122317,02-Aug-23,996,166,134719,Libraries Service-Civic Centre,210000              Furniture & Soft Furnishings,A,2023,4
480,"Children, Schools and Family",POSTURITE (UK),INV1098082,31-Jul-23,1177.62,196.27,134719,Contextual Safeguarding,210000              Furniture & Soft Furnishings,A,2023,4
481,Community and Housing,Sunrise Rehabilitation Centre,985054,06-Jul-23,5213.88,0,135093,Learning Disabilities Placemnt,321017              Nursing & Residential Care Homes,A,2023,4
482,Community and Housing,Sunrise Rehabilitation Centre,985083,06-Jul-23,5213.88,0,135093,Learning Disabilities Placemnt,321017              Nursing & Residential Care Homes,A,2023,4
483,Community and Housing,Sunrise Rehabilitation Centre,985252,06-Jul-23,5161.52,0,135093,Learning Disabilities Placemnt,321017              Nursing & Residential Care Homes,A,2023,4
484,Community and Housing,Sunrise Rehabilitation Centre,985372,06-Jul-23,5043.72,0,135093,Learning Disabilities Placemnt,321017              Nursing & Residential Care Homes,A,2023,4
485,Community and Housing,Sunrise Rehabilitation Centre,985374,06-Jul-23,5174.6,0,135093,Learning Disabilities Placemnt,321017              Nursing & Residential Care Homes,A,2023,4
486,Community and Housing,Sunrise Rehabilitation Centre,985391,06-Jul-23,5213.88,0,135093,Learning Disabilities Placemnt,321017              Nursing & Residential Care Homes,A,2023,4
487,Community and Housing,Sunrise Rehabilitation Centre,985444,06-Jul-23,6102,0,135093,Learning Disabilities Placemnt,321017              Nursing & Residential Care Homes,A,2023,4
488,Community and Housing,Sunrise Rehabilitation Centre,985463,06-Jul-23,4363.08,0,135093,Learning Disabilities Placemnt,321017              Nursing & Residential Care Homes,A,2023,4
489,Corporate Services,GovNet Communications,SI00004824,03-Aug-23,852,142,135155,Learning and Development,260000              Human Resources,A,2023,4
490,Community and Housing,SW LONDON ST GEORGES NHS TRUST,P0071071,11-Jul-23,1846.8,0,135195,Mental Health Placements,310000              Healthcare,A,2023,4
491,Community and Housing,SW LONDON ST GEORGES NHS TRUST,P0071071LZ,11-Jul-23,1846.8,0,135195,Mental Health Placements,310000              Healthcare,A,2023,4
492,Community and Housing,SW LONDON ST GEORGES NHS TRUST,P0071071MM,11-Jul-23,1846.8,0,135195,Mental Health Placements,310000              Healthcare,A,2023,4
493,Community and Housing,SW LONDON ST GEORGES NHS TRUST,P0071071MR,11-Jul-23,1846.8,0,135195,Mental Health Placements,310000              Healthcare,A,2023,4
494,Community and Housing,SW LONDON ST GEORGES NHS TRUST,P0071071PJ,11-Jul-23,1846.8,0,135195,Mental Health Placements,310000              Healthcare,A,2023,4
495,Community and Housing,SW LONDON ST GEORGES NHS TRUST,P0071071SC,11-Jul-23,1846.8,0,135195,Mental Health Placements,310000              Healthcare,A,2023,4
496,Community and Housing,SW LONDON ST GEORGES NHS TRUST,P0071071-VOIDS,11-Jul-23,5589.6,0,135195,Learning Disabilities Placemnt,310000              Healthcare,A,2023,4
497,"Children, Schools and Family",MERTON VISION,INV1958,07-Jul-23,8276.29,0,135428,Sensory Team,260000              Human Resources,A,2023,4
498,Corporate Services,Lbox Communications (Beta Dist.South),337056,31-Jul-23,9623.89,1603.98,135590,Printing,190000              Facilities & Management Services,A,2023,4
499,Community and Housing,REDACTED PERSONAL DATA,989281,18-Jul-23,1420,0,135784,Phys/Sens Placements - East,DIRECT PAYMENTS,R,2023,4
500,Community and Housing,VITALISE,990974,18-Jul-23,2201,0,135823,Older People Placements - East,321017              Nursing & Residential Care Homes,A,2023,4
501,Community and Housing,CROYDON HEALTH SERV. NHS TRUST,76683566,05-Jul-23,15224.23,0,136074,PH - Sexual Health,310000              Healthcare,A,2023,4
502,Community and Housing,REDACTED PERSONAL DATA,989118,18-Jul-23,1078,0,139365,Phys/Sens Placements - East,DIRECT PAYMENTS,R,2023,4
503,Community and Housing,REDACTED PERSONAL DATA,989450,18-Jul-23,509.12,0,140662,Phys/Sens Placements - East,DIRECT PAYMENTS,R,2023,4
504,Community and Housing,REDACTED PERSONAL DATA,989136,18-Jul-23,5056.2,0,140759,Phys/Sens Placements - East,DIRECT PAYMENTS,R,2023,4
505,Community and Housing,SURREY AND BORDERS PARTNERSHIP,985208,06-Jul-23,11448.72,0,140911,Learning Disabilities Placemnt,321017              Nursing & Residential Care Homes,A,2023,4
506,Corporate Services,REDACTED PERSONAL DATA,INVWT144,20-Jul-23,4830,805,141765,SLLP - Disbursements,280000              Legal Services                                                                            Confirmed,R,2023,4
507,Community and Housing,GARWOOD FOUNDATION,985091,06-Jul-23,2755.48,0,142358,Phys/Sens Placements - East,321017              Nursing & Residential Care Homes,A,2023,4
508,Community and Housing,GARWOOD FOUNDATION,985195,06-Jul-23,2755.48,0,142358,Older People Placements - East,321017              Nursing & Residential Care Homes,A,2023,4
509,Community and Housing,EVERGREEN PARTNERSHIP,985139,06-Jul-23,9675,0,142455,Learning Disabilities Placemnt,321017              Nursing & Residential Care Homes,A,2023,4
510,Community and Housing,EVERGREEN PARTNERSHIP,985158,06-Jul-23,6585.36,0,142455,Learning Disabilities Placemnt,321017              Nursing & Residential Care Homes,A,2023,4
511,Community and Housing,REDACTED PERSONAL DATA,994810,24-Jul-23,1052.08,0,143597,MH Housing Support Placements,321000              Social Community Care Supplies & Services - Adult,R,2023,4
512,Community and Housing,REDACTED PERSONAL DATA,994819,24-Jul-23,1315.04,0,143597,LD Housing Support Placements,321000              Social Community Care Supplies & Services - Adult,R,2023,4
513,Community and Housing,REDACTED PERSONAL DATA,994839,24-Jul-23,1462.32,0,143597,Learning Disabilities Placemnt,321000              Social Community Care Supplies & Services - Adult,R,2023,4
514,"Children, Schools and Family",NISBETS PLC,51367882,19-Jul-23,1685.98,0,143661,Adventure Playground Project,110000              Catering,A,2023,4
515,"Children, Schools and Family",NISBETS PLC,27243184,27-Jul-23,1685.98,280.99,143661,Adventure Playground Project,110000              Catering,A,2023,4
516,Corporate Services,REDACTED PERSONAL DATA,JR191,12-Jul-23,606,0,143840,Translation Service,TRANSLATIONS,R,2023,4
517,Community and Housing,REDACTED PERSONAL DATA,989397,18-Jul-23,3731.72,0,144689,Learning Disabilities Placemnt,DIRECT PAYMENTS,R,2023,4
518,"Children, Schools and Family",DF20 LTD,4466-600,14-Jul-23,6524.4,1087.4,144747,School Meals,110000              Catering,A,2023,4
519,Community and Housing,CRAEGMOOR FACILITIES - WINDSOR,985191,06-Jul-23,6834.88,0,145152,Learning Disabilities Placemnt,321017              Nursing & Residential Care Homes,A,2023,4
520,Community and Housing,REDACTED PERSONAL DATA,989215,18-Jul-23,4454.8,0,145882,Learning Disabilities Placemnt,DIRECT PAYMENTS,R,2023,4
521,Environment and Regeneration,London Trading Standards,2548,01-Aug-23,1262.4,210.4,146881,Trading Standards - RSP,200000              Financial Services,A,2023,4
522,Environment and Regeneration,London Trading Standards,2546,01-Aug-23,5074.38,216.4,146881,Trading Standards - RSP,200000              Financial Services,A,2023,4
523,"Children, Schools and Family",SPEECH CENTRE,110913,03-Jul-23,961.2,160.2,147920,Care Experienced Over 18,270000              Information Communication Technology,A,2023,4
524,"Children, Schools and Family",SPEECH CENTRE,110926,14-Jul-23,961.2,160.2,147920,Head of Special Educatn Needs,270000              Information Communication Technology,A,2023,4
525,Community and Housing,GENERATE,10847,03-Jul-23,909,0,148332,Learning Disabilities Placemnt,321000              Social Community Care Supplies & Services - Adult,A,2023,4
526,Community and Housing,GENERATE,10849,10-Jul-23,721,0,148332,Learning Disabilities Placemnt,321000              Social Community Care Supplies & Services - Adult,A,2023,4
527,Community and Housing,CHICHESTER HALL CARE HOME LTD,985403,06-Jul-23,2637.2,0,148358,Older People Placements - East,321017              Nursing & Residential Care Homes,A,2023,4
528,"Children, Schools and Family",Dicky Birds Pre Sch. Nurseries Queens Rd,P1 23 HEADCOUNT2,07-Jul-23,637.2,0,148567,EARLY YEARS NURSERY GRANTS,200000              Financial Services,A,2023,4
529,Unassigned,Canterbury Campus,SCHOOLS 2324/4 A,07-Jul-23,263912.12,0,150054,Schools,170000              Education,A,2023,4
530,Unassigned,BARNETT WADDINGHAM LLP,S24/0010,01-Aug-23,1980,330,150927,Governance & Oversight Cost,PENSIONS,A,2023,4
531,Community and Housing,REDACTED PERSONAL DATA,994120,21-Jul-23,2411.6,0,151002,Older People Placements - East,DIRECT PAYMENTS,R,2023,4
532,Community and Housing,AIMS CARE PARTNERSHIP,985142,06-Jul-23,10560,0,151592,Learning Disabilities Placemnt,321017              Nursing & Residential Care Homes,A,2023,4
533,Community and Housing,AIMS CARE PARTNERSHIP,985180,06-Jul-23,3114.72,0,151592,Learning Disabilities Placemnt,321017              Nursing & Residential Care Homes,A,2023,4
534,Community and Housing,REDACTED PERSONAL DATA,989313,18-Jul-23,2333.6,0,151790,Older People Placements - East,DIRECT PAYMENTS,R,2023,4
535,Community and Housing,HOLISTIC COMMUNITY CARE - FC,3759,14-Jul-23,3909.99,0,151996,Older People Placements - East,321000              Social Community Care Supplies & Services - Adult,A,2023,4
536,Community and Housing,HOLISTIC COMMUNITY CARE - FC,3767A,14-Jul-23,5474,0,151996,Learning Disabilities Placemnt,321000              Social Community Care Supplies & Services - Adult,A,2023,4
537,Community and Housing,HOLISTIC COMMUNITY CARE - FC,3670A,20-Jul-23,5474,0,151996,Learning Disabilities Placemnt,321000              Social Community Care Supplies & Services - Adult,A,2023,4
538,Community and Housing,HOLISTIC COMMUNITY CARE - FC,3484A,20-Jul-23,4964.4,0,151996,Learning Disabilities Placemnt,321000              Social Community Care Supplies & Services - Adult,A,2023,4
539,Community and Housing,REDACTED PERSONAL DATA,994170,21-Jul-23,7328.72,0,152015,Older People Placements - East,321000              Social Community Care Supplies & Services - Adult,R,2023,4
540,Community and Housing,REDACTED PERSONAL DATA,989349,18-Jul-23,954.6,0,152709,Older People Placements - East,DIRECT PAYMENTS,R,2023,4
541,Community and Housing,REDACTED PERSONAL DATA,989222,18-Jul-23,1909.2,0,152990,Learning Disabilities Placemnt,DIRECT PAYMENTS,R,2023,4
542,Community and Housing,LYNTON HALL NURSING HOME,985034,10-Jul-23,3102.04,0,153795,Older People Placements - East,321017              Nursing & Residential Care Homes,A,2023,4
543,Community and Housing,LYNTON HALL NURSING HOME,985040,10-Jul-23,2988.48,0,153795,Older People Placements - East,321017              Nursing & Residential Care Homes,A,2023,4
544,Community and Housing,LYNTON HALL NURSING HOME,985217,10-Jul-23,3249.6,0,153795,Older People Placements - East,321017              Nursing & Residential Care Homes,A,2023,4
545,Unassigned,CFBT SCHOOLS TRUST,SCHOOLS 2324/4 A,07-Jul-23,5205,0,155275,Schools,170000              Education,A,2023,4
546,Community and Housing,SOLON SECURITY LTD,SI23007261,01-Aug-23,4074,679,159485,Mascot,190000              Facilities & Management Services,A,2023,4
547,Community and Housing,REDACTED PERSONAL DATA,989272,18-Jul-23,871.48,0,159542,Older People Placements - East,DIRECT PAYMENTS,R,2023,4
548,Community and Housing,REDACTED PERSONAL DATA,989404,18-Jul-23,3220,0,160044,Phys/Sens Placements - East,DIRECT PAYMENTS,R,2023,4
549,"Children, Schools and Family",REDACTED PERSONAL DATA,990482,18-Jul-23,1082.6,0,160147,Child Disabilities - Placement,CSF-DIRECT PAYMENTS,R,2023,4
550,Community and Housing,REDACTED PERSONAL DATA,989240,18-Jul-23,1131.28,0,160244,Phys/Sens Placements - East,DIRECT PAYMENTS,R,2023,4
551,Community and Housing,REDACTED PERSONAL DATA,989187,18-Jul-23,604.6,0,160273,Learning Disabilities Placemnt,DIRECT PAYMENTS,R,2023,4
552,Community and Housing,REDACTED PERSONAL DATA,994145,21-Jul-23,854.48,0,160279,Phys/Sens Placements - East,DIRECT PAYMENTS,R,2023,4
553,"Children, Schools and Family",THE NATIONAL FOSTERING AGENCY,454579,24-Jul-23,5815,0,160464,Placements Under 18,321100              Social Community Care Supplies & Services - Children,A,2023,4
554,"Children, Schools and Family",THE NATIONAL FOSTERING AGENCY,454578,24-Jul-23,5519.4,0,160464,Placements Under 18,321100              Social Community Care Supplies & Services - Children,A,2023,4
555,"Children, Schools and Family",THE NATIONAL FOSTERING AGENCY,454577,24-Jul-23,5519.4,0,160464,Placements Under 18,321100              Social Community Care Supplies & Services - Children,A,2023,4
556,"Children, Schools and Family",THE NATIONAL FOSTERING AGENCY,449703,25-Jul-23,5703.38,0,160464,Placements Under 18,321100              Social Community Care Supplies & Services - Children,A,2023,4
557,"Children, Schools and Family",THE NATIONAL FOSTERING AGENCY,449702,25-Jul-23,5703.38,0,160464,Placements Under 18,321100              Social Community Care Supplies & Services - Children,A,2023,4
558,Community and Housing,THE AVENUES TRUST GROUP,1003698,02-Aug-23,9463.44,0,160730,Learning Disabilities Placemnt,321017              Nursing & Residential Care Homes,A,2023,4
559,"Children, Schools and Family",REDACTED PERSONAL DATA,987698,07-Jul-23,548.09,0,161094,UASC LAC Under 18,321100              Social Community Care Supplies & Services - Children,R,2023,4
560,"Children, Schools and Family",REDACTED PERSONAL DATA,987740,07-Jul-23,548.09,0,161094,UASC LAC Under 18,321100              Social Community Care Supplies & Services - Children,R,2023,4
561,"Children, Schools and Family",REDACTED PERSONAL DATA,989672,14-Jul-23,548.09,0,161094,UASC LAC Under 18,321100              Social Community Care Supplies & Services - Children,R,2023,4
562,"Children, Schools and Family",REDACTED PERSONAL DATA,989713,14-Jul-23,548.09,0,161094,UASC LAC Under 18,321100              Social Community Care Supplies & Services - Children,R,2023,4
563,"Children, Schools and Family",REDACTED PERSONAL DATA,994415,21-Jul-23,548.09,0,161094,UASC LAC Under 18,321100              Social Community Care Supplies & Services - Children,R,2023,4
564,"Children, Schools and Family",REDACTED PERSONAL DATA,994456,21-Jul-23,548.09,0,161094,UASC LAC Under 18,321100              Social Community Care Supplies & Services - Children,R,2023,4
565,"Children, Schools and Family",REDACTED PERSONAL DATA,998545,31-Jul-23,748.09,0,161094,UASC LAC Under 18,321100              Social Community Care Supplies & Services - Children,R,2023,4
566,"Children, Schools and Family",REDACTED PERSONAL DATA,998587,31-Jul-23,748.09,0,161094,UASC LAC Under 18,321100              Social Community Care Supplies & Services - Children,R,2023,4
567,Corporate Services,STARK SOFTWARE INTERNATIONAL,81837,07-Jul-23,18621.84,3103.64,161114,Energy Budgets,190000              Facilities & Management Services,A,2023,4
568,Corporate Services,STARK SOFTWARE INTERNATIONAL,81933,07-Jul-23,540,90,161114,Energy Budgets,190000              Facilities & Management Services,A,2023,4
569,Environment and Regeneration,KAT TRANSPORT LTD,92,04-Jul-23,4968,828,162381,Passenger Transport,360000              Passenger Transport,A,2023,4
570,Environment and Regeneration,KAT TRANSPORT LTD,91,04-Jul-23,2040,340,162381,Passenger Transport,360000              Passenger Transport,A,2023,4
571,Environment and Regeneration,KAT TRANSPORT LTD,93,14-Jul-23,5244,874,162381,Passenger Transport,360000              Passenger Transport,A,2023,4
572,Environment and Regeneration,KAT TRANSPORT LTD,94,14-Jul-23,1440,240,162381,Passenger Transport,360000              Passenger Transport,A,2023,4
573,Corporate Services,WALLINGTON CARS AND COURIERS LTD,297732,06-Jul-23,2192.32,364.39,162637,PrintUnit-HighVolPhtcopying,300000              Mail Services,A,2023,4
574,Corporate Services,WALLINGTON CARS AND COURIERS LTD,298705,06-Jul-23,881.63,146.94,162637,Post services,300000              Mail Services,A,2023,4
575,Corporate Services,WALLINGTON CARS AND COURIERS LTD,299423,06-Jul-23,1504.33,249.72,162637,Post services,300000              Mail Services,A,2023,4
576,Community and Housing,REDACTED PERSONAL DATA,989154,18-Jul-23,1562.56,0,163392,Learning Disabilities Placemnt,DIRECT PAYMENTS,R,2023,4
577,Capital,D N H PROPERTY MAINTENANCE,2287DNH,28-Jul-23,24300,4050,163395,CSF Safeguarding,"390000              Works - Construction, Repair & Maintenance",C,2023,4
578,Community and Housing,Tunstall Healthcare (UK) Limited,CD970022098,11-Jul-23,56400,9400,163420,Mascot,190000              Facilities & Management Services,A,2023,4
579,"Children, Schools and Family",REDACTED PERSONAL DATA,987679,07-Jul-23,548.09,0,163471,UASC LAC Under 18,200000              Financial Services,R,2023,4
580,"Children, Schools and Family",REDACTED PERSONAL DATA,987754,07-Jul-23,785.52,0,163471,Placements Under 18,200000              Financial Services,R,2023,4
581,"Children, Schools and Family",REDACTED PERSONAL DATA,987763,07-Jul-23,692.46,0,163471,Placements Under 18,200000              Financial Services,R,2023,4
582,"Children, Schools and Family",REDACTED PERSONAL DATA,989651,14-Jul-23,548.09,0,163471,UASC LAC Under 18,200000              Financial Services,R,2023,4
583,"Children, Schools and Family",REDACTED PERSONAL DATA,989726,14-Jul-23,785.52,0,163471,Placements Under 18,200000              Financial Services,R,2023,4
584,"Children, Schools and Family",REDACTED PERSONAL DATA,989734,14-Jul-23,692.46,0,163471,Placements Under 18,200000              Financial Services,R,2023,4
585,"Children, Schools and Family",REDACTED PERSONAL DATA,994392,21-Jul-23,548.09,0,163471,UASC LAC Under 18,200000              Financial Services,R,2023,4
586,"Children, Schools and Family",REDACTED PERSONAL DATA,994470,21-Jul-23,785.52,0,163471,Placements Under 18,200000              Financial Services,R,2023,4
587,"Children, Schools and Family",REDACTED PERSONAL DATA,994478,21-Jul-23,692.46,0,163471,Placements Under 18,200000              Financial Services,R,2023,4
588,"Children, Schools and Family",REDACTED PERSONAL DATA,998523,31-Jul-23,748.09,0,163471,UASC LAC Under 18,200000              Financial Services,R,2023,4
589,"Children, Schools and Family",REDACTED PERSONAL DATA,998602,31-Jul-23,785.52,0,163471,Placements Under 18,200000              Financial Services,R,2023,4
590,"Children, Schools and Family",REDACTED PERSONAL DATA,998610,31-Jul-23,892.46,0,163471,Placements Under 18,200000              Financial Services,R,2023,4
591,Environment and Regeneration,NET-CTRL,11697,28-Jul-23,8573.55,1428.93,163621,CCTV,270000              Information Communication Technology,A,2023,4
592,Community and Housing,Active Prospects,985069,06-Jul-23,6103.76,0,163859,Learning Disabilities Placemnt,321017              Nursing & Residential Care Homes,A,2023,4
593,Community and Housing,REDACTED PERSONAL DATA,989183,18-Jul-23,1023.28,0,163971,Older People Placements - East,DIRECT PAYMENTS,R,2023,4
594,Corporate Services,CLIFFE ENTERPRISE LTD,22983,31-Jul-23,41961.6,6993.6,164341,Printing,190000              Facilities & Management Services,A,2023,4
595,Corporate Services,LONDON COUNCILS,4342856,10-Jul-23,38230,0,164343,VOLUNTARY SECTOR COORDINATION,OLA,A,2023,4
596,Community and Housing,ENTERPRISE CARE SUPPORT LTD,20623,03-Jul-23,2709.32,0,164431,Older People Placements - East,321000              Social Community Care Supplies & Services - Adult,A,2023,4
597,Community and Housing,ENTERPRISE CARE SUPPORT LTD,20644,03-Jul-23,1307.22,0,164431,Older People Placements - East,321000              Social Community Care Supplies & Services - Adult,A,2023,4
598,Community and Housing,ENTERPRISE CARE SUPPORT LTD,20642,03-Jul-23,3057.72,0,164431,Older People Placements - East,321000              Social Community Care Supplies & Services - Adult,A,2023,4
599,Community and Housing,ENTERPRISE CARE SUPPORT LTD,20641,03-Jul-23,1175.22,0,164431,Older People Placements - East,321000              Social Community Care Supplies & Services - Adult,A,2023,4
600,Community and Housing,ENTERPRISE CARE SUPPORT LTD,20639,03-Jul-23,1175.22,0,164431,Older People Placements - East,321000              Social Community Care Supplies & Services - Adult,A,2023,4
601,Community and Housing,ENTERPRISE CARE SUPPORT LTD,20633,03-Jul-23,761.25,0,164431,Learning Disabilities Placemnt,321000              Social Community Care Supplies & Services - Adult,A,2023,4
602,Community and Housing,ENTERPRISE CARE SUPPORT LTD,20630,03-Jul-23,821.58,0,164431,Older People Placements - East,321000              Social Community Care Supplies & Services - Adult,A,2023,4
603,Community and Housing,ENTERPRISE CARE SUPPORT LTD,20629,03-Jul-23,746.47,0,164431,Older People Placements - East,321000              Social Community Care Supplies & Services - Adult,A,2023,4
604,Community and Housing,ENTERPRISE CARE SUPPORT LTD,20627,03-Jul-23,1137.81,0,164431,Older People Placements - East,321000              Social Community Care Supplies & Services - Adult,A,2023,4
605,Community and Housing,ENTERPRISE CARE SUPPORT LTD,20626,03-Jul-23,836.46,0,164431,Older People Placements - East,321000              Social Community Care Supplies & Services - Adult,A,2023,4
606,Community and Housing,ENTERPRISE CARE SUPPORT LTD,20625,03-Jul-23,805.08,0,164431,Older People Placements - East,321000              Social Community Care Supplies & Services - Adult,A,2023,4
607,Community and Housing,ENTERPRISE CARE SUPPORT LTD,20622,03-Jul-23,3864.81,0,164431,Older People Placements - East,321000              Social Community Care Supplies & Services - Adult,A,2023,4
608,Community and Housing,ENTERPRISE CARE SUPPORT LTD,20472,07-Jul-23,1407.93,0,164431,Older People Placements - East,321000              Social Community Care Supplies & Services - Adult,A,2023,4
609,Community and Housing,ENTERPRISE CARE SUPPORT LTD,20802,27-Jul-23,944.3,0,164431,Older People Placements - East,321000              Social Community Care Supplies & Services - Adult,A,2023,4
610,Community and Housing,ENTERPRISE CARE SUPPORT LTD,20799,27-Jul-23,870.24,0,164431,Older People Placements - East,321000              Social Community Care Supplies & Services - Adult,A,2023,4
611,Community and Housing,ENTERPRISE CARE SUPPORT LTD,20800,27-Jul-23,2264.22,0,164431,Older People Placements - East,321000              Social Community Care Supplies & Services - Adult,A,2023,4
612,Community and Housing,ENTERPRISE CARE SUPPORT LTD,20797,27-Jul-23,870.24,0,164431,Older People Placements - East,321000              Social Community Care Supplies & Services - Adult,A,2023,4
613,Community and Housing,ENTERPRISE CARE SUPPORT LTD,20793,27-Jul-23,1740.48,0,164431,Older People Placements - East,321000              Social Community Care Supplies & Services - Adult,A,2023,4
614,Community and Housing,ENTERPRISE CARE SUPPORT LTD,20792,27-Jul-23,634.07,0,164431,Older People Placements - East,321000              Social Community Care Supplies & Services - Adult,A,2023,4
615,Community and Housing,ENTERPRISE CARE SUPPORT LTD,20791,27-Jul-23,554.31,0,164431,Learning Disabilities Placemnt,321000              Social Community Care Supplies & Services - Adult,A,2023,4
616,Community and Housing,ENTERPRISE CARE SUPPORT LTD,20790,27-Jul-23,1109.07,0,164431,Older People Placements - East,321000              Social Community Care Supplies & Services - Adult,A,2023,4
617,Community and Housing,ENTERPRISE CARE SUPPORT LTD,20787,27-Jul-23,554.31,0,164431,Older People Placements - East,321000              Social Community Care Supplies & Services - Adult,A,2023,4
618,Community and Housing,ENTERPRISE CARE SUPPORT LTD,20786,27-Jul-23,845.3,0,164431,Older People Placements - East,321000              Social Community Care Supplies & Services - Adult,A,2023,4
619,Community and Housing,ENTERPRISE CARE SUPPORT LTD,20788,27-Jul-23,608.37,0,164431,Older People Placements - East,321000              Social Community Care Supplies & Services - Adult,A,2023,4
620,Community and Housing,ENTERPRISE CARE SUPPORT LTD,20785,27-Jul-23,523.74,0,164431,Older People Placements - East,321000              Social Community Care Supplies & Services - Adult,A,2023,4
621,Community and Housing,ENTERPRISE CARE SUPPORT LTD,20784,27-Jul-23,608.37,0,164431,Older People Placements - East,321000              Social Community Care Supplies & Services - Adult,A,2023,4
622,Community and Housing,ENTERPRISE CARE SUPPORT LTD,20781,27-Jul-23,2264.22,0,164431,Older People Placements - East,321000              Social Community Care Supplies & Services - Adult,A,2023,4
623,Community and Housing,BUPA CARE SERVICES BACS RECEIP,985264,06-Jul-23,8580.84,0,164629,Older People Placements - East,321017              Nursing & Residential Care Homes,A,2023,4
624,Community and Housing,REDACTED PERSONAL DATA,989371,18-Jul-23,1624.64,0,164694,Older People Placements - East,DIRECT PAYMENTS,R,2023,4
625,Corporate Services,REDACTED PERSONAL DATA,INV991/GC53,03-Aug-23,900,150,164950,SLLP - Disbursements,280000              Legal Services                                                                            Confirmed,R,2023,4
626,"Children, Schools and Family",SYNERGY FOSTERING LTD,INV-4198,25-Jul-23,1281.4,0,165111,Placements Under 18,321100              Social Community Care Supplies & Services - Children,A,2023,4
627,Unassigned,MARSTON GROUP,62777,24-Jul-23,5405.57,0,165202,Corporate Accountancy,200000              Financial Services,A,2023,4
628,Environment and Regeneration,MARSTON GROUP,60319,03-Aug-23,3950,0,165202,Civil Enforcement Officers,200000              Financial Services,A,2023,4
629,Corporate Services,DX NETWORK SERVICES LTD,83846744,01-Aug-23,1616.4,269.4,165316,Post services,300000              Mail Services,A,2023,4
630,"Children, Schools and Family",CHILDREN OF COLOUR,8274,07-Jul-23,5164.72,0,165365,Placements Under 18,321100              Social Community Care Supplies & Services - Children,A,2023,4
631,Community and Housing,REDACTED PERSONAL DATA,989395,18-Jul-23,1314,0,165602,Learning Disabilities Placemnt,DIRECT PAYMENTS,R,2023,4
632,Community and Housing,REDACTED PERSONAL DATA,989354,18-Jul-23,5766.6,0,165619,Phys/Sens Placements - East,DIRECT PAYMENTS,R,2023,4
633,Community and Housing,BUPA CARE HOMES (ANS) LTD,985423,06-Jul-23,4791.48,0,165704,Older People Placements - East,321017              Nursing & Residential Care Homes,A,2023,4
634,Community and Housing,REDACTED PERSONAL DATA,989431,18-Jul-23,1032.8,0,165786,Older People Placements - East,DIRECT PAYMENTS,R,2023,4
635,Community and Housing,REDACTED PERSONAL DATA,989443,18-Jul-23,700.8,0,166085,Learning Disabilities Placemnt,DIRECT PAYMENTS,R,2023,4
636,Corporate Services,WEIGHTMANS LLP,2163735,28-Jul-23,3607.2,601.2,166459,SLLP - Disbursements,200000              Financial Services                                                                        confirmed,A,2023,4
637,Community and Housing,REDACTED PERSONAL DATA,989175,18-Jul-23,1209.16,0,166547,Learning Disabilities Placemnt,DIRECT PAYMENTS,R,2023,4
638,"Children, Schools and Family",REDACTED PERSONAL DATA,987684,07-Jul-23,1354.2,0,166742,Placements Under 18,321100              Social Community Care Supplies & Services - Children,R,2023,4
639,"Children, Schools and Family",REDACTED PERSONAL DATA,989656,14-Jul-23,1354.2,0,166742,Placements Under 18,321100              Social Community Care Supplies & Services - Children,R,2023,4
640,"Children, Schools and Family",REDACTED PERSONAL DATA,994397,21-Jul-23,1354.2,0,166742,Placements Under 18,321100              Social Community Care Supplies & Services - Children,R,2023,4
641,"Children, Schools and Family",REDACTED PERSONAL DATA,998528,31-Jul-23,1354.2,0,166742,Placements Under 18,321100              Social Community Care Supplies & Services - Children,R,2023,4
642,Community and Housing,UNIQUE OFFICE SOLUTIONS LTD,112774,24-Jul-23,812.4,135.4,166889,LD Fieldwork SW,210000              Furniture & Soft Furnishings,A,2023,4
643,Environment and Regeneration,UNIQUE OFFICE SOLUTIONS LTD,112773,24-Jul-23,808.44,134.74,166889,EDS2,210000              Furniture & Soft Furnishings,A,2023,4
644,"Children, Schools and Family",REDACTED PERSONAL DATA,990445,18-Jul-23,807.76,0,166972,Child Disabilities - Placement,CSF-DIRECT PAYMENTS,R,2023,4
645,Environment and Regeneration,IMPERIAL CIVIL ENFORC.SOLUT.,INV0000007905,24-Jul-23,2171.67,361.95,167737,Operational Running Costs,270000              Information Communication Technology,A,2023,4
646,Corporate Services,IMPERIAL CIVIL ENFORC.SOLUT.,INV0000007418,26-Jul-23,110374.96,18395.83,167737,Business Systems,270000              Information Communication Technology,A,2023,4
647,"Children, Schools and Family",RAINBOW FOSTERING SERVICES LTD,RF2919,21-Jul-23,3621.42,0,167793,Placements Under 18,321100              Social Community Care Supplies & Services - Children,A,2023,4
648,Corporate Services,REDACTED PERSONAL DATA,10236539,19-Jul-23,3336,556,168092,Chief Executive,280000              Legal Services,R,2023,4
649,Corporate Services,REDACTED PERSONAL DATA,10237423,31-Jul-23,31641,5273.5,168092,SLLP - Disbursements,280000              Legal Services,R,2023,4
650,Capital,CBS Adaptation Design,1775,04-Jul-23,1933.2,322.2,168147,Disabled Facilities Grant,200000              Financial Services,A,2023,4
651,Capital,CBS Adaptation Design,1789,17-Jul-23,2965.71,464.95,168147,Disabled Facilities Grant,200000              Financial Services,A,2023,4
652,Corporate Services,LANGUAGE BANK,MTS-230623,17-Jul-23,912,152,168229,Translation Service,TRANSLATIONS,A,2023,4
653,Corporate Services,LANGUAGE BANK,MTS190623,12-Jul-23,906,151,168229,Translation Service,TRANSLATIONS,A,2023,4
654,Corporate Services,LANGUAGE BANK,MTS-120623,12-Jul-23,669,111.5,168229,Translation Service,TRANSLATIONS,A,2023,4
655,Corporate Services,LANGUAGE BANK,MTS080623,12-Jul-23,780,130,168229,Translation Service,TRANSLATIONS,A,2023,4
656,Corporate Services,LANGUAGE BANK,MTS050623,12-Jul-23,732,122,168229,Translation Service,TRANSLATIONS,A,2023,4
657,Corporate Services,LANGUAGE BANK,MTS130623,12-Jul-23,876,146,168229,Translation Service,TRANSLATIONS,A,2023,4
658,Corporate Services,LANGUAGE BANK,MTS-030723,21-Jul-23,852,142,168229,Translation Service,TRANSLATIONS,A,2023,4
659,Corporate Services,LANGUAGE BANK,MTS-280623,21-Jul-23,894,149,168229,Translation Service,TRANSLATIONS,A,2023,4
660,Corporate Services,LANGUAGE BANK,MTS-300623,21-Jul-23,531,88.5,168229,Translation Service,TRANSLATIONS,A,2023,4
661,Corporate Services,LANGUAGE BANK,MTS-110723,25-Jul-23,876,0,168229,Translation Service,TRANSLATIONS,A,2023,4
662,Community and Housing,REDACTED PERSONAL DATA,989176,18-Jul-23,786.76,0,168403,Learning Disabilities Placemnt,DIRECT PAYMENTS,R,2023,4
663,Community and Housing,Wimbledon Arts T/A Wimbledon BookFest,INV-3827,10-Jul-23,5000,0,168472,LIB- National Portfolio Org,200000              Financial Services,A,2023,4
664,Community and Housing,Wimbledon Arts T/A Wimbledon BookFest,INV-3828#2,10-Jul-23,5000,0,168472,LIB- National Portfolio Org,200000              Financial Services,A,2023,4
665,Community and Housing,Wimbledon Arts T/A Wimbledon BookFest,INV-3829#3,10-Jul-23,5000,0,168472,LIB- National Portfolio Org,200000              Financial Services,A,2023,4
666,Unassigned,GREATER MANCHESTER PENSION FUN,CETV001,10-Jul-23,53499.86,0,168513,London Borough of Merton,PENSIONS,A,2023,4
667,Capital,HOME CONNECTIONS LETTINGS LTD,INV-1492,06-Jul-23,6600,1100,168983,Business Systems,270000              Information Communication Technology,A,2023,4
668,Capital,HOME CONNECTIONS LETTINGS LTD,INV-1542,06-Jul-23,690,115,168983,Business Systems,270000              Information Communication Technology,A,2023,4
669,Community and Housing,HOUSING21,INV699909FD,14-Jul-23,1192.92,0,169230,Older People Placements - East,321000              Social Community Care Supplies & Services - Adult,A,2023,4
670,Community and Housing,HOUSING21,INV699909AH,14-Jul-23,1406.74,0,169230,Older People Placements - East,321000              Social Community Care Supplies & Services - Adult,A,2023,4
671,Community and Housing,HOUSING21,INV699909RJ,14-Jul-23,847.14,0,169230,Older People Placements - East,321000              Social Community Care Supplies & Services - Adult,A,2023,4
672,Community and Housing,HOUSING21,INV699909JM,14-Jul-23,1866.78,0,169230,Phys/Sens Placements - East,321000              Social Community Care Supplies & Services - Adult,A,2023,4
673,Community and Housing,HOUSING21,INV699909GO,14-Jul-23,2446.95,0,169230,Older People Placements - East,321000              Social Community Care Supplies & Services - Adult,A,2023,4
674,Community and Housing,HOUSING21,INV699909OO,14-Jul-23,650.03,0,169230,Older People Placements - East,321000              Social Community Care Supplies & Services - Adult,A,2023,4
675,Community and Housing,HOUSING21,INV699909AP,14-Jul-23,864.46,0,169230,Older People Placements - East,321000              Social Community Care Supplies & Services - Adult,A,2023,4
676,Community and Housing,HOUSING21,INV699909JS,14-Jul-23,726.04,0,169230,Older People Placements - East,321000              Social Community Care Supplies & Services - Adult,A,2023,4
677,Community and Housing,HOUSING21,INV699909DT,14-Jul-23,648.91,0,169230,Older People Placements - East,321000              Social Community Care Supplies & Services - Adult,A,2023,4
678,Community and Housing,HOUSING21,INV699909VOID,14-Jul-23,4355.82,0,169230,Older People Placements - East,321000              Social Community Care Supplies & Services - Adult,A,2023,4
679,Community and Housing,HOUSING21,INV699910RJ,19-Jul-23,817.32,0,169230,Older People Placements - East,321000              Social Community Care Supplies & Services - Adult,A,2023,4
680,Community and Housing,FITZROY SUPPORT,985099,06-Jul-23,6414.52,0,169400,Learning Disabilities Placemnt,321017              Nursing & Residential Care Homes,A,2023,4
681,Corporate Services,KC Services Group,43116,24-Jul-23,720,120,169420,Buildings Maintenance,"390000              Works - Construction, Repair & Maintenance",A,2023,4
682,"Children, Schools and Family",JULIUS RUTHERFOORD AND CO LTD,INVS150412,24-Jul-23,861.97,143.66,170092,Avenue CC Building Management,130000              Cleaning & Janitorial,A,2023,4
683,"Children, Schools and Family",JULIUS RUTHERFOORD AND CO LTD,INVS150152,24-Jul-23,861.97,143.66,170092,Church Road Building,130000              Cleaning & Janitorial,A,2023,4
684,"Children, Schools and Family",JULIUS RUTHERFOORD AND CO LTD,INVS150097,24-Jul-23,861.97,143.66,170092,Lower Morden CC Building Mgt,130000              Cleaning & Janitorial,A,2023,4
685,"Children, Schools and Family",JULIUS RUTHERFOORD AND CO LTD,INVS150318,24-Jul-23,1298.96,216.49,170092,Newminster CC Building Mgt,130000              Cleaning & Janitorial,A,2023,4
686,"Children, Schools and Family",JULIUS RUTHERFOORD AND CO LTD,INVS150130,24-Jul-23,1229.42,204.9,170092,Bond Road Building,130000              Cleaning & Janitorial,A,2023,4
687,"Children, Schools and Family",JULIUS RUTHERFOORD AND CO LTD,INVS150277,24-Jul-23,862.03,143.67,170092,Ivy Garden CC Building,130000              Cleaning & Janitorial,A,2023,4
688,"Children, Schools and Family",JULIUS RUTHERFOORD AND CO LTD,INVS149973,14-Jul-23,861.97,143.66,170092,Avenue CC Building Management,130000              Cleaning & Janitorial,A,2023,4
689,Corporate Services,JULIUS RUTHERFOORD AND CO LTD,INVS149873,20-Jul-23,2498.65,416.44,170092,PDC,130000              Cleaning & Janitorial,A,2023,4
690,Corporate Services,JULIUS RUTHERFOORD AND CO LTD,INV6150311,24-Jul-23,2498.65,416.44,170092,PDC,130000              Cleaning & Janitorial,A,2023,4
691,Community and Housing,INDEPENDENCE HOMES LTD,985368,06-Jul-23,7935.88,0,170527,Learning Disabilities Placemnt,321017              Nursing & Residential Care Homes,A,2023,4
692,"Children, Schools and Family",GREATER LONDON FOSTERING LTD,INV-0896,20-Jul-23,3578.4,0,170596,Placements Under 18,321100              Social Community Care Supplies & Services - Children,A,2023,4
693,"Children, Schools and Family",GREATER LONDON FOSTERING LTD,INV-0897,20-Jul-23,3403.5,0,170596,Placements Under 18,321100              Social Community Care Supplies & Services - Children,A,2023,4
694,"Children, Schools and Family",GREATER LONDON FOSTERING LTD,INV-0926,20-Jul-23,3664.2,0,170596,Placements Under 18,321100              Social Community Care Supplies & Services - Children,A,2023,4
695,"Children, Schools and Family",GREATER LONDON FOSTERING LTD,INV-0898,28-Jul-23,3403.8,0,170596,Placements Under 18,321100              Social Community Care Supplies & Services - Children,A,2023,4
696,"Children, Schools and Family",GREATER LONDON FOSTERING LTD,INV-0925,28-Jul-23,3664.2,0,170596,Placements Under 18,321100              Social Community Care Supplies & Services - Children,A,2023,4
697,Community and Housing,REDACTED PERSONAL DATA,994157,21-Jul-23,1391.92,0,170878,Learning Disabilities Placemnt,DIRECT PAYMENTS,R,2023,4
698,Community and Housing,REDACTED PERSONAL DATA,989445,18-Jul-23,1304.64,0,171056,Phys/Sens Placements - East,DIRECT PAYMENTS,R,2023,4
699,Community and Housing,ST GEORGES RES. CARE HOME,985410,06-Jul-23,4871.4,0,171491,Learning Disabilities Placemnt,321017              Nursing & Residential Care Homes,A,2023,4
700,Community and Housing,ST GEORGES RES. CARE HOME,985436,06-Jul-23,4024.2,0,171491,Learning Disabilities Placemnt,321017              Nursing & Residential Care Homes,A,2023,4
701,Community and Housing,REDACTED PERSONAL DATA,989320,18-Jul-23,552.6,0,172070,Learning Disabilities Placemnt,DIRECT PAYMENTS,R,2023,4
702,Community and Housing,NORBURY PROPERTY SERV LDN LTD,SI-9055,24-Jul-23,9953.1,0,172104,Bed & Breakfast - accomm,321000              Social Community Care Supplies & Services - Adult,A,2023,4
703,"Children, Schools and Family",EALING COUNCIL,17263063,05-Jul-23,66240,0,172129,Placements Under 18,OLA,A,2023,4
704,Community and Housing,EALING COUNCIL,985058,06-Jul-23,2985.92,0,172129,Mental Health Placements,OLA,A,2023,4
705,Community and Housing,CARRICKS BROOK,985074,06-Jul-23,6536.16,0,172297,Learning Disabilities Placemnt,321017              Nursing & Residential Care Homes,A,2023,4
706,Community and Housing,BROADHAM CARE LTD,985127,06-Jul-23,7386.96,0,172298,Learning Disabilities Placemnt,321017              Nursing & Residential Care Homes,A,2023,4
707,Community and Housing,BROADHAM CARE LTD,985396,06-Jul-23,7638.12,0,172298,Learning Disabilities Placemnt,321017              Nursing & Residential Care Homes,A,2023,4
708,Unassigned,KENNEDYS,012300407891M890,19-Jul-23,11745,1957.5,172486,Corporate Services,280000              Legal Services,A,2023,4
709,"Children, Schools and Family",LINDEN LODGE SCHOOL,INV-1350,19-Jul-23,79850.4,0,172798,Non-Delegated Statements,170000              Education,A,2023,4
710,"Children, Schools and Family",LINDEN LODGE SCHOOL,INV-1358,21-Jul-23,51600.67,0,172798,Non-Delegated Statements,170000              Education,A,2023,4
711,Community and Housing,REDACTED PERSONAL DATA,989134,18-Jul-23,876.24,0,172912,Learning Disabilities Placemnt,DIRECT PAYMENTS,R,2023,4
712,Community and Housing,REDACTED PERSONAL DATA,989262,18-Jul-23,764.28,0,172914,Learning Disabilities Placemnt,DIRECT PAYMENTS,R,2023,4
713,Community and Housing,HAVERING COURT NURSING HOME,985038,06-Jul-23,4954.12,0,173297,Older People Placements - East,321017              Nursing & Residential Care Homes,A,2023,4
714,Community and Housing,REDACTED PERSONAL DATA,989338,18-Jul-23,795.52,0,173308,Phys/Sens Placements - East,DIRECT PAYMENTS,R,2023,4
715,"Children, Schools and Family",REDACTED PERSONAL DATA,998639,31-Jul-23,650.3,0,173600,Placements Under 18,321100              Social Community Care Supplies & Services - Children,R,2023,4
716,"Children, Schools and Family",REDACTED PERSONAL DATA,990407,18-Jul-23,5506.04,0,173793,Child Disabilities - Placement,CSF-DIRECT PAYMENTS,R,2023,4
717,Community and Housing,HARBOUR CARE (UK) LTD,985343,06-Jul-23,6448.68,0,173947,Learning Disabilities Placemnt,321017              Nursing & Residential Care Homes,A,2023,4
718,Environment and Regeneration,London Youth Games Foundation,1035,05-Jul-23,8400,1400,173976,Leisure support,290000              Arts & Leisure Services,A,2023,4
719,Community and Housing,ASHINGTON HOUSE,985095,06-Jul-23,4406.68,0,174259,Learning Disabilities Placemnt,321017              Nursing & Residential Care Homes,A,2023,4
720,Community and Housing,REDACTED PERSONAL DATA,994123,21-Jul-23,632.84,0,174449,Phys/Sens Placements - East,DIRECT PAYMENTS,R,2023,4
721,"Children, Schools and Family",REDACTED PERSONAL DATA,998564,31-Jul-23,663.29,0,174483,Placements Under 18,321100              Social Community Care Supplies & Services - Children,R,2023,4
722,Community and Housing,SUPREME HOMES,30447,10-Jul-23,3280,0,174758,Mental Health Placements,321017              Nursing & Residential Care Homes,A,2023,4
723,Community and Housing,SUPREME HOMES,30416,10-Jul-23,3280,0,174758,Mental Health Placements,321017              Nursing & Residential Care Homes,A,2023,4
724,Community and Housing,ALPENBEST LIMITED,250623AT,31-Jul-23,605.1,0,174789,Older People Placements - East,321000              Social Community Care Supplies & Services - Adult,A,2023,4
725,Community and Housing,ALPENBEST LIMITED,250623AS,31-Jul-23,580.16,0,174789,Older People Placements - East,321000              Social Community Care Supplies & Services - Adult,A,2023,4
726,Community and Housing,ALPENBEST LIMITED,02072023AT,31-Jul-23,654.23,0,174789,Older People Placements - East,321000              Social Community Care Supplies & Services - Adult,A,2023,4
727,Community and Housing,ALPENBEST LIMITED,02072023FS,31-Jul-23,580.16,0,174789,Older People Placements - East,321000              Social Community Care Supplies & Services - Adult,A,2023,4
728,Community and Housing,ALPENBEST LIMITED,09072023AT,31-Jul-23,592.62,0,174789,Older People Placements - East,321000              Social Community Care Supplies & Services - Adult,A,2023,4
729,Community and Housing,ALPENBEST LIMITED,09072023AS,31-Jul-23,580.16,0,174789,Older People Placements - East,321000              Social Community Care Supplies & Services - Adult,A,2023,4
730,Community and Housing,ALPENBEST LIMITED,16072023AT,31-Jul-23,592.63,0,174789,Older People Placements - East,321000              Social Community Care Supplies & Services - Adult,A,2023,4
731,Community and Housing,ALPENBEST LIMITED,16072023AS,31-Jul-23,580.16,0,174789,Older People Placements - East,321000              Social Community Care Supplies & Services - Adult,A,2023,4
732,Community and Housing,SUTTON COURT CARE CENTRE,985140,06-Jul-23,2827.36,0,174833,Older People Placements - East,321017              Nursing & Residential Care Homes,A,2023,4
733,Community and Housing,SUTTON COURT CARE CENTRE,985161,06-Jul-23,3723.24,0,174833,Older People Placements - East,321017              Nursing & Residential Care Homes,A,2023,4
734,Community and Housing,SUTTON COURT CARE CENTRE,985240,06-Jul-23,3163.36,0,174833,Older People Placements - East,321017              Nursing & Residential Care Homes,A,2023,4
735,Community and Housing,SUTTON COURT CARE CENTRE,985266,06-Jul-23,4049.6,0,174833,Phys/Sens Placements - East,321017              Nursing & Residential Care Homes,A,2023,4
736,Community and Housing,SUTTON COURT CARE CENTRE,985415,06-Jul-23,4139.36,0,174833,Phys/Sens Placements - East,321017              Nursing & Residential Care Homes,A,2023,4
737,Community and Housing,REDACTED PERSONAL DATA,989108,18-Jul-23,636.4,0,174975,Learning Disabilities Placemnt,DIRECT PAYMENTS,R,2023,4
738,Corporate Services,COSMIC EUROPE LIMTED,UK7182,18-Jul-23,768,128,175169,Translation Service,TRANSLATIONS,A,2023,4
739,Corporate Services,COSMIC EUROPE LIMTED,UK7216,18-Jul-23,516,86,175169,Translation Service,TRANSLATIONS,A,2023,4
740,Corporate Services,COSMIC EUROPE LIMTED,UK7217,18-Jul-23,654,109,175169,Translation Service,TRANSLATIONS,A,2023,4
741,"Children, Schools and Family",GLOBAL MEDIATION LTD,INV-94626,24-Jul-23,1320,220,175270,Non-Delegated Statements,260000              Human Resources                                                                           Confirmed,A,2023,4
742,Community and Housing,KISIMUL SCHOOL,985064,06-Jul-23,12524.72,0,175545,Learning Disabilities Placemnt,321017              Nursing & Residential Care Homes,A,2023,4
743,Community and Housing,KISIMUL SCHOOL,985306,06-Jul-23,16304,0,175545,Learning Disabilities Placemnt,321017              Nursing & Residential Care Homes,A,2023,4
744,Community and Housing,KISIMUL SCHOOL,990910,18-Jul-23,5543.36,0,175545,Learning Disabilities Placemnt,321017              Nursing & Residential Care Homes,A,2023,4
745,Community and Housing,KISIMUL SCHOOL,997970,27-Jul-23,10960.6,0,175545,Learning Disabilities Placemnt,321017              Nursing & Residential Care Homes,A,2023,4
746,Community and Housing,REDACTED PERSONAL DATA,989219,18-Jul-23,1781.92,0,175782,Phys/Sens Placements - East,DIRECT PAYMENTS,R,2023,4
747,Unassigned,LAVAT CONSULTING LIMITED,INV-111158,05-Jul-23,3600,600,175816,MSJCB I&E,260000              Human Resources,A,2023,4
748,Corporate Services,LAVAT CONSULTING LIMITED,INV-111253,31-Jul-23,957.6,159.6,175816,Corporate Accountancy,260000              Human Resources,A,2023,4
749,Environment and Regeneration,RADIANCE PRODUCTION,RP204565,31-Jul-23,4048.8,674.8,175817,Civic Pride,290000              Arts & Leisure Services                                                                   Confirmed,A,2023,4
750,Community and Housing,REDACTED PERSONAL DATA,989280,18-Jul-23,1336.44,0,175960,Learning Disabilities Placemnt,DIRECT PAYMENTS,R,2023,4
751,Unassigned,A.J.OAKES AND PARTNERS,2023/086,27-Jul-23,14400,2400,176052,Corporate Services,"390000              Works - Construction, Repair & Maintenance",A,2023,4
752,Community and Housing,REDACTED PERSONAL DATA,989265,18-Jul-23,5187.32,0,176783,Phys/Sens Placements - East,DIRECT PAYMENTS,R,2023,4
753,Community and Housing,REDACTED PERSONAL DATA,994158,21-Jul-23,1385.44,0,176868,Phys/Sens Placements - East,DIRECT PAYMENTS,R,2023,4
754,Community and Housing,SPRING LAKE CARE HOME LTD,985206,06-Jul-23,11418,0,177067,Learning Disabilities Placemnt,321017              Nursing & Residential Care Homes,A,2023,4
755,Community and Housing,SPRING LAKE CARE HOME LTD,985408,06-Jul-23,6468,0,177067,Learning Disabilities Placemnt,321017              Nursing & Residential Care Homes,A,2023,4
756,Community and Housing,REDACTED PERSONAL DATA,989364,18-Jul-23,652.32,0,177115,Older People Placements - East,DIRECT PAYMENTS,R,2023,4
757,"Children, Schools and Family",HA TUTORS LTD,INV-13671,04-Jul-23,546,91,177219,PupilPremium- Virtual School,170000              Education,A,2023,4
758,"Children, Schools and Family",HA TUTORS LTD,INV-13817,06-Jul-23,858,143,177219,PupilPremium- Virtual School,170000              Education,A,2023,4
759,"Children, Schools and Family",HA TUTORS LTD,INV-13807,04-Jul-23,4814.4,802.4,177219,Non-Delegated Statements,170000              Education,A,2023,4
760,"Children, Schools and Family",HA TUTORS LTD,INV-13811,04-Jul-23,3436.8,572.8,177219,Non-Delegated Statements,170000              Education,A,2023,4
761,"Children, Schools and Family",HA TUTORS LTD,INV-13808,04-Jul-23,5160.8,860.13,177219,Non-Delegated Statements,170000              Education,A,2023,4
762,"Children, Schools and Family",HA TUTORS LTD,INV-13809,04-Jul-23,2782.8,463.8,177219,Non-Delegated Statements,170000              Education,A,2023,4
763,"Children, Schools and Family",HA TUTORS LTD,INV-13812,04-Jul-23,2761.2,460.2,177219,Non-Delegated Statements,170000              Education,A,2023,4
764,"Children, Schools and Family",HA TUTORS LTD,INV-13802,04-Jul-23,1404,234,177219,Non-Delegated Statements,170000              Education,A,2023,4
765,"Children, Schools and Family",HA TUTORS LTD,INV-13806,04-Jul-23,1504.8,250.8,177219,Non-Delegated Statements,170000              Education,A,2023,4
766,"Children, Schools and Family",HA TUTORS LTD,INV-13803,04-Jul-23,5200.2,866.7,177219,Non-Delegated Statements,170000              Education,A,2023,4
767,"Children, Schools and Family",HA TUTORS LTD,INV-13805,04-Jul-23,1708.8,284.8,177219,Non-Delegated Statements,170000              Education,A,2023,4
768,"Children, Schools and Family",HA TUTORS LTD,INV-13804,04-Jul-23,5965.2,994.2,177219,Non-Delegated Statements,170000              Education,A,2023,4
769,Environment and Regeneration,PERMANENT FUTURES,15120,07-Jul-23,4329,721.5,177323,Reg. Serv - Shared Mgnt Costs,260000              Human Resources                                                                           Confirmed,A,2023,4
770,Environment and Regeneration,PERMANENT FUTURES,16821,06-Jul-23,13320,2220,177323,Reg. Serv - Shared Mgnt Costs,260000              Human Resources                                                                           Confirmed,A,2023,4
771,Environment and Regeneration,PERMANENT FUTURES,19075,06-Jul-23,19980,3330,177323,Reg. Serv - Shared Mgnt Costs,260000              Human Resources                                                                           Confirmed,A,2023,4
772,Environment and Regeneration,PERMANENT FUTURES,17191,01-Aug-23,11322,1887,177323,Reg. Serv - Shared Mgnt Costs,260000              Human Resources                                                                           Confirmed,A,2023,4
773,Corporate Services,EXPERT IN MIND,40980,11-Jul-23,557,92.83,177342,SLLP - Disbursements,280000              Legal Services                                                                            Confirmed,A,2023,4
774,Community and Housing,HYTYME B AND B,26881,10-Jul-23,1648.44,274.74,177425,Housing Strategy,321000              Social Community Care Supplies & Services - Adult,A,2023,4
775,Community and Housing,HYTYME B AND B,26931,10-Jul-23,930,155,177425,Housing Strategy,321000              Social Community Care Supplies & Services - Adult,A,2023,4
776,Community and Housing,HYTYME B AND B,26986,10-Jul-23,1872,312,177425,Housing Strategy,321000              Social Community Care Supplies & Services - Adult,A,2023,4
777,Community and Housing,HYTYME B AND B,26985,12-Jul-23,15170.4,2528.4,177425,Bed & Breakfast - accomm,321000              Social Community Care Supplies & Services - Adult,A,2023,4
778,"Children, Schools and Family",HYTYME B AND B,27003,17-Jul-23,1386,231,177425,Family Assessmt & Intervention,321000              Social Community Care Supplies & Services - Adult,A,2023,4
779,"Children, Schools and Family",HYTYME B AND B,26950,17-Jul-23,1432.2,238.7,177425,Family Assessmt & Intervention,321000              Social Community Care Supplies & Services - Adult,A,2023,4
780,"Children, Schools and Family",HYTYME B AND B,27008,17-Jul-23,1386,231,177425,Family Assessmt & Intervention,321000              Social Community Care Supplies & Services - Adult,A,2023,4
781,"Children, Schools and Family",HYTYME B AND B,26955,20-Jul-23,1432.2,238.7,177425,Family Assessmt & Intervention,321000              Social Community Care Supplies & Services - Adult,A,2023,4
782,"Children, Schools and Family",HYTYME B AND B,26854,25-Jul-23,840,140,177425,Family Supp SafeGuard - Place,321000              Social Community Care Supplies & Services - Adult,A,2023,4
783,Community and Housing,REDACTED PERSONAL DATA,989169,18-Jul-23,674.72,0,177453,Phys/Sens Placements - East,DIRECT PAYMENTS,R,2023,4
784,Community and Housing,REDACTED PERSONAL DATA,989164,18-Jul-23,724.72,0,177476,Learning Disabilities Placemnt,DIRECT PAYMENTS,R,2023,4
785,Community and Housing,REDACTED PERSONAL DATA,989110,18-Jul-23,1197.28,0,177502,Phys/Sens Placements - East,DIRECT PAYMENTS,R,2023,4
786,Environment and Regeneration,SUSTAINABLE MERTON,1487,10-Jul-23,4500,0,177594,Energy Projects,190000              Facilities & Management Services,A,2023,4
787,Corporate Services,HPI LIMITED,6160-001833570,18-Jul-23,896.53,149.42,177649,Local Taxation Bailiffs,200000              Financial Services,A,2023,4
788,Environment and Regeneration,CAMPBELL ASSOCIATES,29834,11-Jul-23,1665.6,277.6,177655,NOISE - RSP,180000              Environmental Services,A,2023,4
789,Community and Housing,THE ARTEMIS TEAM LIMITED,14746,24-Jul-23,1423.01,237.17,177680,Learning Disabilities Placemnt,290000              Arts & Leisure Services,A,2023,4
790,"Children, Schools and Family",Catch 22 Charity Ltd,CSI0001499,24-Jul-23,21000,0,177705, Young Person Substance Misuse,321100              Social Community Care Supplies & Services - Children,A,2023,4
791,Community and Housing,REDACTED PERSONAL DATA,989178,18-Jul-23,572.76,0,177739,Phys/Sens Placements - East,DIRECT PAYMENTS,R,2023,4
792,Community and Housing,REDACTED PERSONAL DATA,989191,18-Jul-23,668.24,0,177785,Phys/Sens Placements - East,DIRECT PAYMENTS,R,2023,4
793,Corporate Services,REDACTED PERSONAL DATA,1336/SHA,27-Jul-23,1020,170,177872,SLLP - Disbursements,280000              Legal Services                                                                            Confirmed,R,2023,4
794,Community and Housing,WORKSHOP 305,RAG167,21-Jul-23,807.6,0,177941,Learning Disabilities Placemnt,321000              Social Community Care Supplies & Services - Adult,A,2023,4
795,Community and Housing,WORKSHOP 305,ASCO167,21-Jul-23,807.6,0,177941,Learning Disabilities Placemnt,321000              Social Community Care Supplies & Services - Adult,A,2023,4
796,Community and Housing,WORKSHOP 305,IALA167,21-Jul-23,538.4,0,177941,Learning Disabilities Placemnt,321000              Social Community Care Supplies & Services - Adult,A,2023,4
797,Community and Housing,WORKSHOP 305,IALA165,21-Jul-23,538.4,0,177941,Learning Disabilities Placemnt,321000              Social Community Care Supplies & Services - Adult,A,2023,4
798,Community and Housing,WORKSHOP 305,SLAP167,21-Jul-23,538.32,0,177941,Learning Disabilities Placemnt,321000              Social Community Care Supplies & Services - Adult,A,2023,4
799,Community and Housing,WORKSHOP 305,IALA166,21-Jul-23,538.4,0,177941,Learning Disabilities Placemnt,321000              Social Community Care Supplies & Services - Adult,A,2023,4
800,Capital,WORKSHOP 305,N'HOOD FUND 22,26-Jul-23,67097,0,177941,Wimbledon Area Regeneration,321000              Social Community Care Supplies & Services - Adult,A,2023,4
801,Community and Housing,REDACTED PERSONAL DATA,989103,18-Jul-23,695.92,0,177967,Learning Disabilities Placemnt,DIRECT PAYMENTS,R,2023,4
802,"Children, Schools and Family",CARIBBEAN CATERING,411,03-Aug-23,1450,0,177996,Family Hubs,110000              Catering,A,2023,4
803,Community and Housing,REDACTED PERSONAL DATA,989228,18-Jul-23,890.96,0,177999,Learning Disabilities Placemnt,DIRECT PAYMENTS,R,2023,4
804,Community and Housing,REDACTED PERSONAL DATA,989166,18-Jul-23,1008.44,0,178412,Learning Disabilities Placemnt,DIRECT PAYMENTS,R,2023,4
805,Community and Housing,REDACTED PERSONAL DATA,989347,18-Jul-23,4419.8,0,178412,Learning Disabilities Placemnt,DIRECT PAYMENTS,R,2023,4
806,Community and Housing,BRAMBLEDOWN CARE HOME,985218,06-Jul-23,7448.8,0,178465,Phys/Sens Placements - East,321017              Nursing & Residential Care Homes,A,2023,4
807,Community and Housing,KEW HOUSE,985227,06-Jul-23,3289.24,0,178621,Older People Placements - East,321017              Nursing & Residential Care Homes,A,2023,4
808,Community and Housing,KEW HOUSE,985303,06-Jul-23,5800,0,178621,Older People Placements - East,321017              Nursing & Residential Care Homes,A,2023,4
809,Community and Housing,REDACTED PERSONAL DATA,989356,18-Jul-23,4675.08,0,178802,Learning Disabilities Placemnt,DIRECT PAYMENTS,R,2023,4
810,Environment and Regeneration,KEL COMPUTING LTD,11901,24-Jul-23,3211.2,535.2,178858,Property Mgt & Review,270000              Information Communication Technology,A,2023,4
811,Community and Housing,REDACTED PERSONAL DATA,989298,18-Jul-23,1776.8,0,178874,Learning Disabilities Placemnt,DIRECT PAYMENTS,R,2023,4
812,Corporate Services,PENNA PLC,674714,26-Jul-23,18859.8,3143.3,179007,Press and Public Relations,190000              Facilities & Management Services,A,2023,4
813,Community and Housing,REDACTED PERSONAL DATA,994171,21-Jul-23,1226.36,0,179049,Learning Disabilities Placemnt,DIRECT PAYMENTS,R,2023,4
814,Community and Housing,REDACTED PERSONAL DATA,989088,18-Jul-23,678.2,0,179142,Learning Disabilities Placemnt,DIRECT PAYMENTS,R,2023,4
815,"Children, Schools and Family",GRAVENEY SCHOOL,GA662,25-Jul-23,26901.31,0,179267,Non-Delegated Statements,170000              Education,A,2023,4
816,Community and Housing,REDACTED PERSONAL DATA,989314,18-Jul-23,1704.12,0,179332,Phys/Sens Placements - East,DIRECT PAYMENTS,R,2023,4
817,Community and Housing,REDACTED PERSONAL DATA,989367,18-Jul-23,4241.32,0,179383,Learning Disabilities Placemnt,DIRECT PAYMENTS,R,2023,4
818,Community and Housing,ELYSIUM CARE PARTNERSHIPS LTD,985256,06-Jul-23,9049.16,0,179734,Learning Disabilities Placemnt,321017              Nursing & Residential Care Homes,A,2023,4
819,Community and Housing,ELYSIUM CARE PARTNERSHIPS LTD,985272,06-Jul-23,3462.2,0,179734,Learning Disabilities Placemnt,321017              Nursing & Residential Care Homes,A,2023,4
820,Community and Housing,ELYSIUM CARE PARTNERSHIPS LTD,985385,06-Jul-23,9821,0,179734,Learning Disabilities Placemnt,321017              Nursing & Residential Care Homes,A,2023,4
821,Community and Housing,WESTHOPE LTD,985222,06-Jul-23,6350.78,1058.46,179748,Learning Disabilities Placemnt,321017              Nursing & Residential Care Homes,A,2023,4
822,Environment and Regeneration,BARKLANDS TREE SPECIALISTS,350,13-Jul-23,7155,1192.5,179780,Pks Rec Grds (Unloc),240000              Horticultural,A,2023,4
823,Capital,BARKLANDS TREE SPECIALISTS,352,13-Jul-23,3102,517,179780,Street Trees,240000              Horticultural,A,2023,4
824,Environment and Regeneration,BARKLANDS TREE SPECIALISTS,353,18-Jul-23,1533,255.5,179780,Highways GM Contract,240000              Horticultural,A,2023,4
825,Environment and Regeneration,BARKLANDS TREE SPECIALISTS,351,26-Jul-23,52224,8704,179780,Highways GM Contract,240000              Horticultural,A,2023,4
826,Community and Housing,SUNNINGDALE HOUSE CARE HOME,985379,06-Jul-23,2575,0,179794,Learning Disabilities Placemnt,321017              Nursing & Residential Care Homes,A,2023,4
827,Community and Housing,SUNLIGHT HOUSE,985163,06-Jul-23,7667.6,0,179813,Learning Disabilities Placemnt,321017              Nursing & Residential Care Homes,A,2023,4
828,Community and Housing,SUNLIGHT HOUSE,985277,06-Jul-23,5140,0,179813,Learning Disabilities Placemnt,321017              Nursing & Residential Care Homes,A,2023,4
829,Community and Housing,BHAKTI SHYAMA CARE CENTRE,985153,06-Jul-23,3557.92,0,179993,Older People Placements - East,321017              Nursing & Residential Care Homes,A,2023,4
830,Community and Housing,BHAKTI SHYAMA CARE CENTRE,985448,06-Jul-23,2985.6,0,179993,Older People Placements - East,321017              Nursing & Residential Care Homes,A,2023,4
831,Community and Housing,BHAKTI SHYAMA CARE CENTRE,997813,27-Jul-23,1651.89,0,179993,Older People Placements - East,321017              Nursing & Residential Care Homes,A,2023,4
832,"Children, Schools and Family",REAMCARE LTD,LHRPAM072301,07-Jul-23,19457.1,0,180045,Placements Under 18,321100              Social Community Care Supplies & Services - Children Residential,A,2023,4
833,Community and Housing,REDACTED PERSONAL DATA,989438,18-Jul-23,1029.64,0,180174,Older People Placements - East,DIRECT PAYMENTS,R,2023,4
834,Community and Housing,REDACTED PERSONAL DATA,989224,18-Jul-23,509.12,0,180242,Phys/Sens Placements - East,DIRECT PAYMENTS,R,2023,4
835,Community and Housing,REDACTED PERSONAL DATA,989107,18-Jul-23,1177.36,0,180282,Phys/Sens Placements - East,DIRECT PAYMENTS,R,2023,4
836,Community and Housing,REDACTED PERSONAL DATA,989113,18-Jul-23,2839.28,0,180285,Older People Placements - East,DIRECT PAYMENTS,R,2023,4
837,Community and Housing,SEVACARE,74000-74029VOID,20-Jul-23,10018.4,0,180307,Older People Placements - East,321000              Social Community Care Supplies & Services - Adult,A,2023,4
838,Community and Housing,SEVACARE,74000-74029JH,20-Jul-23,3041.3,0,180307,Learning Disabilities Placemnt,321000              Social Community Care Supplies & Services - Adult,A,2023,4
839,Community and Housing,SEVACARE,74000-74029AB,20-Jul-23,3059.19,0,180307,Phys/Sens Placements - East,321000              Social Community Care Supplies & Services - Adult,A,2023,4
840,Community and Housing,SEVACARE,74000-74029CH,20-Jul-23,1466.98,0,180307,Phys/Sens Placements - East,321000              Social Community Care Supplies & Services - Adult,A,2023,4
841,Community and Housing,SEVACARE,74000-74029SA,20-Jul-23,644.04,0,180307,Older People Placements - East,321000              Social Community Care Supplies & Services - Adult,A,2023,4
842,Community and Housing,SEVACARE,74000-74029VS,20-Jul-23,1542.83,0,180307,Older People Placements - East,321000              Social Community Care Supplies & Services - Adult,A,2023,4
843,Community and Housing,SEVACARE,74000-74029LS,20-Jul-23,1395.42,0,180307,Learning Disabilities Placemnt,321000              Social Community Care Supplies & Services - Adult,A,2023,4
844,Community and Housing,SEVACARE,74000-74029MW,20-Jul-23,644.04,0,180307,Learning Disabilities Placemnt,321000              Social Community Care Supplies & Services - Adult,A,2023,4
845,Community and Housing,SEVACARE,74000-74029JS,20-Jul-23,590.37,0,180307,Phys/Sens Placements - East,321000              Social Community Care Supplies & Services - Adult,A,2023,4
846,Community and Housing,SEVACARE,74000-74029JC,20-Jul-23,1001.84,0,180307,Older People Placements - East,321000              Social Community Care Supplies & Services - Adult,A,2023,4
847,Community and Housing,SEVACARE,74000-74029JE,20-Jul-23,930.28,0,180307,Phys/Sens Placements - East,321000              Social Community Care Supplies & Services - Adult,A,2023,4
848,Community and Housing,SEVACARE,74000-74029IN,20-Jul-23,1842.67,0,180307,Older People Placements - East,321000              Social Community Care Supplies & Services - Adult,A,2023,4
849,Community and Housing,SEVACARE,74000-74029FH,20-Jul-23,715.6,0,180307,Learning Disabilities Placemnt,321000              Social Community Care Supplies & Services - Adult,A,2023,4
850,Community and Housing,SEVACARE,74000-74029RR,20-Jul-23,1341.75,0,180307,Older People Placements - East,321000              Social Community Care Supplies & Services - Adult,A,2023,4
851,Community and Housing,SEVACARE,74000-74029EL,20-Jul-23,661.93,0,180307,Older People Placements - East,321000              Social Community Care Supplies & Services - Adult,A,2023,4
852,Community and Housing,SEVACARE,74000-74029DS,20-Jul-23,1127.07,0,180307,Older People Placements - East,321000              Social Community Care Supplies & Services - Adult,A,2023,4
853,Community and Housing,SEVACARE,74000-74029KJ,20-Jul-23,1091.29,0,180307,Older People Placements - East,321000              Social Community Care Supplies & Services - Adult,A,2023,4
854,Community and Housing,SEVACARE,74000-74029WD,20-Jul-23,500.92,0,180307,Older People Placements - East,321000              Social Community Care Supplies & Services - Adult,A,2023,4
855,Community and Housing,SEVACARE,74000-74029PR,20-Jul-23,518.81,0,180307,Older People Placements - East,321000              Social Community Care Supplies & Services - Adult,A,2023,4
856,Community and Housing,SEVACARE,74000-74029SM,20-Jul-23,1019.73,0,180307,Older People Placements - East,321000              Social Community Care Supplies & Services - Adult,A,2023,4
857,Community and Housing,SEVACARE,74000-74029HM,20-Jul-23,894.5,0,180307,Older People Placements - East,321000              Social Community Care Supplies & Services - Adult,A,2023,4
858,Community and Housing,SEVACARE,74000-74029PY,20-Jul-23,518.81,0,180307,Older People Placements - East,321000              Social Community Care Supplies & Services - Adult,A,2023,4
859,Community and Housing,SEVACARE,74000-74029RF,20-Jul-23,626.15,0,180307,Older People Placements - East,321000              Social Community Care Supplies & Services - Adult,A,2023,4
860,Community and Housing,SEVACARE,74000-74029RDS,20-Jul-23,769.27,0,180307,Older People Placements - East,321000              Social Community Care Supplies & Services - Adult,A,2023,4
861,Community and Housing,SEVACARE,74000-74029EV,20-Jul-23,644.04,0,180307,Older People Placements - East,321000              Social Community Care Supplies & Services - Adult,A,2023,4
862,Community and Housing,SEVACARE,74000-74029FL,20-Jul-23,814,0,180307,Older People Placements - East,321000              Social Community Care Supplies & Services - Adult,A,2023,4
863,Community and Housing,SEVACARE,74000-74029ML,20-Jul-23,1216.52,0,180307,Older People Placements - East,321000              Social Community Care Supplies & Services - Adult,A,2023,4
864,"Children, Schools and Family",BURNTWOOD SCHOOL,BTSI128,04-Jul-23,20327.78,0,180406,Non-Delegated Statements,170000              Education,A,2023,4
865,"Children, Schools and Family",BURNTWOOD SCHOOL,BTSI131,11-Jul-23,26091.98,0,180406,Non-Delegated Statements,170000              Education,A,2023,4
866,Unassigned,UK Power Networks (Faults / Operations),92171868,31-Jul-23,1872,312,180431,Environment and Regeneration,190000              Facilities & Management Services,A,2023,4
867,Unassigned,UK Power Networks (Faults / Operations),92171869,31-Jul-23,1872,312,180431,Environment and Regeneration,190000              Facilities & Management Services,A,2023,4
868,Capital,UK Power Networks (Faults / Operations),92171871,31-Jul-23,536.4,89.4,180431,Highways & Footways,190000              Facilities & Management Services,A,2023,4
869,"Children, Schools and Family",RESTORE PLC,1378282,18-Jul-23,852.01,142,180441,Head of CSC & Youth Inclusion,190000              Facilities & Management Services,A,2023,4
870,Corporate Services,RESTORE PLC,1380403,18-Jul-23,859.7,143.28,180441,Legal Shared Service,190000              Facilities & Management Services,A,2023,4
871,Community and Housing,REDACTED PERSONAL DATA,989407,18-Jul-23,1320.52,0,180447,Older People Placements - East,DIRECT PAYMENTS,R,2023,4
872,Corporate Services,ZYLPHA LIMITED,INV-3296,25-Jul-23,17964.9,2994.15,180532,Legal Shared Service,270000              Information Communication Technology                                                      Confirmed,A,2023,4
873,"Children, Schools and Family",REDACTED PERSONAL DATA,987728,07-Jul-23,548.09,0,180579,UASC LAC Under 18,321100              Social Community Care Supplies & Services - Children,R,2023,4
874,"Children, Schools and Family",REDACTED PERSONAL DATA,987755,07-Jul-23,548.09,0,180579,Placements Under 18,321100              Social Community Care Supplies & Services - Children,R,2023,4
875,"Children, Schools and Family",REDACTED PERSONAL DATA,989701,14-Jul-23,548.09,0,180579,UASC LAC Under 18,321100              Social Community Care Supplies & Services - Children,R,2023,4
876,"Children, Schools and Family",REDACTED PERSONAL DATA,989727,14-Jul-23,548.09,0,180579,Placements Under 18,321100              Social Community Care Supplies & Services - Children,R,2023,4
877,"Children, Schools and Family",REDACTED PERSONAL DATA,994444,21-Jul-23,548.09,0,180579,UASC LAC Under 18,321100              Social Community Care Supplies & Services - Children,R,2023,4
878,"Children, Schools and Family",REDACTED PERSONAL DATA,994471,21-Jul-23,548.09,0,180579,Placements Under 18,321100              Social Community Care Supplies & Services - Children,R,2023,4
879,"Children, Schools and Family",REDACTED PERSONAL DATA,998575,31-Jul-23,748.09,0,180579,UASC LAC Under 18,321100              Social Community Care Supplies & Services - Children,R,2023,4
880,"Children, Schools and Family",REDACTED PERSONAL DATA,998603,31-Jul-23,748.09,0,180579,Placements Under 18,321100              Social Community Care Supplies & Services - Children,R,2023,4
881,Environment and Regeneration,HMCTS,TECJUL2023,24-Jul-23,25000,0,180649,Operational Running Costs,350000              Street & Traffic Management,A,2023,4
882,Unassigned,LOVE WIMBLEDON LTD BUS.IMP.DIS,5029,21-Jul-23,49990.76,8331.79,180802,Corporate Services,200000              Financial Services,A,2023,4
883,Environment and Regeneration,LOVE WIMBLEDON LTD BUS.IMP.DIS,5041,27-Jul-23,900,150,180802,Street Cleansing (Inc. Gully),200000              Financial Services,A,2023,4
884,Community and Housing,REDACTED PERSONAL DATA,989105,18-Jul-23,763.68,0,180804,Learning Disabilities Placemnt,DIRECT PAYMENTS,R,2023,4
885,"Children, Schools and Family",FIVE RIVERS CHILD CARE,104758,24-Jul-23,6214.28,0,180823,Placements Under 18,360000              Passenger Transport                                                                       Confirmed,A,2023,4
886,Community and Housing,REDACTED PERSONAL DATA,994126,21-Jul-23,1771.8,0,180866,Phys/Sens Placements - East,DIRECT PAYMENTS,R,2023,4
887,Community and Housing,REDACTED PERSONAL DATA,989303,18-Jul-23,1701.92,0,180889,Older People Placements - East,DIRECT PAYMENTS,R,2023,4
888,Community and Housing,SENAD ECCLESBOURNE LODGE,985052,06-Jul-23,9810.88,0,180904,Learning Disabilities Placemnt,321017              Nursing & Residential Care Homes,A,2023,4
889,Community and Housing,REDACTED PERSONAL DATA,989398,18-Jul-23,826.64,0,180999,Older People Placements - East,DIRECT PAYMENTS,R,2023,4
890,Environment and Regeneration,PREMIER MINICAB SER. UK LTD,69332,03-Jul-23,2160,360,181053,Passenger Transport,360000              Passenger Transport,A,2023,4
891,Environment and Regeneration,PREMIER MINICAB SER. UK LTD,71241,24-Jul-23,3660,610,181053,Passenger Transport,360000              Passenger Transport,A,2023,4
892,Environment and Regeneration,PREMIER MINICAB SER. UK LTD,70848,17-Jul-23,2520,420,181053,Passenger Transport,360000              Passenger Transport,A,2023,4
893,Community and Housing,REDACTED PERSONAL DATA,994119,21-Jul-23,2319.72,0,181129,Older People Placements - East,DIRECT PAYMENTS,R,2023,4
894,Community and Housing,Community Equipment Services,9100000762,27-Jul-23,570933.6,95155.6,181238,Pooled Equipment,410000              Social Community Care Supplies & Services,A,2023,4
895,Community and Housing,REDACTED PERSONAL DATA,989085,18-Jul-23,1400.08,0,181418,Older People Placements - East,DIRECT PAYMENTS,R,2023,4
896,Corporate Services, LoCTA Limited,B10598,24-Jul-23,3969,661.5,181509,Local Taxation Services,270000              Information Communication Technology,A,2023,4
897,"Children, Schools and Family",REDACTED PERSONAL DATA,07/2023/DANIELLA,21-Jul-23,1154.92,0,181587,Placements Over 18,321000              Social Community Care Supplies & Services - Adult,R,2023,4
898,"Children, Schools and Family",REDACTED PERSONAL DATA,08/2023/DANIELLA,21-Jul-23,1154.92,0,181587,Placements Over 18,321000              Social Community Care Supplies & Services - Adult,R,2023,4
899,Corporate Services,PSW PAPER AND PRINT LTD,INV114030,25-Jul-23,1109.04,184.84,181895,PrintUnit-HighVolPhtcopying,190000              Facilities & Management Services,A,2023,4
900,Environment and Regeneration,METIS CONSULTANTS LIMITED,4812,24-Jul-23,7808,1301.33,181960,Highways Maintenance,150000              Consultancy,A,2023,4
901,Corporate Services,INTERCOUNTRY ADOPTION CENTRE,13512,05-Jul-23,1438.8,239.8,182024,Legal Shared Service,280000              Legal Services                                                                            confirmed,A,2023,4
902,Corporate Services,SHARPE PRITCHARD SOLICITORS,100002521,24-Jul-23,972,162,182165,SLLP - Disbursements,280000              Legal Services                                                                            Confirmed,A,2023,4
903,Unassigned,SHARPE PRITCHARD SOLICITORS,104153/2,24-Jul-23,779,0,182165,Corporate Accountancy,280000              Legal Services                                                                            Confirmed,A,2023,4
904,Corporate Services,REDACTED PERSONAL DATA,1765/JN,27-Jul-23,1050,175,182247,SLLP - Disbursements,280000              Legal Services                                                                            Confirmed,R,2023,4
905,Corporate Services,REDACTED PERSONAL DATA,1767/JN,02-Aug-23,900,150,182247,SLLP - Disbursements,280000              Legal Services                                                                            Confirmed,R,2023,4
906,Community and Housing,REDACTED PERSONAL DATA,989091,18-Jul-23,4454.8,0,182348,Older People Placements - East,DIRECT PAYMENTS,R,2023,4
907,Community and Housing,BIRKIN CLEANING SERVICES LTD,29633,25-Jul-23,1585.7,264.28,182414,Mitcham Library,130000              Cleaning & Janitorial,A,2023,4
908,Environment and Regeneration,BIRKIN CLEANING SERVICES LTD,29628,25-Jul-23,2894.94,482.49,182414,Vestry Hall,130000              Cleaning & Janitorial,A,2023,4
909,Community and Housing,BIRKIN CLEANING SERVICES LTD,29640,25-Jul-23,1962.97,327.16,182414,JMC  Day Centre,130000              Cleaning & Janitorial,A,2023,4
910,Community and Housing,BIRKIN CLEANING SERVICES LTD,29631,25-Jul-23,3193.69,532.28,182414,Wimbledon Library,130000              Cleaning & Janitorial,A,2023,4
911,Corporate Services,BIRKIN CLEANING SERVICES LTD,31372,24-Jul-23,504.24,84.04,182414,Corporate Contracts - FM,130000              Cleaning & Janitorial,A,2023,4
912,Corporate Services,BIRKIN CLEANING SERVICES LTD,31367,25-Jul-23,1008,168,182414,Buildings Maintenance,130000              Cleaning & Janitorial,A,2023,4
913,Environment and Regeneration,BIRKIN CLEANING SERVICES LTD,30982,06-Jul-23,3196.02,532.67,182414,Vestry Hall,130000              Cleaning & Janitorial,A,2023,4
914,Corporate Services,BIRKIN CLEANING SERVICES LTD,30951,06-Jul-23,27305.2,4550.87,182414,Corporate Contracts - FM,130000              Cleaning & Janitorial,A,2023,4
915,Corporate Services,BIRKIN CLEANING SERVICES LTD,30978,06-Jul-23,27305.2,4550.87,182414,Corporate Contracts - FM,130000              Cleaning & Janitorial,A,2023,4
916,Environment and Regeneration,BIRKIN CLEANING SERVICES LTD,31003,07-Jul-23,902.47,150.41,182414,Transport-Contract Hire,130000              Cleaning & Janitorial,A,2023,4
917,"Children, Schools and Family",BIRKIN CLEANING SERVICES LTD,30970,11-Jul-23,1473.44,245.57,182414,Acacia IGC Building Management,130000              Cleaning & Janitorial,A,2023,4
918,Community and Housing,BIRKIN CLEANING SERVICES LTD,30959,07-Jul-23,1066.75,177.79,182414,Wimbledon Library,130000              Cleaning & Janitorial,A,2023,4
919,"Children, Schools and Family",BIRKIN CLEANING SERVICES LTD,30998,07-Jul-23,754.75,125.79,182414,Adventure Playground Project,130000              Cleaning & Janitorial,A,2023,4
920,Community and Housing,BIRKIN CLEANING SERVICES LTD,30990,07-Jul-23,617.09,102.85,182414,West Barnes Lib,130000              Cleaning & Janitorial,A,2023,4
921,Community and Housing,BIRKIN CLEANING SERVICES LTD,30968,11-Jul-23,1842.22,307.04,182414,Highpath (DayCentre) Leyton Rd,130000              Cleaning & Janitorial,A,2023,4
922,Community and Housing,BIRKIN CLEANING SERVICES LTD,30961,11-Jul-23,2120.48,353.41,182414,Pollards Hill Library,130000              Cleaning & Janitorial,A,2023,4
923,"Children, Schools and Family",BIRKIN CLEANING SERVICES LTD,30972,11-Jul-23,2465.74,410.96,182414,Steers Mead BuildingManagement,130000              Cleaning & Janitorial,A,2023,4
924,Corporate Services,BIRKIN CLEANING SERVICES LTD,30980,11-Jul-23,2444.05,407.34,182414,Corporate Contracts - FM,130000              Cleaning & Janitorial,A,2023,4
925,Community and Housing,BIRKIN CLEANING SERVICES LTD,31001,11-Jul-23,1451.57,241.93,182414,Donald Hope Library,130000              Cleaning & Janitorial,A,2023,4
926,Community and Housing,BIRKIN CLEANING SERVICES LTD,30989,07-Jul-23,1049.77,174.96,182414,Raynes Park Library,130000              Cleaning & Janitorial,A,2023,4
927,Environment and Regeneration,BIRKIN CLEANING SERVICES LTD,30976,07-Jul-23,902.47,150.41,182414,Transport-Contract Hire,130000              Cleaning & Janitorial,A,2023,4
928,Community and Housing,BIRKIN CLEANING SERVICES LTD,30994,07-Jul-23,770.33,128.39,182414,Eastway Day Centre,130000              Cleaning & Janitorial,A,2023,4
929,"Children, Schools and Family",BIRKIN CLEANING SERVICES LTD,30992,07-Jul-23,750.68,125.11,182414,Merton Youth Centres.,130000              Cleaning & Janitorial,A,2023,4
930,Community and Housing,BIRKIN CLEANING SERVICES LTD,30993,11-Jul-23,2143.6,357.27,182414,All Saints Day Centre,130000              Cleaning & Janitorial,A,2023,4
931,Community and Housing,BIRKIN CLEANING SERVICES LTD,30996,11-Jul-23,2167.12,361.19,182414,JMC  Day Centre,130000              Cleaning & Janitorial,A,2023,4
932,Corporate Services,BIRKIN CLEANING SERVICES LTD,30953,11-Jul-23,2444.05,407.34,182414,Corporate Contracts - FM,130000              Cleaning & Janitorial,A,2023,4
933,Corporate Services,BIRKIN CLEANING SERVICES LTD,30957,10-Jul-23,8688.29,1448.05,182414,Corporate Contracts - FM,130000              Cleaning & Janitorial,A,2023,4
934,Community and Housing,BIRKIN CLEANING SERVICES LTD,30974,11-Jul-23,1451.57,241.93,182414,Donald Hope Library,130000              Cleaning & Janitorial,A,2023,4
935,"Children, Schools and Family",BIRKIN CLEANING SERVICES LTD,30965,07-Jul-23,750.68,125.11,182414,Merton Youth Centres.,130000              Cleaning & Janitorial,A,2023,4
936,Environment and Regeneration,BIRKIN CLEANING SERVICES LTD,30983,07-Jul-23,698.4,116.4,182414,Durnsford industrial estate,130000              Cleaning & Janitorial,A,2023,4
937,Community and Housing,BIRKIN CLEANING SERVICES LTD,30987,11-Jul-23,1750.62,291.77,182414,Mitcham Library,130000              Cleaning & Janitorial,A,2023,4
938,Community and Housing,BIRKIN CLEANING SERVICES LTD,30966,11-Jul-23,2143.6,357.27,182414,All Saints Day Centre,130000              Cleaning & Janitorial,A,2023,4
939,Community and Housing,BIRKIN CLEANING SERVICES LTD,30969,11-Jul-23,2167.12,361.19,182414,JMC  Day Centre,130000              Cleaning & Janitorial,A,2023,4
940,"Children, Schools and Family",BIRKIN CLEANING SERVICES LTD,30973,11-Jul-23,1438.18,239.7,182414,Brightwell,130000              Cleaning & Janitorial,A,2023,4
941,Community and Housing,BIRKIN CLEANING SERVICES LTD,30986,11-Jul-23,1066.75,177.79,182414,Wimbledon Library,130000              Cleaning & Janitorial,A,2023,4
942,Community and Housing,BIRKIN CLEANING SERVICES LTD,30967,11-Jul-23,770.33,128.39,182414,Eastway Day Centre,130000              Cleaning & Janitorial,A,2023,4
943,"Children, Schools and Family",BIRKIN CLEANING SERVICES LTD,30991,11-Jul-23,754.63,125.77,182414,Merton Youth Centres.,130000              Cleaning & Janitorial,A,2023,4
944,Community and Housing,BIRKIN CLEANING SERVICES LTD,30960,11-Jul-23,1750.62,291.77,182414,Mitcham Library,130000              Cleaning & Janitorial,A,2023,4
945,Community and Housing,BIRKIN CLEANING SERVICES LTD,30995,11-Jul-23,1842.22,307.04,182414,Highpath (DayCentre) Leyton Rd,130000              Cleaning & Janitorial,A,2023,4
946,Community and Housing,BIRKIN CLEANING SERVICES LTD,30952,11-Jul-23,1798.67,299.78,182414,Morden Library,130000              Cleaning & Janitorial,A,2023,4
947,Community and Housing,BIRKIN CLEANING SERVICES LTD,30958,25-Jul-23,3525.84,587.64,182414,Wimbledon Library,130000              Cleaning & Janitorial,A,2023,4
948,Corporate Services,BIRKIN CLEANING SERVICES LTD,30981,11-Jul-23,1448.78,241.46,182414,Corporate Contracts - FM,130000              Cleaning & Janitorial,A,2023,4
949,"Children, Schools and Family",BIRKIN CLEANING SERVICES LTD,30999,11-Jul-23,2465.74,410.96,182414,Steers Mead BuildingManagement,130000              Cleaning & Janitorial,A,2023,4
950,"Children, Schools and Family",BIRKIN CLEANING SERVICES LTD,30997,14-Jul-23,1473.44,245.57,182414,Acacia IGC Building Management,130000              Cleaning & Janitorial,A,2023,4
951,Environment and Regeneration,BIRKIN CLEANING SERVICES LTD,30956,14-Jul-23,698.4,116.4,182414,Durnsford industrial estate,130000              Cleaning & Janitorial,A,2023,4
952,Community and Housing,BIRKIN CLEANING SERVICES LTD,30979,14-Jul-23,1798.67,299.78,182414,Morden Library,130000              Cleaning & Janitorial,A,2023,4
953,Community and Housing,BIRKIN CLEANING SERVICES LTD,30988,14-Jul-23,2120.48,353.41,182414,Pollards Hill Library,130000              Cleaning & Janitorial,A,2023,4
954,Community and Housing,BIRKIN CLEANING SERVICES LTD,30985,25-Jul-23,3525.84,587.64,182414,Wimbledon Library,130000              Cleaning & Janitorial,A,2023,4
955,"Children, Schools and Family",BIRKIN CLEANING SERVICES LTD,30971,14-Jul-23,754.75,125.79,182414,Adventure Playground Project,130000              Cleaning & Janitorial,A,2023,4
956,"Children, Schools and Family",BIRKIN CLEANING SERVICES LTD,31000,14-Jul-23,1438.18,239.7,182414,Brightwell,130000              Cleaning & Janitorial,A,2023,4
957,"Children, Schools and Family",BIRKIN CLEANING SERVICES LTD,30964,14-Jul-23,754.63,125.77,182414,Merton Youth Centres.,130000              Cleaning & Janitorial,A,2023,4
958,Corporate Services,BIRKIN CLEANING SERVICES LTD,30954,14-Jul-23,1448.78,241.46,182414,Corporate Contracts - FM,130000              Cleaning & Janitorial,A,2023,4
959,Environment and Regeneration,BIRKIN CLEANING SERVICES LTD,30977,14-Jul-23,510.59,85.1,182414,Vestry Hall,130000              Cleaning & Janitorial,A,2023,4
960,Environment and Regeneration,BIRKIN CLEANING SERVICES LTD,30955,14-Jul-23,3196.02,532.67,182414,Vestry Hall,130000              Cleaning & Janitorial,A,2023,4
961,Environment and Regeneration,BIRKIN CLEANING SERVICES LTD,31004,14-Jul-23,510.59,85.1,182414,Vestry Hall,130000              Cleaning & Janitorial,A,2023,4
962,Corporate Services,BIRKIN CLEANING SERVICES LTD,30984,19-Jul-23,8688.29,1448.05,182414,Corporate Contracts - FM,130000              Cleaning & Janitorial,A,2023,4
963,Community and Housing,BIRKIN CLEANING SERVICES LTD,31118,24-Jul-23,1451.57,241.93,182414,Donald Hope Library,130000              Cleaning & Janitorial,A,2023,4
964,Corporate Services,BIRKIN CLEANING SERVICES LTD,31098,24-Jul-23,1448.78,241.46,182414,Corporate Contracts - FM,130000              Cleaning & Janitorial,A,2023,4
965,"Children, Schools and Family",BIRKIN CLEANING SERVICES LTD,31117,24-Jul-23,1438.18,239.7,182414,Brightwell,130000              Cleaning & Janitorial,A,2023,4
966,Community and Housing,BIRKIN CLEANING SERVICES LTD,31103,24-Jul-23,1066.75,177.79,182414,Wimbledon Library,130000              Cleaning & Janitorial,A,2023,4
967,Community and Housing,BIRKIN CLEANING SERVICES LTD,31106,24-Jul-23,1049.77,174.96,182414,Raynes Park Library,130000              Cleaning & Janitorial,A,2023,4
968,Environment and Regeneration,BIRKIN CLEANING SERVICES LTD,31120,24-Jul-23,902.47,150.41,182414,Transport-Contract Hire,130000              Cleaning & Janitorial,A,2023,4
969,Community and Housing,BIRKIN CLEANING SERVICES LTD,31111,24-Jul-23,770.33,128.39,182414,Eastway Day Centre,130000              Cleaning & Janitorial,A,2023,4
970,Environment and Regeneration,BIRKIN CLEANING SERVICES LTD,31100,24-Jul-23,698.4,116.4,182414,Durnsford industrial estate,130000              Cleaning & Janitorial,A,2023,4
971,Community and Housing,BIRKIN CLEANING SERVICES LTD,31107,24-Jul-23,617.09,102.85,182414,West Barnes Lib,130000              Cleaning & Janitorial,A,2023,4
972,Environment and Regeneration,BIRKIN CLEANING SERVICES LTD,31221,24-Jul-23,510.59,85.1,182414,Vestry Hall,130000              Cleaning & Janitorial,A,2023,4
973,Community and Housing,BIRKIN CLEANING SERVICES LTD,31104,24-Jul-23,1750.62,291.77,182414,Mitcham Library,130000              Cleaning & Janitorial,A,2023,4
974,Community and Housing,BIRKIN CLEANING SERVICES LTD,31082,24-Jul-23,1798.67,299.78,182414,Morden Library,130000              Cleaning & Janitorial,A,2023,4
975,Community and Housing,BIRKIN CLEANING SERVICES LTD,31105,24-Jul-23,2120.48,353.41,182414,Pollards Hill Library,130000              Cleaning & Janitorial,A,2023,4
976,Community and Housing,BIRKIN CLEANING SERVICES LTD,31110,24-Jul-23,2143.6,357.27,182414,All Saints Day Centre,130000              Cleaning & Janitorial,A,2023,4
977,Environment and Regeneration,BIRKIN CLEANING SERVICES LTD,31099,24-Jul-23,3196.02,532.67,182414,Vestry Hall,130000              Cleaning & Janitorial,A,2023,4
978,Community and Housing,BIRKIN CLEANING SERVICES LTD,31102,25-Jul-23,3525.84,587.64,182414,Wimbledon Library,130000              Cleaning & Janitorial,A,2023,4
979,Corporate Services,BIRKIN CLEANING SERVICES LTD,31097,24-Jul-23,2444.05,407.34,182414,Corporate Contracts - FM,130000              Cleaning & Janitorial,A,2023,4
980,Corporate Services,BIRKIN CLEANING SERVICES LTD,31101,24-Jul-23,8688.29,1448.05,182414,Corporate Contracts - FM,130000              Cleaning & Janitorial,A,2023,4
981,Corporate Services,BIRKIN CLEANING SERVICES LTD,31203,26-Jul-23,27305.2,4550.87,182414,Corporate Contracts - FM,130000              Cleaning & Janitorial,A,2023,4
982,"Children, Schools and Family",BIRKIN CLEANING SERVICES LTD,31114,24-Jul-23,1473.44,245.57,182414,Acacia IGC Building Management,130000              Cleaning & Janitorial,A,2023,4
983,Community and Housing,BIRKIN CLEANING SERVICES LTD,31112,24-Jul-23,1842.22,307.04,182414,Highpath (DayCentre) Leyton Rd,130000              Cleaning & Janitorial,A,2023,4
984,Community and Housing,BIRKIN CLEANING SERVICES LTD,31113,24-Jul-23,2167.12,361.19,182414,JMC  Day Centre,130000              Cleaning & Janitorial,A,2023,4
985,"Children, Schools and Family",BIRKIN CLEANING SERVICES LTD,31115,24-Jul-23,754.75,125.79,182414,Adventure Playground Project,130000              Cleaning & Janitorial,A,2023,4
986,"Children, Schools and Family",BIRKIN CLEANING SERVICES LTD,31108,24-Jul-23,754.63,125.77,182414,Merton Youth Centres.,130000              Cleaning & Janitorial,A,2023,4
987,"Children, Schools and Family",BIRKIN CLEANING SERVICES LTD,31109,24-Jul-23,750.68,125.11,182414,Merton Youth Centres.,130000              Cleaning & Janitorial,A,2023,4
988,"Children, Schools and Family",BIRKIN CLEANING SERVICES LTD,31116,24-Jul-23,2465.74,410.96,182414,Steers Mead BuildingManagement,130000              Cleaning & Janitorial,A,2023,4
989,Community and Housing,BIRKIN CLEANING SERVICES LTD,30963,21-Jul-23,617.09,102.85,182414,West Barnes Lib,130000              Cleaning & Janitorial,A,2023,4
990,"Children, Schools and Family",REDACTED PERSONAL DATA,990374,18-Jul-23,811.4,0,182494,Child Disabilities - Placement,DIRECT PAYMENTS,R,2023,4
991,"Children, Schools and Family",REDACTED PERSONAL DATA,998552,31-Jul-23,663.29,0,182558,UASC LAC Under 18,321100              Social Community Care Supplies & Services - Children,R,2023,4
992,Community and Housing,REDACTED PERSONAL DATA,989246,18-Jul-23,2402.4,0,182584,Phys/Sens Placements - East,DIRECT PAYMENTS,R,2023,4
993,"Children, Schools and Family",REDACTED PERSONAL DATA,987690,07-Jul-23,548.09,0,182648,UASC LAC Under 18,321100              Social Community Care Supplies & Services - Children,R,2023,4
994,"Children, Schools and Family",REDACTED PERSONAL DATA,987743,07-Jul-23,548.09,0,182648,UASC LAC Under 18,321100              Social Community Care Supplies & Services - Children,R,2023,4
995,"Children, Schools and Family",REDACTED PERSONAL DATA,989664,14-Jul-23,548.09,0,182648,UASC LAC Under 18,321100              Social Community Care Supplies & Services - Children,R,2023,4
996,"Children, Schools and Family",REDACTED PERSONAL DATA,989715,14-Jul-23,548.09,0,182648,UASC LAC Under 18,321100              Social Community Care Supplies & Services - Children,R,2023,4
997,"Children, Schools and Family",REDACTED PERSONAL DATA,994407,21-Jul-23,548.09,0,182648,UASC LAC Under 18,321100              Social Community Care Supplies & Services - Children,R,2023,4
998,"Children, Schools and Family",REDACTED PERSONAL DATA,994458,21-Jul-23,548.09,0,182648,UASC LAC Under 18,321100              Social Community Care Supplies & Services - Children,R,2023,4
999,"Children, Schools and Family",REDACTED PERSONAL DATA,998537,31-Jul-23,748.09,0,182648,UASC LAC Under 18,321100              Social Community Care Supplies & Services - Children,R,2023,4
1000,"Children, Schools and Family",REDACTED PERSONAL DATA,998563,31-Jul-23,697.12,0,182648,Placements Under 18,321100              Social Community Care Supplies & Services - Children,R,2023,4
1001,"Children, Schools and Family",REDACTED PERSONAL DATA,998590,31-Jul-23,748.09,0,182648,UASC LAC Under 18,321100              Social Community Care Supplies & Services - Children,R,2023,4
1002,Community and Housing,REDACTED PERSONAL DATA,989446,18-Jul-23,5148,0,182894,Learning Disabilities Placemnt,DIRECT PAYMENTS,R,2023,4
1003,Community and Housing,REDACTED PERSONAL DATA,989201,18-Jul-23,4038,0,183167,Older People Placements - East,DIRECT PAYMENTS,R,2023,4
1004,Community and Housing,ST ANTONYS CARE HOME,984992,04-Jul-23,3750,0,183206,Mental Health Placements,321017              Nursing & Residential Care Homes,A,2023,4
1005,Community and Housing,ST ANTONYS CARE HOME,985110,06-Jul-23,4000,0,183206,Older People Placements - East,321017              Nursing & Residential Care Homes,A,2023,4
1006,Community and Housing,ST ANTONYS CARE HOME,985184,06-Jul-23,3840,0,183206,Older People Placements - East,321017              Nursing & Residential Care Homes,A,2023,4
1007,Community and Housing,ST ANTONYS CARE HOME,985210,06-Jul-23,3840,0,183206,Older People Placements - East,321017              Nursing & Residential Care Homes,A,2023,4
1008,Community and Housing,ST ANTONYS CARE HOME,985224,06-Jul-23,4200,0,183206,Mental Health Placements,321017              Nursing & Residential Care Homes,A,2023,4
1009,Community and Housing,ST ANTONYS CARE HOME,985276,06-Jul-23,4000,0,183206,Older People Placements - East,321017              Nursing & Residential Care Homes,A,2023,4
1010,"Children, Schools and Family",REDACTED PERSONAL DATA,990410,18-Jul-23,509.12,0,183241, Childrens Short Breaks,CSF-DIRECT PAYMENTS,R,2023,4
1011,Unassigned,HARRIS ACADEMY MORDEN,SCHOOLS 2324/4 A,07-Jul-23,135000,0,183257,Schools,170000              Education,A,2023,4
1012,Community and Housing,REDACTED PERSONAL DATA,994130,21-Jul-23,1163.36,0,183460,Learning Disabilities Placemnt,DIRECT PAYMENTS,R,2023,4
1013,Community and Housing,REDACTED PERSONAL DATA,989255,18-Jul-23,986.44,0,183464,Older People Placements - East,DIRECT PAYMENTS,R,2023,4
1014,Community and Housing,CREST MANOR LTD,CM0818,19-Jul-23,5819.4,0,183548,Bed & Breakfast - accomm,250000              Housing Management,A,2023,4
1015,"Children, Schools and Family",REDACTED PERSONAL DATA,990429,18-Jul-23,1710,0,183558,Child Disabilities - Placement,CSF-DIRECT PAYMENTS,R,2023,4
1016,Community and Housing,Kent House Care Home,985324,06-Jul-23,2884,0,183560,Older People Placements - East,321017              Nursing & Residential Care Homes,A,2023,4
1017,Community and Housing,REDACTED PERSONAL DATA,2224,17-Jul-23,700,0,183599,Com Care Placement Contingency,321000              Social Community Care Supplies & Services - Adult                                         Confirmed,R,2023,4
1018,Environment and Regeneration,SCOTTISH POWER,108917871,13-Jul-23,1256.44,59.83,183660,Street Lighting,370000              Utilities,A,2023,4
1019,Environment and Regeneration,SCOTTISH POWER,INV+CR E20148598,17-Jul-23,29449.52,4908.25,183660,Street Lighting,370000              Utilities,A,2023,4
1020,Corporate Services,RENTOKIL INITIAL UK LTD,60393592,19-Jul-23,1737.53,289.6,183672,Corporate Contracts - FM,130000              Cleaning & Janitorial,A,2023,4
1021,Corporate Services,TRUSTMARQUE SOLUTIONS,2365381,11-Jul-23,23070.85,3845.14,183673,IT Service Delivery,270000              Information Communication Technology,A,2023,4
1022,"Children, Schools and Family",SOUTHAMPTON UNIVERSITY,44270892,28-Jul-23,39920,0,183682, Education Psychology,260000              Human Resources,A,2023,4
1023,Community and Housing,REDACTED PERSONAL DATA,989167,18-Jul-23,540.96,0,183690,Older People Placements - East,DIRECT PAYMENTS,R,2023,4
1024,Community and Housing,HOUNSLOW AND RICHM'D COMM H'CARE,82980577,10-Jul-23,16617.5,0,183949,PH - Prevention,310000              Healthcare,A,2023,4
1025,Community and Housing,HOUNSLOW AND RICHM'D COMM H'CARE,82980549,27-Jul-23,16617.5,0,183949,PH - Prevention,310000              Healthcare,A,2023,4
1026,Community and Housing,HOUNSLOW AND RICHM'D COMM H'CARE,82980550,27-Jul-23,16617.5,0,183949,PH - Prevention,310000              Healthcare,A,2023,4
1027,Community and Housing,NHS MERTON CCG,984569,17-Jul-23,2900,0,184012,Mental Health Placements,310000              Healthcare,A,2023,4
1028,Community and Housing,NHS MERTON CCG,984653,17-Jul-23,2077.6,0,184012,Mental Health Placements,310000              Healthcare,A,2023,4
1029,Community and Housing,NHS MERTON CCG,984748,17-Jul-23,4380.7,0,184012,Mental Health Placements,310000              Healthcare,A,2023,4
1030,Community and Housing,NHS MERTON CCG,984787,17-Jul-23,7418.9,0,184012,Mental Health Placements,310000              Healthcare,A,2023,4
1031,Corporate Services,LEXTOX,296101,24-Jul-23,571.2,95.2,184053,SLLP - Disbursements,280000              Legal Services,A,2023,4
1032,"Children, Schools and Family",LEXTOX,291467,10-Jul-23,1164,194,184053,Family Supp SafeGuard - Place,280000              Legal Services,A,2023,4
1033,"Children, Schools and Family",LEXTOX,296328,27-Jul-23,643.2,107.2,184053,Family Supp SafeGuard - Place,280000              Legal Services,A,2023,4
1034,"Children, Schools and Family",LEXTOX,295844,20-Jul-23,1053.6,175.6,184053,Family Supp SafeGuard - Place,280000              Legal Services,A,2023,4
1035,Community and Housing,REDACTED PERSONAL DATA,989299,18-Jul-23,2463.4,0,184175,Older People Placements - East,DIRECT PAYMENTS,R,2023,4
1036,"Children, Schools and Family",SUNNYHILL PRIMARY SCHOOL,SUN000326,25-Jul-23,2633.14,0,184196,Non-Delegated Statements,170000              Education,A,2023,4
1037,Community and Housing,CROWNWISE LTD,985109,06-Jul-23,5907,0,184360,Mental Health Placements,321000              Social Community Care Supplies & Services - Adult,A,2023,4
1038,Community and Housing,MARIAN HOUSE NURSING HOME,985100,06-Jul-23,2834.56,0,184385,Older People Placements - East,321017              Nursing & Residential Care Homes,A,2023,4
1039,"Children, Schools and Family",REDACTED PERSONAL DATA,987795,07-Jul-23,582.17,0,184386,Placements Under 18,321100              Social Community Care Supplies & Services - Children,R,2023,4
1040,"Children, Schools and Family",REDACTED PERSONAL DATA,989764,14-Jul-23,582.17,0,184386,Placements Under 18,321100              Social Community Care Supplies & Services - Children,R,2023,4
1041,"Children, Schools and Family",REDACTED PERSONAL DATA,994508,21-Jul-23,582.17,0,184386,Placements Under 18,321100              Social Community Care Supplies & Services - Children,R,2023,4
1042,"Children, Schools and Family",REDACTED PERSONAL DATA,998632,31-Jul-23,663.29,0,184386,Placements Under 18,321100              Social Community Care Supplies & Services - Children,R,2023,4
1043,"Children, Schools and Family",REDACTED PERSONAL DATA,998641,31-Jul-23,782.17,0,184386,Placements Under 18,321100              Social Community Care Supplies & Services - Children,R,2023,4
1044,Community and Housing,REDACTED PERSONAL DATA,994151,21-Jul-23,4059.24,0,184580,Older People Placements - East,DIRECT PAYMENTS,R,2023,4
1045,"Children, Schools and Family",CARSHALTON BOYS SPORTS COLLEGE,CBSC002021,20-Jul-23,2633.14,0,184604,Non-Delegated Statements,170000              Education,A,2023,4
1046,Community and Housing,REDACTED PERSONAL DATA,989301,18-Jul-23,726.92,0,184608,Older People Placements - East,DIRECT PAYMENTS,R,2023,4
1047,Community and Housing,THE DESIGN CONCEPT LTD,5258,02-Aug-23,11042.28,1840.38,184688,Tuned In,170000              Education,A,2023,4
1048,"Children, Schools and Family",Bright Horizons Family Solutions Ltd,P1 23 HEADCOUNT2,07-Jul-23,849.6,0,184692,EARLY YEARS NURSERY GRANTS,170000              Education,A,2023,4
1049,"Children, Schools and Family",Bright Horizons Family Solutions Ltd,10005424,24-Jul-23,2332,0,184692,Non-Delegated Statements,170000              Education,A,2023,4
1050,Community and Housing,SK HOUSING LTD,6962,10-Jul-23,32142,5357,184774,Bed & Breakfast - accomm,321000              Social Community Care Supplies & Services - Adult,A,2023,4
1051,Community and Housing,CROHAM PLACE,985047,06-Jul-23,9007.52,0,184807,Learning Disabilities Placemnt,321017              Nursing & Residential Care Homes,A,2023,4
1052,Community and Housing,CROHAM PLACE,985198,06-Jul-23,9400,0,184807,Mental Health Placements,321017              Nursing & Residential Care Homes,A,2023,4
1053,Community and Housing,CROHAM PLACE,985199,06-Jul-23,9400,0,184807,Learning Disabilities Placemnt,321017              Nursing & Residential Care Homes,A,2023,4
1054,Community and Housing,CROHAM PLACE,985238,06-Jul-23,9400,0,184807,Mental Health Placements,321017              Nursing & Residential Care Homes,A,2023,4
1055,Community and Housing,REDACTED PERSONAL DATA,989430,18-Jul-23,860.56,0,184819,Older People Placements - East,DIRECT PAYMENTS,R,2023,4
1056,"Children, Schools and Family",HIGHER LEVEL CARE (HLC) LTD,14978,21-Jul-23,3642.9,0,184822,UASC LAC Under 18,321100              Social Community Care Supplies & Services - Children Residential,A,2023,4
1057,"Children, Schools and Family",HIGHER LEVEL CARE (HLC) LTD,14974,21-Jul-23,3642.6,0,184822,UASC Care Leavers Over 18,321100              Social Community Care Supplies & Services - Children Residential,A,2023,4
1058,"Children, Schools and Family",HIGHER LEVEL CARE (HLC) LTD,14976,24-Jul-23,2357.1,0,184822,Placements Over 18,321100              Social Community Care Supplies & Services - Children Residential,A,2023,4
1059,"Children, Schools and Family",HIGHER LEVEL CARE (HLC) LTD,14980,25-Jul-23,3642.9,0,184822,Placements Under 18,321100              Social Community Care Supplies & Services - Children Residential,A,2023,4
1060,Community and Housing,QUARTZ PROPERTIES,LBMGIPN21,10-Jul-23,3750,0,184919,Galpins Road Recovery (CAT),321000              Social Community Care Supplies & Services - Adult,A,2023,4
1061,Community and Housing,QUARTZ PROPERTIES,LBM117,19-Jul-23,42642.7,0,184919,Bed & Breakfast - accomm,321000              Social Community Care Supplies & Services - Adult,A,2023,4
1062,"Children, Schools and Family",QUARTZ PROPERTIES,LBMSS38D,17-Jul-23,851,0,184919,Family Assessmt & Intervention,321000              Social Community Care Supplies & Services - Adult,A,2023,4
1063,"Children, Schools and Family",QUARTZ PROPERTIES,LBMSS39B,28-Jul-23,1705,0,184919,Family Assessmt & Intervention,321000              Social Community Care Supplies & Services - Adult,A,2023,4
1064,"Children, Schools and Family",QUARTZ PROPERTIES,LBMSS38B,28-Jul-23,1540,0,184919,Family Assessmt & Intervention,321000              Social Community Care Supplies & Services - Adult,A,2023,4
1065,"Children, Schools and Family",QUARTZ PROPERTIES,LBMSS38C,28-Jul-23,1316,0,184919,Family Assessmt & Intervention,321000              Social Community Care Supplies & Services - Adult,A,2023,4
1066,Community and Housing,REDACTED PERSONAL DATA,989331,18-Jul-23,572.76,0,184950,Phys/Sens Placements - East,DIRECT PAYMENTS,R,2023,4
1067,Community and Housing,HOLDSWORTHS,592224,20-Jul-23,517.39,4.54,185001,Eastway Day Centre,110000              Catering,A,2023,4
1068,Corporate Services,JASPERS CATERING SERVICES,22184,11-Jul-23,640.98,106.83,185004,Local Strategic Partnership,110000              Catering,A,2023,4
1069,Community and Housing,LONDON CARE LTD,5656/23,04-Jul-23,1189.4,0,185026,Older People Placements - East,321000              Social Community Care Supplies & Services - Adult,A,2023,4
1070,Community and Housing,LONDON CARE LTD,5656/4,04-Jul-23,1386.81,0,185026,Older People Placements - East,321000              Social Community Care Supplies & Services - Adult,A,2023,4
1071,Community and Housing,LONDON CARE LTD,5656/11,04-Jul-23,2570,0,185026,Older People Placements - East,321000              Social Community Care Supplies & Services - Adult,A,2023,4
1072,Community and Housing,LONDON CARE LTD,5656/24,04-Jul-23,2188.28,0,185026,Older People Placements - East,321000              Social Community Care Supplies & Services - Adult,A,2023,4
1073,Community and Housing,LONDON CARE LTD,5656/14,04-Jul-23,899.51,0,185026,Older People Placements - East,321000              Social Community Care Supplies & Services - Adult,A,2023,4
1074,Community and Housing,LONDON CARE LTD,5656/13,04-Jul-23,982.84,0,185026,Older People Placements - East,321000              Social Community Care Supplies & Services - Adult,A,2023,4
1075,Community and Housing,LONDON CARE LTD,5656/26,04-Jul-23,811.74,0,185026,Older People Placements - East,321000              Social Community Care Supplies & Services - Adult,A,2023,4
1076,Community and Housing,LONDON CARE LTD,5656/1,04-Jul-23,1032.77,0,185026,Older People Placements - East,321000              Social Community Care Supplies & Services - Adult,A,2023,4
1077,Community and Housing,LONDON CARE LTD,5656/19,04-Jul-23,1446.82,0,185026,Older People Placements - East,321000              Social Community Care Supplies & Services - Adult,A,2023,4
1078,Community and Housing,LONDON CARE LTD,5656/3,04-Jul-23,1528.62,0,185026,Older People Placements - East,321000              Social Community Care Supplies & Services - Adult,A,2023,4
1079,Community and Housing,LONDON CARE LTD,5656/30,04-Jul-23,2472.45,0,185026,Older People Placements - East,321000              Social Community Care Supplies & Services - Adult,A,2023,4
1080,Community and Housing,LONDON CARE LTD,5656/20,04-Jul-23,716.61,0,185026,Older People Placements - East,321000              Social Community Care Supplies & Services - Adult,A,2023,4
1081,Community and Housing,LONDON CARE LTD,5656/12,04-Jul-23,574.58,0,185026,Phys/Sens Placements - East,321000              Social Community Care Supplies & Services - Adult,A,2023,4
1082,Community and Housing,LONDON CARE LTD,5656/22,04-Jul-23,1163.6,0,185026,Older People Placements - East,321000              Social Community Care Supplies & Services - Adult,A,2023,4
1083,Community and Housing,LONDON CARE LTD,016-5222301,14-Jul-23,4496.5,0,185026,Older People Placements - East,321000              Social Community Care Supplies & Services - Adult,A,2023,4
1084,"Children, Schools and Family",BROWNE JACOBSON,1026233,21-Jul-23,1383.5,206,185063, PFI Unitary Charges,280000              Legal Services,A,2023,4
1085,Community and Housing,CHELSEA AND WESTMINSTER HOSPITAL,N0053883,19-Jul-23,17383.05,0,185106,PH - Sexual Health,310000              Healthcare,A,2023,4
1086,Corporate Services,NERCON LTD,179783,25-Jul-23,1062,177,185192,Corporate Contracts - FM,130000              Cleaning & Janitorial,A,2023,4
1087,Community and Housing,REDACTED PERSONAL DATA,996452,26-Jul-23,940.36,0,185250,Older People Placements - East,DIRECT PAYMENTS,R,2023,4
1088,Community and Housing,ROOMS AND  STUDIOS MANAGEMENT,1270,13-Jul-23,138471.35,23078.56,185280,Bed & Breakfast - accomm,321000              Social Community Care Supplies & Services - Adult,A,2023,4
1089,Community and Housing,ROOMS AND  STUDIOS MANAGEMENT,1271,12-Jul-23,5854.8,975.8,185280,Bed & Breakfast - accomm,321000              Social Community Care Supplies & Services - Adult,A,2023,4
1090,Community and Housing,REDACTED PERSONAL DATA,989122,18-Jul-23,1369.4,0,185353,Mental Health Placements,DIRECT PAYMENTS,R,2023,4
1091,Corporate Services,REDACTED PERSONAL DATA,INV/JDO67,12-Jul-23,1500,250,185360,SLLP - Disbursements,280000              Legal Services                                                                            Confirmed,R,2023,4
1092,Community and Housing,WISDOM SUPPORT SERVICES LTD,12496,24-Jul-23,4434.48,0,185366,Learning Disabilities Placemnt,321000              Social Community Care Supplies & Services - Adult,A,2023,4
1093,Community and Housing,WISDOM SUPPORT SERVICES LTD,12497,24-Jul-23,1313.92,0,185366,Learning Disabilities Placemnt,321000              Social Community Care Supplies & Services - Adult,A,2023,4
1094,Community and Housing,WISDOM SUPPORT SERVICES LTD,12498,24-Jul-23,1642.4,0,185366,Older People Placements - East,321000              Social Community Care Supplies & Services - Adult,A,2023,4
1095,Community and Housing,WISDOM SUPPORT SERVICES LTD,12499,24-Jul-23,2217.24,0,185366,Older People Placements - East,321000              Social Community Care Supplies & Services - Adult,A,2023,4
1096,Community and Housing,WISDOM SUPPORT SERVICES LTD,12495,20-Jul-23,4652.2,0,185366,Mental Health Placements,321000              Social Community Care Supplies & Services - Adult,A,2023,4
1097,Corporate Services,Carter Brown The Expert Service Ltd,TI050223,01-Aug-23,559.36,93.23,185403,SLLP - Disbursements,280000              Legal Services                                                                            Confirmed,A,2023,4
1098,"Children, Schools and Family",ELECTRONICS DIRECT,1279,17-Jul-23,1672.97,278.83,185453,Care Experienced over18,160000              Domestic Goods,A,2023,4
1099,Community and Housing,THORNBECK COLLEGE,985164,06-Jul-23,10320.52,0,185470,Learning Disabilities Placemnt,321100              Social Community Care Supplies & Services - Children,A,2023,4
1100,Community and Housing,REDACTED PERSONAL DATA,989402,18-Jul-23,1411.98,0,185533,Older People Placements - East,DIRECT PAYMENTS,R,2023,4
1101,"Children, Schools and Family",WOODMANSTERNE PRIMARY SCHOOL,RFULLER25102008,07-Jul-23,600,0,185550,PupilPremium- Virtual School,170000              Education,A,2023,4
1102,"Children, Schools and Family",WOODMANSTERNE PRIMARY SCHOOL,DAVIDSON28112007,07-Jul-23,600,0,185550,PupilPremium- Virtual School,170000              Education,A,2023,4
1103,"Children, Schools and Family",WOODMANSTERNE PRIMARY SCHOOL,W2223-111,25-Jul-23,25015.13,0,185550,Non-Delegated Statements,170000              Education,A,2023,4
1104,"Children, Schools and Family",WOODMANSTERNE PRIMARY SCHOOL,W2223-110,25-Jul-23,25719.83,0,185550,Non-Delegated Statements,170000              Education,A,2023,4
1105,Community and Housing,REDACTED PERSONAL DATA,989141,18-Jul-23,636.4,0,185557,Learning Disabilities Placemnt,DIRECT PAYMENTS,R,2023,4
1106,Community and Housing,OVERDRIVE,01835MG23129184,13-Jul-23,4722.22,0,185624,Media Fund,200000              Financial Services,A,2023,4
1107,Community and Housing,OVERDRIVE,01835SB23101890,13-Jul-23,8583,0,185624,Media Fund,200000              Financial Services,A,2023,4
1108,Community and Housing,REDACTED PERSONAL DATA,989387,18-Jul-23,1036.68,0,185653,Older People Placements - East,DIRECT PAYMENTS,R,2023,4
1109,Community and Housing,VIBRANCE, JAKE FINDLAY,10-Jul-23,10036,0,185664,Learning Disabilities Placemnt,321000              Social Community Care Supplies & Services - Adult,A,2023,4
1110,Community and Housing,VIBRANCE,987493,07-Jul-23,962.64,0,185664,Learning Disabilities Placemnt,321000              Social Community Care Supplies & Services - Adult,A,2023,4
1111,Community and Housing,VIBRANCE,987499,07-Jul-23,721.98,0,185664,Learning Disabilities Placemnt,321000              Social Community Care Supplies & Services - Adult,A,2023,4
1112,Community and Housing,VIBRANCE,987500,07-Jul-23,16365.03,0,185664,Older People Placements - East,321000              Social Community Care Supplies & Services - Adult,A,2023,4
1113,Community and Housing,VIBRANCE,987555,07-Jul-23,962.64,0,185664,Learning Disabilities Placemnt,321000              Social Community Care Supplies & Services - Adult,A,2023,4
1114,Community and Housing,VIBRANCE,987557,07-Jul-23,3248.95,0,185664,Learning Disabilities Placemnt,321000              Social Community Care Supplies & Services - Adult,A,2023,4
1115,Community and Housing,VIBRANCE,987558,07-Jul-23,3248.95,0,185664,Learning Disabilities Placemnt,321000              Social Community Care Supplies & Services - Adult,A,2023,4
1116,Community and Housing,VIBRANCE,987561,07-Jul-23,9024.81,0,185664,Older People Placements - East,321000              Social Community Care Supplies & Services - Adult,A,2023,4
1117,Community and Housing,VIBRANCE,987564,07-Jul-23,842.32,0,185664,Learning Disabilities Placemnt,321000              Social Community Care Supplies & Services - Adult,A,2023,4
1118,Community and Housing,VIBRANCE,987565,07-Jul-23,721.99,0,185664,Learning Disabilities Placemnt,321000              Social Community Care Supplies & Services - Adult,A,2023,4
1119,Community and Housing,VIBRANCE,987573,07-Jul-23,601.65,0,185664,Learning Disabilities Placemnt,321000              Social Community Care Supplies & Services - Adult,A,2023,4
1120,Community and Housing,VIBRANCE,987590,07-Jul-23,3248.95,0,185664,Learning Disabilities Placemnt,321000              Social Community Care Supplies & Services - Adult,A,2023,4
1121,Community and Housing,VIBRANCE,987601,07-Jul-23,1443.97,0,185664,Learning Disabilities Placemnt,321000              Social Community Care Supplies & Services - Adult,A,2023,4
1122,Community and Housing,VIBRANCE,987608,07-Jul-23,3248.95,0,185664,Learning Disabilities Placemnt,321000              Social Community Care Supplies & Services - Adult,A,2023,4
1123,Community and Housing,VIBRANCE,987613,07-Jul-23,601.66,0,185664,Learning Disabilities Placemnt,321000              Social Community Care Supplies & Services - Adult,A,2023,4
1124,Community and Housing,VIBRANCE,987616,07-Jul-23,6858.83,0,185664,Older People Placements - East,321000              Social Community Care Supplies & Services - Adult,A,2023,4
1125,Community and Housing,VIBRANCE,987623,07-Jul-23,962.66,0,185664,Learning Disabilities Placemnt,321000              Social Community Care Supplies & Services - Adult,A,2023,4
1126,Community and Housing,VIBRANCE,987625,07-Jul-23,2045.63,0,185664,Learning Disabilities Placemnt,321000              Social Community Care Supplies & Services - Adult,A,2023,4
1127,Community and Housing,VIBRANCE,987648,07-Jul-23,721.98,0,185664,Learning Disabilities Placemnt,321000              Social Community Care Supplies & Services - Adult,A,2023,4
1128,Community and Housing,VIBRANCE,987653,07-Jul-23,721.99,0,185664,Learning Disabilities Placemnt,321000              Social Community Care Supplies & Services - Adult,A,2023,4
1129,Community and Housing,VIBRANCE,987655,07-Jul-23,601.66,0,185664,Learning Disabilities Placemnt,321000              Social Community Care Supplies & Services - Adult,A,2023,4
1130,Community and Housing,VIBRANCE,987661,07-Jul-23,842.32,0,185664,Learning Disabilities Placemnt,321000              Social Community Care Supplies & Services - Adult,A,2023,4
1131,Community and Housing,VIBRANCE,987666,07-Jul-23,2406.63,0,185664,Learning Disabilities Placemnt,321000              Social Community Care Supplies & Services - Adult,A,2023,4
1132,Community and Housing,VIBRANCE,987668,07-Jul-23,10950.1,0,185664,Older People Placements - East,321000              Social Community Care Supplies & Services - Adult,A,2023,4
1133,Community and Housing,VIBRANCE,987670,07-Jul-23,962.65,0,185664,Learning Disabilities Placemnt,321000              Social Community Care Supplies & Services - Adult,A,2023,4
1134,Community and Housing,VIBRANCE,987673,07-Jul-23,842.32,0,185664,Learning Disabilities Placemnt,321000              Social Community Care Supplies & Services - Adult,A,2023,4
1135,Community and Housing,VIBRANCE,987676,07-Jul-23,842.31,0,185664,Learning Disabilities Placemnt,321000              Social Community Care Supplies & Services - Adult,A,2023,4
1136,Corporate Services,ENERGY ASSETS LIMITED,AM30180346,28-Jul-23,926.59,154.43,185666,Energy Budgets,370000              Utilities,A,2023,4
1137,"Children, Schools and Family",SELLINCOURT PRIMARY SCHOOL,SC2023-24-029,26-Jul-23,8139.2,0,185675,Non-Delegated Statements,170000              Education,A,2023,4
1138,"Children, Schools and Family",SELLINCOURT PRIMARY SCHOOL,SC2023-24-028,26-Jul-23,1138.89,0,185675,Non-Delegated Statements,170000              Education,A,2023,4
1139,Community and Housing,REDACTED PERSONAL DATA,989334,18-Jul-23,615.48,0,185709,Learning Disabilities Placemnt,DIRECT PAYMENTS,R,2023,4
1140,Unassigned,BENEDICT PRIMARY ACADEMY,SCHOOLS 2324/4 A,07-Jul-23,6280,0,185720,Schools,170000              Education,A,2023,4
1141,Community and Housing,DIVA CREATIVE LTD,3152,21-Jul-23,690,115,185777,Outbreak Contain Mngment Grant,190000              Facilities & Management Services,A,2023,4
1142,Community and Housing,M K ACCOMMODATION,MK5848,13-Jul-23,1950,0,185816,Housing Strategy,321000              Social Community Care Supplies & Services - Adult,A,2023,4
1143,Community and Housing,M K ACCOMMODATION,MK5815,13-Jul-23,1950,0,185816,Housing Strategy,321000              Social Community Care Supplies & Services - Adult,A,2023,4
1144,Community and Housing,M K ACCOMMODATION,MK5816,13-Jul-23,1950,0,185816,Housing Strategy,321000              Social Community Care Supplies & Services - Adult,A,2023,4
1145,Community and Housing,M K ACCOMMODATION,MK5831,13-Jul-23,2015,0,185816,Housing Strategy,321000              Social Community Care Supplies & Services - Adult,A,2023,4
1146,Community and Housing,M K ACCOMMODATION,MK5832,13-Jul-23,2015,0,185816,Housing Strategy,321000              Social Community Care Supplies & Services - Adult,A,2023,4
1147,Community and Housing,M K ACCOMMODATION,MK5814,13-Jul-23,1950,0,185816,Housing Strategy,321000              Social Community Care Supplies & Services - Adult,A,2023,4
1148,Community and Housing,M K ACCOMMODATION,MK5830,13-Jul-23,2015,0,185816,Housing Strategy,321000              Social Community Care Supplies & Services - Adult,A,2023,4
1149,Community and Housing,M K ACCOMMODATION,MK5840,13-Jul-23,780,0,185816,Housing Strategy,321000              Social Community Care Supplies & Services - Adult,A,2023,4
1150,"Children, Schools and Family",THE COMPLETE WORKS LTD,TCW22/23-1794,01-Aug-23,7453.29,0,185891,Non-Delegated Statements,170000              Education                                                                                 Confirmed,A,2023,4
1151,Community and Housing,RENT CONNECT LLP,RCLBM100,24-Jul-23,3610,0,185915,Bed & Breakfast - accomm,321000              Social Community Care Supplies & Services - Adult,A,2023,4
1152,"Children, Schools and Family",GOSTO FINO PORTUGAL PATISSERIE,CC085449,24-Jul-23,700.8,116.8,185935,Attain,110000              Catering,A,2023,4
1153,Community and Housing,E HOMES AND SHELTERS,EHSL1675,12-Jul-23,36331.9,0,185995,Bed & Breakfast - accomm,321000              Social Community Care Supplies & Services - Adult,A,2023,4
1154,"Children, Schools and Family",REDACTED PERSONAL DATA,990382,18-Jul-23,977.88,0,186027,Child Disabilities - Placement,CSF-DIRECT PAYMENTS,R,2023,4
1155,Community and Housing,REDACTED PERSONAL DATA,989403,18-Jul-23,1378.52,0,186071,Older People Placements - East,DIRECT PAYMENTS,R,2023,4
1156,"Children, Schools and Family",REDACTED PERSONAL DATA,998557,31-Jul-23,836.27,0,186169,Placements Under 18,321100              Social Community Care Supplies & Services - Children,R,2023,4
1157,Environment and Regeneration,LA (Local Authority) Support Ltd,SER-00045301INV,24-Jul-23,5089.92,848.32,186193,Waste Enforcement,180000              Environmental Services,A,2023,4
1158,Environment and Regeneration,LA (Local Authority) Support Ltd,SER-00044463INV,24-Jul-23,22248,3708,186193,Waste Enforcement,180000              Environmental Services,A,2023,4
1159,Environment and Regeneration,LA (Local Authority) Support Ltd,SER-00044649INV,02-Aug-23,2193.41,365.57,186193,Mitcham Carnival,180000              Environmental Services,A,2023,4
1160,"Children, Schools and Family",REDACTED PERSONAL DATA,997085,26-Jul-23,763.68,0,186280, Childrens Short Breaks,CSF-DIRECT PAYMENTS,R,2023,4
1161,Community and Housing,REDACTED PERSONAL DATA,46 FURNESS R/NEW,20-Jul-23,2400,0,186470,Homelessness Prevention,321000              Social Community Care Supplies & Services - Adult,R,2023,4
1162,"Children, Schools and Family",CAREOLINE,20816,03-Jul-23,9081.47,0,186615,Placements Under 18,321100              Social Community Care Supplies & Services - Children,A,2023,4
1163,"Children, Schools and Family",CAREOLINE,20491,14-Jul-23,2887.02,0,186615,Family Supp SafeGuard - Place,321100              Social Community Care Supplies & Services - Children,A,2023,4
1164,"Children, Schools and Family",CAREOLINE,20688,14-Jul-23,6148.26,0,186615,Family Supp SafeGuard - Place,321100              Social Community Care Supplies & Services - Children,A,2023,4
1165,"Children, Schools and Family",CAREOLINE,20708,14-Jul-23,7368.89,0,186615,Family Supp SafeGuard - Place,321100              Social Community Care Supplies & Services - Children,A,2023,4
1166,"Children, Schools and Family",CAREOLINE,20886,19-Jul-23,12840.77,0,186615,Placements Under 18,321100              Social Community Care Supplies & Services - Children,A,2023,4
1167,"Children, Schools and Family",CAREOLINE,20942A,20-Jul-23,838.5,0,186615,Placements Under 18,321100              Social Community Care Supplies & Services - Children,A,2023,4
1168,"Children, Schools and Family",CAREOLINE,20978A,20-Jul-23,838.5,0,186615,Placements Under 18,321100              Social Community Care Supplies & Services - Children,A,2023,4
